Workbook

Sheet Objectives

Sheet Very Simple Analysis
F1: Solar Only | G1: Storage Batery | H1: Ancillary Service
D3: Electricity Battery | E3: Euro/kWh | G3: 350 | H3: 350
D4: Solar Cost | E4: Euro/kW | F4: 800
D6: Capacity | E6: kW | F6: 400 | G6: 400 | H6: 400
D7: Solar Hours per Day | E7: Hours | F7: 6 | G7: 6 | H7: 0.25
D8: kWh for Cycle | E8: kWh | F8: =F6*F7 -> 2400 | G8: =G6*G7 -> 2400 | H8: =H6*H7 -> 100
D10: O&M Cost | E10: Euro/kWy | F10: 10
D11: O&M Cost | E11: % of Cap | G11: 0.02 | H11: 0.01
D13: Total Capital Cost | E13: Euro | F13: =F4*F6 -> 320000 | G13: =G3*G8 -> 840000 | H13: =H3*H8 -> 35000
D15: Life | E15: Years | F15: 35 | G15: 15 | H15: 25
D16: Real IRR | E16: % | F16: 0.04 | G16: 0.04 | H16: 0.04
D17: Capital Recovery | E17: Euro | F17: =PMT(F16,F15,-F13) -> 17144.74316 | G17: =PMT(G16,G15,-G13) -> 75550.52431 | H17: =PMT(H16,H15,-H13) -> 2240.418698
D19: O&M Cost | E19: Euro | F19: =F10*F6 -> 4000 | G19: =G11*G13 -> 16800 | H19: =H11*H13 -> 350
D20: Total Cost | E20: Euro | F20: =F19+F17 -> 21144.74316 | G20: =G19+G17 -> 92350.52431 | H20: =H19+H17 -> 2590.418698
D22: Charging Cost | E22: Euro | G22: =F20 -> 21144.74316 | H22: =G22 -> 21144.74316
D23: Total Cost | E23: Euro | F23: =F22+F20 -> 21144.74316 | G23: =G22+G20 -> 113495.2675 | H23: =H22+H20 -> 23735.16186
D25: Production | E25: kWd | F25: =F8 -> 2400 | G25: =G8 -> 2400 | H25: =F20 -> 21144.74316
D26: Production | E26: kWy | F26: =F25*365 -> 876000 | G26: =G25*365 -> 876000 | H26: =F26 -> 876000
D28: LCOE | E28: Euro/kWh | F28: =F23/F26 -> 0.02413783466 | G28: =G23/G26 -> 0.1295608076 | H28: =H23/H26 -> 0.02709493362
D29: LCOE | E29: Euro/MWH | F29: =F28*1000 -> 24.13783466 | G29: =G28*1000 -> 129.5608076 | H29: =H28*1000 -> 27.09493362

Sheet LCOS
C2: LCOE Cost | I2: =I42 -> 60.08856113 | K2: =K42 -> 66.26517039 | Q2: FALSE
F4: Solar no battery | G4: Solar for battery | H4: Battery | I4: Solar+Battery | J4: NGCC | K4: NGCC with Solar
C5: Production
D6: Solar Hours | E6: hour | F6: 6
D7: Battery Duration | E7: hour | H7: 3
D8: Capacity Factor | E8: % | F8: =F6/24 -> 0.25 | G8: =F8 -> 0.25 | H8: =H7/24 -> 0.125 | I8: =H8+G8 -> 0.375 | J8: =I8-F8 -> 0.125 | K8: =F8+G8 -> 0.5
D9: Capacity | E9: kW | F9: 100 | G9: =G12/(G8*8760) -> 50 | H9: 100 | J9: 100 | K9: 100 | M9: Gen = Cap Fac x 8760 x Cap
D10: Capacity in MWh | E10: kWh | H10: =H9*H7 -> 300
M11: Cap = Gen/Cap Fac x 8760
D12: Annual Production | E12: kWh | F12: =F9*F8*8760 -> 219000 | G12: =H12 -> 109500 | H12: =H9*H8*8760 -> 109500 | I12: =H12+F12 -> 328500 | J12: =J9*J8*8766 -> 109575 | K12: =J12+F12 -> 328575
C14: Investment Cost
D15: Cost per kW | E15: Euro/kW | F15: 750 | G15: 750 | H15: 0 | J15: 1000
D16: Cost per kWh | E16: Euro/kWh | F16: 0 | G16: 0 | H16: 300 | J16: 0 | K16: 0
D18: Total Capital Expenditure | E18: Euro | F18: =F15*F9 -> 75000 | G18: =G15*G9 -> 37500 | H18: =H16*H10 -> 90000 | J18: =J15*J9 -> 100000 | K18: =K15*K9*10^3 -> 0
D19: Project Life | E19: year | F19: =G19 -> 30 | G19: 30 | H19: 15 | J19: 25
D20: Required IRR (WACC) | E20: % | F20: 0.05 | G20: =F20 -> 0.05 | H20: =G20 -> 0.05 | J20: =G20 -> 0.05
D22: Carrying Charges | E22: Euro | F22: =PMT(F20,F19,-F18) -> 4878.857631 | G22: =PMT(G20,G19,-G18) -> 2439.428816 | H22: =PMT(H20,H19,-H18) -> 8670.805885 | I22: =F22+G22+H22 -> 15989.09233 | J22: =PMT(J20,J19,-J18) -> 7095.24573 | K22: =J22+F22 -> 11974.10336
C24: O&M Cost
D25: Fixed O&M / kWy | E25: Euro/kWy | F25: 10 | G25: 10 | H25: 0.025 | J25: 8
D26: total fixed O&M | E26: Euro | F26: =F25*F9 -> 1000 | G26: =G25*G9 -> 500 | H26: =H25*H18 -> 2250 | J26: =J25*J9 -> 800
D28: Variable O&M / MWh | E28: Euro/MWH | G28: 0 | H28: 0 | J28: 5
D29: Total Variable O&M | J29: =J28*J12/1000 -> 547.875
D31: Heat Rate | E31: mmbtu/MWh | J31: 6.8
D32: Gas Price | E32: Euro/mmbtu | J32: 10
D33: Gas Cost | E33: Euro/MWh | J33: =J31*J32 -> 68
D34: Total Gas Cost | E34: Euro | J34: =J33*J12/1000 -> 7451.1
D36: Total O&M Cost | E36: Euro | F36: =F26+F29+F34 -> 1000 | G36: =G26+G29+G34 -> 500 | H36: =H26+H29+H34 -> 2250 | I36: =F36+G36+H36 -> 3750 | J36: =J26+J29+J34 -> 8798.975 | K36: =J36+F36 -> 9798.975
C38: Total LCOE
D39: Total Cost | E39: Euro | F39: =F36+F22 -> 5878.857631 | G39: =G36+G22 -> 2939.428816 | H39: =H36+H22 -> 10920.80588 | I39: =H39+G39+F39 -> 19739.09233 | K39: =K22+K36 -> 21773.07836
D40: Total Production | E40: kWh | F40: =F12 -> 219000 | G40: =G12 -> 109500 | H40: 109500 | I40: =I39/I12*1000 -> 60.08856113 | J40: 109575 | K40: 328575
G41: =G4 -> Solar for battery | H41: =H4 -> Battery | J41: =J4 -> NGCC
D42: Total LCOE | E42: Euro/MWH | F42: =F39/F40*1000 -> 26.84409877 | G42: =G39/G40*1000 -> 26.84409877 | H42: =H39/H40*1000 -> 99.73338708 | I42: =I40 -> 60.08856113 | K42: =K39/K40*1000 -> 66.26517039

Sheet Simple Battery Dispatch
B2: Inputs
D3: Minimum State of Charge | E3: % | F3: 0.1
D4: Round Trip Efficiency | E4: % | F4: 0.95
D5: Battery Capacity - Storage | E5: kWh | F5: 400
D6: Battery Capacity | E6: kW | F6: 200
B8: Energy Supply and Demand
G9: 1 | H9: 2 | I9: 3 | J9: 4 | K9: 5 | L9: 6 | M9: 7 | N9: 8 | O9: 9 | P9: 10 | Q9: 11 | R9: 12 | S9: 13
D10: Energy Available for Charge | E10: kWh | G10: 0 | H10: 0 | I10: 200 | J10: 150 | K10: 100 | L10: 100 | M10: 0 | N10: 0 | O10: 0 | P10: 0 | Q10: 200 | R10: 50 | S10: 50
D11: Energy Desired for Discharge | E11: kWh | G11: 100 | H11: 60 | I11: 0 | J11: 0 | K11: 0 | L11: 0 | M11: 20 | N11: 100 | O11: 170 | P11: 200 | Q11: 0 | R11: 0 | S11: 0
B14: Battery Availability
D15: Opening Balance | E15: kWh | G15: =G26 -> 50 | H15: =H26 -> 40 | I15: 40 | J15: 230 | K15: 372.5 | L15: 400 | M15: 400 | N15: 380 | O15: 280 | P15: 110 | Q15: 40 | R15: 230 | S15: 277.5
D16: Less: Minimum Storage | E16: kWh | F16: =F5*F3 -> 40 | G16: =$F$16 -> 40 | H16: =$F$16 -> 40 | I16: 40 | J16: 40 | K16: 40 | L16: 40 | M16: 40 | N16: 40 | O16: 40 | P16: 40 | Q16: 40 | R16: 40 | S16: 40
D17: Max to Discharge | E17: kWh | G17: =G15-G16 -> 10 | H17: =H15-H16 -> 0 | I17: 0 | J17: 190 | K17: 332.5 | L17: 360 | M17: 360 | N17: 340 | O17: 240 | P17: 70 | Q17: 0 | R17: 190 | S17: 237.5
D19: Charge after RTE | E19: kWh | F19: =F4 -> 0.95 | G19: =$F$19*G10 -> 0 | H19: =$F$19*H10 -> 0 | I19: 190 | J19: 142.5 | K19: 95 | L19: 95 | M19: 0 | N19: 0 | O19: 0 | P19: 0 | Q19: 190 | R19: 47.5 | S19: 47.5
D21: Capacity | E21: kWh | F21: =F5 -> 400 | G21: =$F$21 -> 400 | H21: =$F$21 -> 400 | I21: 400 | J21: 400 | K21: 400 | L21: 400 | M21: 400 | N21: 400 | O21: 400 | P21: 400 | Q21: 400 | R21: 400 | S21: 400
D22: Less: Opening Balance | E22: kWh | G22: =G26 -> 50 | H22: =H26 -> 40 | I22: 40 | J22: 230 | K22: 372.5 | L22: 400 | M22: 400 | N22: 380 | O22: 280 | P22: 110 | Q22: 40 | R22: 230 | S22: 277.5
D23: Maximum to Charge | E23: kWh | G23: =MAX(G21-G22,0) -> 350 | H23: =MAX(H21-H22,0) -> 360 | I23: 360 | J23: 170 | K23: 27.5 | L23: 0 | M23: 0 | N23: 20 | O23: 120 | P23: 290 | Q23: 360 | R23: 170 | S23: 122.5
B25: Battery Balance
D26: Opening Balance | E26: kWh | G26: =F29 -> 50 | H26: =G29 -> 40 | I26: 40 | J26: 230 | K26: 372.5 | L26: 400 | M26: 400 | N26: 380 | O26: 280 | P26: 110 | Q26: 40 | R26: 230 | S26: 277.5
D27: Add: Charge | E27: kW | G27: =MIN(G19,G23) -> 0 | H27: =MIN(H19,H23) -> 0 | I27: 190 | J27: 142.5 | K27: 27.5 | L27: 0 | M27: 0 | N27: 0 | O27: 0 | P27: 0 | Q27: 190 | R27: 47.5 | S27: 47.5
D28: Less: Discharge | E28: kW | G28: =MIN(G17,G11) -> 10 | H28: =MIN(H17,H11) -> 0 | I28: 0 | J28: 0 | K28: 0 | L28: 0 | M28: 20 | N28: 100 | O28: 170 | P28: 70 | Q28: 0 | R28: 0 | S28: 0
D29: Closing | E29: kWh | F29: 50 | G29: =G26+G27-G28 -> 40 | H29: =H26+H27-H28 -> 40 | I29: 230 | J29: 372.5 | K29: 400 | L29: 400 | M29: 380 | N29: 280 | O29: 110 | P29: 40 | Q29: 230 | R29: 277.5 | S29: 325

Sheet PV GIS
U35: 2052 | V35: kwh/m3
U36: =U35*1000 -> 2052000 | V36: wh/m3
U37: =U36/8760 -> 234.2465753 | V37: w/m3
U74: 2448 | V74: kwh/m3
U75: =U74*1000 -> 2448000 | V75: wh/m3
U76: =U75/8760 -> 279.4520548 | V76: w/m3

Sheet Hourly Solar
A1: Latitude (decimal degrees): 15.389
A2: Longitude (decimal degrees): 103.574
A3: Elevation (m): 129
A4: Radiation database: PVGIS-SARAH
F5: Track | G5: TRUE
A7: Slope: 41 deg. (optimum)
A8: Azimuth: - deg. | E8: Track | F8: No Track
A9: time | B9: Hour | C9: 2016-01-01 | E9: G(i) | F9: G(i) | H9: H_sun | I9: T2m | J9: WS10m | K9: Int
A10: 20151231:2346 | B10: 7 | C10: =C9+7/24 -> 2016-01-01T07:00:00 | D10: =C10 -> 42370.29167 | E10: 29.78 | F10: 32.36 | G10: =IF($G$5,E10,F10) -> 29.78 | H10: 2.21 | I10: 18.37 | J10: 3.72 | K10: 0
A11: 20160101:0046 | B11: =IF(B10=24,1,B10+1) -> 8 | C11: =C10+1/24 -> 2016-01-01T08:00:00 | D11: =C11 -> 42370.33333 | E11: 537.91 | F11: 265.97 | G11: =IF($G$5,E11,F11) -> 537.91 | H11: 15.09 | I11: 19.59 | J11: 4.14 | K11: 0
A12: 20160101:0146 | B12: =IF(B11=24,1,B11+1) -> 9 | C12: =C11+1/24 -> 2016-01-01T09:00:00 | D12: 42370.375 | E12: 790.3 | F12: 510.12 | G12: 790.3 | H12: 27.22 | I12: 21.48 | J12: 4.69 | K12: 0
A13: 20160101:0246 | B13: 10 | C13: 2016-01-01T10:00:00 | D13: 42370.41667 | E13: 960.7 | F13: 733.4 | G13: 960.7 | H13: 38.04 | I13: 23.52 | J13: 4.9 | K13: 0
A14: 20160101:0346 | B14: 11 | C14: 2016-01-01T11:00:00 | D14: 42370.45833 | E14: 1042.9 | F14: 895.74 | G14: 1042.9 | H14: 46.55 | I14: 25.43 | J14: 4.69 | K14: 0
A15: 20160101:0446 | B15: 12 | C15: 2016-01-01T12:00:00 | D15: 42370.5 | E15: 1034.04 | F15: 948.66 | G15: 1034.04 | H15: 51.19 | I15: 27.03 | J15: 4.41 | K15: 0
A16: 20160101:0546 | B16: 13 | C16: 2016-01-01T13:00:00 | D16: 42370.54167 | E16: 1019.92 | F16: 936.91 | G16: 1019.92 | H16: 50.56 | I16: 28.14 | J16: 4.28 | K16: 0
A17: 20160101:0646 | B17: 14 | C17: 2016-01-01T14:00:00 | D17: 42370.58333 | E17: 870 | F17: 767.69 | G17: 870 | H17: 44.88 | I17: 28.99 | J17: 4.28 | K17: 0
A18: 20160101:0746 | B18: 15 | C18: 2016-01-01T15:00:00 | D18: 42370.625 | E18: 700.45 | F18: 576.65 | G18: 700.45 | H18: 35.72 | I18: 29.29 | J18: 4.21 | K18: 0
A19: 20160101:0846 | B19: 16 | C19: 2016-01-01T16:00:00 | D19: 42370.66667 | E19: 111 | F19: 120.6 | G19: 111 | H19: 24.53 | I19: 29.19 | J19: 4.14 | K19: 0
A20: 20160101:0946 | B20: 17 | C20: 2016-01-01T17:00:00 | D20: 42370.70833 | E20: 178.41 | F20: 128.31 | G20: 178.41 | H20: 12.19 | I20: 28.52 | J20: 3.79 | K20: 0
A21: 20160101:1046 | B21: 18 | C21: 2016-01-01T18:00:00 | D21: 42370.75 | E21: 0 | F21: 0 | G21: 0 | H21: 0 | I21: 26.87 | J21: 3.59 | K21: 0
A22: 20160101:1146 | B22: 19 | C22: 2016-01-01T19:00:00 | D22: 42370.79167 | E22: 0 | F22: 0 | G22: 0 | H22: 0 | I22: 25.53 | J22: 4.55 | K22: 0
A23: 20160101:1246 | B23: 20 | C23: 2016-01-01T20:00:00 | D23: 42370.83333 | E23: 0 | F23: 0 | G23: 0 | H23: 0 | I23: 24.33 | J23: 4.62 | K23: 0
A24: 20160101:1346 | B24: 21 | C24: 2016-01-01T21:00:00 | D24: 42370.875 | E24: 0 | F24: 0 | G24: 0 | H24: 0 | I24: 23.26 | J24: 4.28 | K24: 0
A25: 20160101:1446 | B25: 22 | C25: 2016-01-01T22:00:00 | D25: 42370.91667 | E25: 0 | F25: 0 | G25: 0 | H25: 0 | I25: 22.38 | J25: 4.34 | K25: 0
A26: 20160101:1546 | B26: 23 | C26: 2016-01-01T23:00:00 | D26: 42370.95833 | E26: 0 | F26: 0 | G26: 0 | H26: 0 | I26: 21.5 | J26: 4.21 | K26: 0
A27: 20160101:1646 | B27: 24 | C27: 2016-01-02 | D27: 42371 | E27: 0 | F27: 0 | G27: 0 | H27: 0 | I27: 20.76 | J27: 3.93 | K27: 0
A28: 20160101:1746 | B28: 1 | C28: 2016-01-02T01:00:00 | D28: 42371.04167 | E28: 0 | F28: 0 | G28: 0 | H28: 0 | I28: 20.21 | J28: 3.72 | K28: 0
A29: 20160101:1846 | B29: 2 | C29: 2016-01-02T02:00:00 | D29: 42371.08333 | E29: 0 | F29: 0 | G29: 0 | H29: 0 | I29: 19.88 | J29: 3.59 | K29: 0
A30: 20160101:1946 | B30: 3 | C30: 2016-01-02T03:00:00 | D30: 42371.125 | E30: 0 | F30: 0 | G30: 0 | H30: 0 | I30: 19.52 | J30: 3.45 | K30: 0
A31: 20160101:2046 | B31: 4 | C31: 2016-01-02T04:00:00 | D31: 42371.16667 | E31: 0 | F31: 0 | G31: 0 | H31: 0 | I31: 19.22 | J31: 3.24 | K31: 0
A32: 20160101:2146 | B32: 5 | C32: 2016-01-02T05:00:00 | D32: 42371.20833 | E32: 0 | F32: 0 | G32: 0 | H32: 0 | I32: 19.01 | J32: 3.17 | K32: 0
A33: 20160101:2246 | B33: 6 | C33: 2016-01-02T06:00:00 | D33: 42371.25 | E33: 0 | F33: 0 | G33: 0 | H33: 0 | I33: 18.77 | J33: 2.97 | K33: 0
A34: 20160101:2346 | B34: 7 | C34: 2016-01-02T07:00:00 | D34: 42371.29167 | E34: 27.07 | F34: 29.41 | G34: 27.07 | H34: 2.13 | I34: 18.97 | J34: 2.62 | K34: 0
A35: 20160102:0046 | B35: 8 | C35: 2016-01-02T08:00:00 | D35: 42371.33333 | E35: 451.91 | F35: 236.55 | G35: 451.91 | H35: 15.03 | I35: 20.14 | J35: 3.52 | K35: 0
A36: 20160102:0146 | B36: 9 | C36: 2016-01-02T09:00:00 | D36: 42371.375 | E36: 758.62 | F36: 494.34 | G36: 758.62 | H36: 27.18 | I36: 21.95 | J36: 3.72 | K36: 0
A37: 20160102:0246 | B37: 10 | C37: 2016-01-02T10:00:00 | D37: 42371.41667 | E37: 960.95 | F37: 732.99 | G37: 960.95 | H37: 38.03 | I37: 24.04 | J37: 3.38 | K37: 0
A38: 20160102:0346 | B38: 11 | C38: 2016-01-02T11:00:00 | D38: 42371.45833 | E38: 1042.54 | F38: 895.21 | G38: 1042.54 | H38: 46.57 | I38: 26.06 | J38: 2.97 | K38: 0
A39: 20160102:0446 | B39: 12 | C39: 2016-01-02T12:00:00 | D39: 42371.5 | E39: 1047.62 | F39: 960.65 | G39: 1047.62 | H39: 51.26 | I39: 27.78 | J39: 2.62 | K39: 0
A40: 20160102:0546 | B40: 13 | C40: 2016-01-02T13:00:00 | D40: 42371.54167 | E40: 1048.14 | F40: 961.92 | G40: 1048.14 | H40: 50.66 | I40: 29.04 | J40: 2.34 | K40: 0
A41: 20160102:0646 | B41: 14 | C41: 2016-01-02T14:00:00 | D41: 42371.58333 | E41: 927.39 | F41: 811.28 | G41: 927.39 | H41: 45.01 | I41: 29.42 | J41: 2.21 | K41: 0
A42: 20160102:0746 | B42: 15 | C42: 2016-01-02T15:00:00 | D42: 42371.625 | E42: 701.97 | F42: 578.54 | G42: 701.97 | H42: 35.85 | I42: 29.8 | J42: 2.28 | K42: 0
A43: 20160102:0846 | B43: 16 | C43: 2016-01-02T16:00:00 | D43: 42371.66667 | E43: 736.71 | F43: 492.27 | G43: 736.71 | H43: 24.66 | I43: 29.68 | J43: 2.34 | K43: 0
A44: 20160102:0946 | B44: 17 | C44: 2016-01-02T17:00:00 | D44: 42371.70833 | E44: 157.62 | F44: 119.03 | G44: 157.62 | H44: 12.32 | I44: 29.05 | J44: 2.34 | K44: 0
A45: 20160102:1046 | B45: 18 | C45: 2016-01-02T18:00:00 | D45: 42371.75 | E45: 0 | F45: 0 | G45: 0 | H45: 0 | I45: 27.31 | J45: 2.21 | K45: 0
A46: 20160102:1146 | B46: 19 | C46: 2016-01-02T19:00:00 | D46: 42371.79167 | E46: 0 | F46: 0 | G46: 0 | H46: 0 | I46: 25.97 | J46: 2.21 | K46: 0
A47: 20160102:1246 | B47: 20 | C47: 2016-01-02T20:00:00 | D47: 42371.83333 | E47: 0 | F47: 0 | G47: 0 | H47: 0 | I47: 25.02 | J47: 2.28 | K47: 0
A48: 20160102:1346 | B48: 21 | C48: 2016-01-02T21:00:00 | D48: 42371.875 | E48: 0 | F48: 0 | G48: 0 | H48: 0 | I48: 24.26 | J48: 2.28 | K48: 0
A49: 20160102:1446 | B49: 22 | C49: 2016-01-02T22:00:00 | D49: 42371.91667 | E49: 0 | F49: 0 | G49: 0 | H49: 0 | I49: 23.76 | J49: 2.34 | K49: 0
A50: 20160102:1546 | B50: 23 | C50: 2016-01-02T23:00:00 | D50: 42371.95833 | E50: 0 | F50: 0 | G50: 0 | H50: 0 | I50: 23.33 | J50: 2.48 | K50: 0
A51: 20160102:1646 | B51: 24 | C51: 2016-01-03 | D51: 42372 | E51: 0 | F51: 0 | G51: 0 | H51: 0 | I51: 22.75 | J51: 2.83 | K51: 0
A52: 20160102:1746 | B52: 1 | C52: 2016-01-03T01:00:00 | D52: 42372.04167 | E52: 0 | F52: 0 | G52: 0 | H52: 0 | I52: 22.27 | J52: 2.83 | K52: 0
A53: 20160102:1846 | B53: 2 | C53: 2016-01-03T02:00:00 | D53: 42372.08333 | E53: 0 | F53: 0 | G53: 0 | H53: 0 | I53: 21.72 | J53: 2.69 | K53: 0
A54: 20160102:1946 | B54: 3 | C54: 2016-01-03T03:00:00 | D54: 42372.125 | E54: 0 | F54: 0 | G54: 0 | H54: 0 | I54: 20.92 | J54: 2.62 | K54: 0
A55: 20160102:2046 | B55: 4 | C55: 2016-01-03T04:00:00 | D55: 42372.16667 | E55: 0 | F55: 0 | G55: 0 | H55: 0 | I55: 20.23 | J55: 2.48 | K55: 0
A56: 20160102:2146 | B56: 5 | C56: 2016-01-03T05:00:00 | D56: 42372.20833 | E56: 0 | F56: 0 | G56: 0 | H56: 0 | I56: 19.67 | J56: 2.28 | K56: 0
A57: 20160102:2246 | B57: 6 | C57: 2016-01-03T06:00:00 | D57: 42372.25 | E57: 0 | F57: 0 | G57: 0 | H57: 0 | I57: 19.25 | J57: 2.14 | K57: 0
A58: 20160102:2346 | B58: 7 | C58: 2016-01-03T07:00:00 | D58: 42372.29167 | E58: 25.27 | F58: 27.45 | G58: 25.27 | H58: 2.06 | I58: 19.11 | J58: 1.93 | K58: 0
A59: 20160103:0046 | B59: 8 | C59: 2016-01-03T08:00:00 | D59: 42372.33333 | E59: 487.14 | F59: 247.69 | G59: 487.14 | H59: 14.98 | I59: 20.82 | J59: 2.41 | K59: 0
A60: 20160103:0146 | B60: 9 | C60: 2016-01-03T09:00:00 | D60: 42372.375 | E60: 757.04 | F60: 492.75 | G60: 757.04 | H60: 27.15 | I60: 23.23 | J60: 2.48 | K60: 0
A61: 20160103:0246 | B61: 10 | C61: 2016-01-03T10:00:00 | D61: 42372.41667 | E61: 961.09 | F61: 732.52 | G61: 961.09 | H61: 38.02 | I61: 25.79 | J61: 2.14 | K61: 0
A62: 20160103:0346 | B62: 11 | C62: 2016-01-03T11:00:00 | D62: 42372.45833 | E62: 1014.58 | F62: 873.49 | G62: 1014.58 | H62: 46.6 | I62: 28.16 | J62: 2.14 | K62: 0
A63: 20160103:0446 | B63: 12 | C63: 2016-01-03T12:00:00 | D63: 42372.5 | E63: 991.24 | F63: 912.89 | G63: 991.24 | H63: 51.33 | I63: 29.77 | J63: 1.93 | K63: 0
A64: 20160103:0546 | B64: 13 | C64: 2016-01-03T13:00:00 | D64: 42372.54167 | E64: 975.09 | F64: 900.3 | G64: 975.09 | H64: 50.78 | I64: 30.67 | J64: 1.45 | K64: 0
A65: 20160103:0646 | B65: 14 | C65: 2016-01-03T14:00:00 | D65: 42372.58333 | E65: 951.28 | F65: 830.13 | G65: 951.28 | H65: 45.14 | I65: 31.14 | J65: 0.55 | K65: 0
A66: 20160103:0746 | B66: 15 | C66: 2016-01-03T15:00:00 | D66: 42372.625 | E66: 882.79 | F66: 692.85 | G66: 882.79 | H66: 35.99 | I66: 30.97 | J66: 0.21 | K66: 0
A67: 20160103:0846 | B67: 16 | C67: 2016-01-03T16:00:00 | D67: 42372.66667 | E67: 707.64 | F67: 478.8 | G67: 707.64 | H67: 24.79 | I67: 30.82 | J67: 0.21 | K67: 0
A68: 20160103:0946 | B68: 17 | C68: 2016-01-03T17:00:00 | D68: 42372.70833 | E68: 445.71 | F68: 237.42 | G68: 445.71 | H68: 12.45 | I68: 30.4 | J68: 0.34 | K68: 0
A69: 20160103:1046 | B69: 18 | C69: 2016-01-03T18:00:00 | D69: 42372.75 | E69: 0 | F69: 0 | G69: 0 | H69: 0 | I69: 29.17 | J69: 0.69 | K69: 0
A70: 20160103:1146 | B70: 19 | C70: 2016-01-03T19:00:00 | D70: 42372.79167 | E70: 0 | F70: 0 | G70: 0 | H70: 0 | I70: 27.51 | J70: 1.17 | K70: 0
A71: 20160103:1246 | B71: 20 | C71: 2016-01-03T20:00:00 | D71: 42372.83333 | E71: 0 | F71: 0 | G71: 0 | H71: 0 | I71: 26.04 | J71: 1.86 | K71: 0
A72: 20160103:1346 | B72: 21 | C72: 2016-01-03T21:00:00 | D72: 42372.875 | E72: 0 | F72: 0 | G72: 0 | H72: 0 | I72: 24.9 | J72: 2.14 | K72: 0
A73: 20160103:1446 | B73: 22 | C73: 2016-01-03T22:00:00 | D73: 42372.91667 | E73: 0 | F73: 0 | G73: 0 | H73: 0 | I73: 24.1 | J73: 2.14 | K73: 0
A74: 20160103:1546 | B74: 23 | C74: 2016-01-03T23:00:00 | D74: 42372.95833 | E74: 0 | F74: 0 | G74: 0 | H74: 0 | I74: 23.51 | J74: 2.21 | K74: 0
A75: 20160103:1646 | B75: 24 | C75: 2016-01-04 | D75: =C75 -> 42373 | E75: 0 | F75: 0 | G75: =IF($G$5,E75,F75) -> 0 | H75: 0 | I75: 22.96 | J75: 2.21 | K75: 0
A76: 20160103:1746 | B76: =IF(B75=24,1,B75+1) -> 1 | C76: =C75+1/24 -> 2016-01-04T01:00:00 | D76: 42373.04167 | E76: 0 | F76: 0 | G76: 0 | H76: 0 | I76: 22.49 | J76: 2.14 | K76: 0
A77: 20160103:1846 | B77: 2 | C77: 2016-01-04T02:00:00 | D77: 42373.08333 | E77: 0 | F77: 0 | G77: 0 | H77: 0 | I77: 22.13 | J77: 2.28 | K77: 0
A78: 20160103:1946 | B78: 3 | C78: 2016-01-04T03:00:00 | D78: 42373.125 | E78: 0 | F78: 0 | G78: 0 | H78: 0 | I78: 21.76 | J78: 2.28 | K78: 0
A79: 20160103:2046 | B79: 4 | C79: 2016-01-04T04:00:00 | D79: 42373.16667 | E79: 0 | F79: 0 | G79: 0 | H79: 0 | I79: 21.41 | J79: 2.28 | K79: 0
A80: 20160103:2146 | B80: 5 | C80: 2016-01-04T05:00:00 | D80: 42373.20833 | E80: 0 | F80: 0 | G80: 0 | H80: 0 | I80: 21.04 | J80: 2.28 | K80: 0
A81: 20160103:2246 | B81: 6 | C81: 2016-01-04T06:00:00 | D81: 42373.25 | E81: 0 | F81: 0 | G81: 0 | H81: 0 | I81: 20.65 | J81: 2.14 | K81: 0
A82: 20160103:2346 | B82: 7 | C82: 2016-01-04T07:00:00 | D82: 42373.29167 | E82: 37.9 | F82: 41.18 | G82: 37.9 | H82: 2 | I82: 20.41 | J82: 2 | K82: 0
A83: 20160104:0046 | B83: 8 | C83: 2016-01-04T08:00:00 | D83: 42373.33333 | E83: 442.95 | F83: 231.85 | G83: 442.95 | H83: 14.93 | I83: 22.36 | J83: 2.07 | K83: 0
A84: 20160104:0146 | B84: 9 | C84: 2016-01-04T09:00:00 | D84: 42373.375 | E84: 757.66 | F84: 492.43 | G84: 757.66 | H84: 27.11 | I84: 25.18 | J84: 2.07 | K84: 0
A85: 20160104:0246 | B85: 10 | C85: 2016-01-04T10:00:00 | D85: 42373.41667 | E85: 961.13 | F85: 732.01 | G85: 961.13 | H85: 38.02 | I85: 27.95 | J85: 2.07 | K85: 0
A86: 20160104:0346 | B86: 11 | C86: 2016-01-04T11:00:00 | D86: 42373.45833 | E86: 1028.56 | F86: 884.06 | G86: 1028.56 | H86: 46.64 | I86: 29.89 | J86: 1.93 | K86: 0
A87: 20160104:0446 | B87: 12 | C87: 2016-01-04T12:00:00 | D87: 42373.5 | E87: 1048 | F87: 961.72 | G87: 1048 | H87: 51.42 | I87: 30.98 | J87: 1.17 | K87: 0
A88: 20160104:0546 | B88: 13 | C88: 2016-01-04T13:00:00 | D88: 42373.54167 | E88: 1035.42 | F88: 952.54 | G88: 1035.42 | H88: 50.9 | I88: 31.68 | J88: 0.62 | K88: 0
A89: 20160104:0646 | B89: 14 | C89: 2016-01-04T14:00:00 | D89: 42373.58333 | E89: 1021.86 | F89: 885.56 | G89: 1021.86 | H89: 45.28 | I89: 32.03 | J89: 1.1 | K89: 0
A90: 20160104:0746 | B90: 15 | C90: 2016-01-04T15:00:00 | D90: 42373.625 | E90: 908.68 | F90: 710.57 | G90: 908.68 | H90: 36.13 | I90: 31.96 | J90: 0.97 | K90: 0
A91: 20160104:0846 | B91: 16 | C91: 2016-01-04T16:00:00 | D91: 42373.66667 | E91: 795.79 | F91: 524.82 | G91: 795.79 | H91: 24.93 | I91: 31.7 | J91: 0.76 | K91: 0
A92: 20160104:0946 | B92: 17 | C92: 2016-01-04T17:00:00 | D92: 42373.70833 | E92: 225.65 | F92: 151.2 | G92: 225.65 | H92: 12.58 | I92: 31.22 | J92: 0.34 | K92: 0
A93: 20160104:1046 | B93: 18 | C93: 2016-01-04T18:00:00 | D93: 42373.75 | E93: 0 | F93: 0 | G93: 0 | H93: 0 | I93: 30.07 | J93: 0.28 | K93: 0
A94: 20160104:1146 | B94: 19 | C94: 2016-01-04T19:00:00 | D94: 42373.79167 | E94: 0 | F94: 0 | G94: 0 | H94: 0 | I94: 28.52 | J94: 0.69 | K94: 0
A95: 20160104:1246 | B95: 20 | C95: 2016-01-04T20:00:00 | D95: 42373.83333 | E95: 0 | F95: 0 | G95: 0 | H95: 0 | I95: 26.85 | J95: 1.24 | K95: 0
A96: 20160104:1346 | B96: 21 | C96: 2016-01-04T21:00:00 | D96: 42373.875 | E96: 0 | F96: 0 | G96: 0 | H96: 0 | I96: 25.67 | J96: 1.45 | K96: 0
A97: 20160104:1446 | B97: 22 | C97: 2016-01-04T22:00:00 | D97: 42373.91667 | E97: 0 | F97: 0 | G97: 0 | H97: 0 | I97: 24.59 | J97: 1.45 | K97: 0
A98: 20160104:1546 | B98: 23 | C98: 2016-01-04T23:00:00 | D98: 42373.95833 | E98: 0 | F98: 0 | G98: 0 | H98: 0 | I98: 23.72 | J98: 1.38 | K98: 0
A99: 20160104:1646 | B99: 24 | C99: 2016-01-05 | D99: 42374 | E99: 0 | F99: 0 | G99: 0 | H99: 0 | I99: 23.1 | J99: 1.31 | K99: 0
A100: 20160104:1746 | B100: 1 | C100: 2016-01-05T01:00:00 | D100: 42374.04167 | E100: 0 | F100: 0 | G100: 0 | H100: 0 | I100: 22.51 | J100: 1.24 | K100: 0
A101: 20160104:1846 | B101: 2 | C101: 2016-01-05T02:00:00 | D101: 42374.08333 | E101: 0 | F101: 0 | G101: 0 | H101: 0 | I101: 24.07 | J101: 0.62 | K101: 0
A102: 20160104:1946 | B102: 3 | C102: 2016-01-05T03:00:00 | D102: 42374.125 | E102: 0 | F102: 0 | G102: 0 | H102: 0 | I102: 23.43 | J102: 0.55 | K102: 0
A103: 20160104:2046 | B103: 4 | C103: 2016-01-05T04:00:00 | D103: 42374.16667 | E103: 0 | F103: 0 | G103: 0 | H103: 0 | I103: 22.9 | J103: 0.34 | K103: 0
A104: 20160104:2146 | B104: 5 | C104: 2016-01-05T05:00:00 | D104: 42374.20833 | E104: 0 | F104: 0 | G104: 0 | H104: 0 | I104: 22.54 | J104: 0.34 | K104: 0
A105: 20160104:2246 | B105: 6 | C105: 2016-01-05T06:00:00 | D105: 42374.25 | E105: 0 | F105: 0 | G105: 0 | H105: 0 | I105: 21.34 | J105: 0.9 | K105: 0
A106: 20160104:2346 | B106: 7 | C106: 2016-01-05T07:00:00 | D106: 42374.29167 | E106: 19.85 | F106: 21.57 | G106: 19.85 | H106: 1.94 | I106: 20.76 | J106: 1.03 | K106: 0
A107: 20160105:0046 | B107: 8 | C107: 2016-01-05T08:00:00 | D107: 42374.33333 | E107: 297.05 | F107: 181.84 | G107: 297.05 | H107: 14.88 | I107: 23.9 | J107: 0.41 | K107: 0
A108: 20160105:0146 | B108: 9 | C108: 2016-01-05T09:00:00 | D108: 42374.375 | E108: 626.9 | F108: 431.55 | G108: 626.9 | H108: 27.09 | I108: 27.05 | J108: 0.41 | K108: 0
A109: 20160105:0246 | B109: 10 | C109: 2016-01-05T10:00:00 | D109: 42374.41667 | E109: 882.76 | F109: 683.27 | G109: 882.76 | H109: 38.02 | I109: 29.26 | J109: 0.34 | K109: 0
A110: 20160105:0346 | B110: 11 | C110: 2016-01-05T11:00:00 | D110: 42374.45833 | E110: 1014.84 | F110: 873.44 | G110: 1014.84 | H110: 46.68 | I110: 30.85 | J110: 0.34 | K110: 0
A111: 20160105:0446 | B111: 12 | C111: 2016-01-05T12:00:00 | D111: 42374.5 | E111: 1020.31 | F111: 938.28 | G111: 1020.31 | H111: 51.51 | I111: 31.69 | J111: 0.76 | K111: 0
A112: 20160105:0546 | B112: 13 | C112: 2016-01-05T13:00:00 | D112: 42374.54167 | E112: 1034.94 | F112: 952.95 | G112: 1034.94 | H112: 51.03 | I112: 32.4 | J112: 1.17 | K112: 0
A113: 20160105:0646 | B113: 14 | C113: 2016-01-05T14:00:00 | D113: 42374.58333 | E113: 1007.59 | F113: 875.43 | G113: 1007.59 | H113: 45.43 | I113: 32.24 | J113: 1.45 | K113: 0
A114: 20160105:0746 | B114: 15 | C114: 2016-01-05T15:00:00 | D114: 42374.625 | E114: 964.16 | F114: 747.53 | G114: 964.16 | H114: 36.28 | I114: 32.31 | J114: 1.52 | K114: 0
A115: 20160105:0846 | B115: 16 | C115: 2016-01-05T16:00:00 | D115: 42374.66667 | E115: 810.89 | F115: 533.69 | G115: 810.89 | H115: 25.07 | I115: 32.03 | J115: 1.38 | K115: 0
A116: 20160105:0946 | B116: 17 | C116: 2016-01-05T17:00:00 | D116: 42374.70833 | E116: 261.75 | F116: 167.43 | G116: 261.75 | H116: 12.71 | I116: 31.54 | J116: 1.1 | K116: 0
A117: 20160105:1046 | B117: 18 | C117: 2016-01-05T18:00:00 | D117: 42374.75 | E117: 0 | F117: 0 | G117: 0 | H117: 0 | I117: 30.28 | J117: 1.38 | K117: 0
A118: 20160105:1146 | B118: 19 | C118: 2016-01-05T19:00:00 | D118: 42374.79167 | E118: 0 | F118: 0 | G118: 0 | H118: 0 | I118: 28.66 | J118: 1.93 | K118: 0
A119: 20160105:1246 | B119: 20 | C119: 2016-01-05T20:00:00 | D119: 42374.83333 | E119: 0 | F119: 0 | G119: 0 | H119: 0 | I119: 27.3 | J119: 2.07 | K119: 0
A120: 20160105:1346 | B120: 21 | C120: 2016-01-05T21:00:00 | D120: 42374.875 | E120: 0 | F120: 0 | G120: 0 | H120: 0 | I120: 26.24 | J120: 2.14 | K120: 0
A121: 20160105:1446 | B121: 22 | C121: 2016-01-05T22:00:00 | D121: 42374.91667 | E121: 0 | F121: 0 | G121: 0 | H121: 0 | I121: 25.48 | J121: 2.07 | K121: 0
A122: 20160105:1546 | B122: 23 | C122: 2016-01-05T23:00:00 | D122: 42374.95833 | E122: 0 | F122: 0 | G122: 0 | H122: 0 | I122: 24.76 | J122: 2.07 | K122: 0
A123: 20160105:1646 | B123: 24 | C123: 2016-01-06 | D123: 42375 | E123: 0 | F123: 0 | G123: 0 | H123: 0 | I123: 24.13 | J123: 2.07 | K123: 0
A124: 20160105:1746 | B124: 1 | C124: 2016-01-06T01:00:00 | D124: 42375.04167 | E124: 0 | F124: 0 | G124: 0 | H124: 0 | I124: 23.6 | J124: 2 | K124: 0
A125: 20160105:1846 | B125: 2 | C125: 2016-01-06T02:00:00 | D125: 42375.08333 | E125: 0 | F125: 0 | G125: 0 | H125: 0 | I125: 23.27 | J125: 2.07 | K125: 0
A126: 20160105:1946 | B126: 3 | C126: 2016-01-06T03:00:00 | D126: 42375.125 | E126: 0 | F126: 0 | G126: 0 | H126: 0 | I126: 23.16 | J126: 1.93 | K126: 0
A127: 20160105:2046 | B127: 4 | C127: 2016-01-06T04:00:00 | D127: 42375.16667 | E127: 0 | F127: 0 | G127: 0 | H127: 0 | I127: 22.82 | J127: 1.66 | K127: 0
A128: 20160105:2146 | B128: 5 | C128: 2016-01-06T05:00:00 | D128: 42375.20833 | E128: 0 | F128: 0 | G128: 0 | H128: 0 | I128: 22.68 | J128: 0.97 | K128: 0
A129: 20160105:2246 | B129: 6 | C129: 2016-01-06T06:00:00 | D129: 42375.25 | E129: 0 | F129: 0 | G129: 0 | H129: 0 | I129: 23.39 | J129: 0.21 | K129: 0
A130: 20160105:2346 | B130: 7 | C130: 2016-01-06T07:00:00 | D130: 42375.29167 | E130: 6.32 | F130: 6.86 | G130: 6.32 | H130: 1.88 | I130: 22.64 | J130: 0.76 | K130: 0
A131: 20160106:0046 | B131: 8 | C131: 2016-01-06T08:00:00 | D131: 42375.33333 | E131: 55.95 | F131: 60.79 | G131: 55.95 | H131: 14.84 | I131: 24.51 | J131: 0.41 | K131: 0
A132: 20160106:0146 | B132: 9 | C132: 2016-01-06T09:00:00 | D132: 42375.375 | E132: 455.97 | F132: 349.08 | G132: 455.97 | H132: 27.07 | I132: 26.48 | J132: 1.1 | K132: 0
A133: 20160106:0246 | B133: 10 | C133: 2016-01-06T10:00:00 | D133: 42375.41667 | E133: 867.62 | F133: 673.76 | G133: 867.62 | H133: 38.03 | I133: 28.03 | J133: 1.59 | K133: 0
A134: 20160106:0346 | B134: 11 | C134: 2016-01-06T11:00:00 | D134: 42375.45833 | E134: 962.92 | F134: 834.22 | G134: 962.92 | H134: 46.73 | I134: 29.85 | J134: 1.86 | K134: 0
A135: 20160106:0446 | B135: 12 | C135: 2016-01-06T12:00:00 | D135: 42375.5 | E135: 735.51 | F135: 705.36 | G135: 735.51 | H135: 51.6 | I135: 31.19 | J135: 2 | K135: 0
A136: 20160106:0546 | B136: 13 | C136: 2016-01-06T13:00:00 | D136: 42375.54167 | E136: 758.01 | F136: 724.7 | G136: 758.01 | H136: 51.17 | I136: 32.09 | J136: 1.45 | K136: 0
A137: 20160106:0646 | B137: 14 | C137: 2016-01-06T14:00:00 | D137: 42375.58333 | E137: 882.99 | F137: 781.66 | G137: 882.99 | H137: 45.58 | I137: 31.4 | J137: 0.97 | K137: 0
A138: 20160106:0746 | B138: 15 | C138: 2016-01-06T15:00:00 | D138: 42375.625 | E138: 797.33 | F138: 641.93 | G138: 797.33 | H138: 36.43 | I138: 31.46 | J138: 0.83 | K138: 0
A139: 20160106:0846 | B139: 16 | C139: 2016-01-06T16:00:00 | D139: =C139 -> 42375.66667 | E139: 450.18 | F139: 349.88 | G139: =IF($G$5,E139,F139) -> 450.18 | H139: 25.22 | I139: 31.4 | J139: 0.97 | K139: 0
A140: 20160106:0946 | B140: =IF(B139=24,1,B139+1) -> 17 | C140: =C139+1/24 -> 2016-01-06T17:00:00 | D140: 42375.70833 | E140: 73.61 | F140: 74.37 | G140: 73.61 | H140: 12.85 | I140: 30.87 | J140: 0.97 | K140: 0
A141: 20160106:1046 | B141: 18 | C141: 2016-01-06T18:00:00 | D141: 42375.75 | E141: 0 | F141: 0 | G141: 0 | H141: 0 | I141: 29.81 | J141: 1.31 | K141: 0
A142: 20160106:1146 | B142: 19 | C142: 2016-01-06T19:00:00 | D142: 42375.79167 | E142: 0 | F142: 0 | G142: 0 | H142: 0 | I142: 28.46 | J142: 1.45 | K142: 0
A143: 20160106:1246 | B143: 20 | C143: 2016-01-06T20:00:00 | D143: 42375.83333 | E143: 0 | F143: 0 | G143: 0 | H143: 0 | I143: 27.45 | J143: 1.79 | K143: 0
A144: 20160106:1346 | B144: 21 | C144: 2016-01-06T21:00:00 | D144: 42375.875 | E144: 0 | F144: 0 | G144: 0 | H144: 0 | I144: 26.33 | J144: 2.07 | K144: 0
A145: 20160106:1446 | B145: 22 | C145: 2016-01-06T22:00:00 | D145: 42375.91667 | E145: 0 | F145: 0 | G145: 0 | H145: 0 | I145: 25.47 | J145: 2.14 | K145: 0
A146: 20160106:1546 | B146: 23 | C146: 2016-01-06T23:00:00 | D146: 42375.95833 | E146: 0 | F146: 0 | G146: 0 | H146: 0 | I146: 24.86 | J146: 2.21 | K146: 0
A147: 20160106:1646 | B147: 24 | C147: 2016-01-07 | D147: 42376 | E147: 0 | F147: 0 | G147: 0 | H147: 0 | I147: 24.15 | J147: 2.21 | K147: 0
A148: 20160106:1746 | B148: 1 | C148: 2016-01-07T01:00:00 | D148: 42376.04167 | E148: 0 | F148: 0 | G148: 0 | H148: 0 | I148: 23.54 | J148: 2.07 | K148: 0
A149: 20160106:1846 | B149: 2 | C149: 2016-01-07T02:00:00 | D149: 42376.08333 | E149: 0 | F149: 0 | G149: 0 | H149: 0 | I149: 23.23 | J149: 2.07 | K149: 0
A150: 20160106:1946 | B150: 3 | C150: 2016-01-07T03:00:00 | D150: 42376.125 | E150: 0 | F150: 0 | G150: 0 | H150: 0 | I150: 22.82 | J150: 2.21 | K150: 0
A151: 20160106:2046 | B151: 4 | C151: 2016-01-07T04:00:00 | D151: 42376.16667 | E151: 0 | F151: 0 | G151: 0 | H151: 0 | I151: 22.54 | J151: 2.34 | K151: 0
A152: 20160106:2146 | B152: 5 | C152: 2016-01-07T05:00:00 | D152: 42376.20833 | E152: 0 | F152: 0 | G152: 0 | H152: 0 | I152: 22.23 | J152: 2.28 | K152: 0
A153: 20160106:2246 | B153: 6 | C153: 2016-01-07T06:00:00 | D153: 42376.25 | E153: 0 | F153: 0 | G153: 0 | H153: 0 | I153: 21.81 | J153: 2.34 | K153: 0
A154: 20160106:2346 | B154: 7 | C154: 2016-01-07T07:00:00 | D154: 42376.29167 | E154: 14.44 | F154: 15.69 | G154: 14.44 | H154: 1.82 | I154: 21.5 | J154: 2.28 | K154: 0
A155: 20160107:0046 | B155: 8 | C155: 2016-01-07T08:00:00 | D155: 42376.33333 | E155: 105.47 | F155: 98.38 | G155: 105.47 | H155: 14.8 | I155: 23.05 | J155: 2.62 | K155: 0
A156: 20160107:0146 | B156: 9 | C156: 2016-01-07T09:00:00 | D156: 42376.375 | E156: 573.76 | F156: 405.15 | G156: 573.76 | H156: 27.05 | I156: 25.26 | J156: 3.03 | K156: 0
A157: 20160107:0246 | B157: 10 | C157: 2016-01-07T10:00:00 | D157: 42376.41667 | E157: 827.19 | F157: 649.25 | G157: 827.19 | H157: 38.04 | I157: 27.3 | J157: 3.17 | K157: 0
A158: 20160107:0346 | B158: 11 | C158: 2016-01-07T11:00:00 | D158: 42376.45833 | E158: 677.57 | F158: 626.23 | G158: 677.57 | H158: 46.79 | I158: 29.53 | J158: 3.1 | K158: 0
A159: 20160107:0446 | B159: 12 | C159: 2016-01-07T12:00:00 | D159: 42376.5 | E159: 767.32 | F159: 731.5 | G159: 767.32 | H159: 51.71 | I159: 31.12 | J159: 2.62 | K159: 0
A160: 20160107:0546 | B160: 13 | C160: 2016-01-07T13:00:00 | D160: 42376.54167 | E160: 682.63 | F160: 663.82 | G160: 682.63 | H160: 51.31 | I160: 31.62 | J160: 2.14 | K160: 0
A161: 20160107:0646 | B161: 14 | C161: 2016-01-07T14:00:00 | D161: 42376.58333 | E161: 730.63 | F161: 669.3 | G161: 730.63 | H161: 45.73 | I161: 30.52 | J161: 1.72 | K161: 0
A162: 20160107:0746 | B162: 15 | C162: 2016-01-07T15:00:00 | D162: 42376.625 | E162: 944.86 | F162: 737.35 | G162: 944.86 | H162: 36.58 | I162: 30.47 | J162: 1.72 | K162: 0
A163: 20160107:0846 | B163: 16 | C163: 2016-01-07T16:00:00 | D163: 42376.66667 | E163: 703.49 | F163: 481.23 | G163: 703.49 | H163: 25.36 | I163: 30.3 | J163: 2 | K163: 0
A164: 20160107:0946 | B164: 17 | C164: 2016-01-07T17:00:00 | D164: 42376.70833 | E164: 60.13 | F164: 62.64 | G164: 60.13 | H164: 12.98 | I164: 29.83 | J164: 1.93 | K164: 0
A165: 20160107:1046 | B165: 18 | C165: 2016-01-07T18:00:00 | D165: 42376.75 | E165: 0 | F165: 0 | G165: 0 | H165: 0 | I165: 28.48 | J165: 1.93 | K165: 0
A166: 20160107:1146 | B166: 19 | C166: 2016-01-07T19:00:00 | D166: 42376.79167 | E166: 0 | F166: 0 | G166: 0 | H166: 0 | I166: 27.24 | J166: 1.93 | K166: 0
A167: 20160107:1246 | B167: 20 | C167: 2016-01-07T20:00:00 | D167: 42376.83333 | E167: 0 | F167: 0 | G167: 0 | H167: 0 | I167: 26.34 | J167: 2 | K167: 0
A168: 20160107:1346 | B168: 21 | C168: 2016-01-07T21:00:00 | D168: 42376.875 | E168: 0 | F168: 0 | G168: 0 | H168: 0 | I168: 25.53 | J168: 1.93 | K168: 0
A169: 20160107:1446 | B169: 22 | C169: 2016-01-07T22:00:00 | D169: 42376.91667 | E169: 0 | F169: 0 | G169: 0 | H169: 0 | I169: 24.95 | J169: 1.79 | K169: 0
A170: 20160107:1546 | B170: 23 | C170: 2016-01-07T23:00:00 | D170: 42376.95833 | E170: 0 | F170: 0 | G170: 0 | H170: 0 | I170: 24.26 | J170: 1.66 | K170: 0
A171: 20160107:1646 | B171: 24 | C171: 2016-01-08 | D171: 42377 | E171: 0 | F171: 0 | G171: 0 | H171: 0 | I171: 23.59 | J171: 1.45 | K171: 0
A172: 20160107:1746 | B172: 1 | C172: 2016-01-08T01:00:00 | D172: 42377.04167 | E172: 0 | F172: 0 | G172: 0 | H172: 0 | I172: 22.71 | J172: 1.24 | K172: 0
A173: 20160107:1846 | B173: 2 | C173: 2016-01-08T02:00:00 | D173: 42377.08333 | E173: 0 | F173: 0 | G173: 0 | H173: 0 | I173: 22.79 | J173: 1.45 | K173: 0
A174: 20160107:1946 | B174: 3 | C174: 2016-01-08T03:00:00 | D174: 42377.125 | E174: 0 | F174: 0 | G174: 0 | H174: 0 | I174: 22.43 | J174: 1.86 | K174: 0
A175: 20160107:2046 | B175: 4 | C175: 2016-01-08T04:00:00 | D175: 42377.16667 | E175: 0 | F175: 0 | G175: 0 | H175: 0 | I175: 22.53 | J175: 2.41 | K175: 0
A176: 20160107:2146 | B176: 5 | C176: 2016-01-08T05:00:00 | D176: 42377.20833 | E176: 0 | F176: 0 | G176: 0 | H176: 0 | I176: 22.61 | J176: 2.83 | K176: 0
A177: 20160107:2246 | B177: 6 | C177: 2016-01-08T06:00:00 | D177: 42377.25 | E177: 0 | F177: 0 | G177: 0 | H177: 0 | I177: 22.18 | J177: 2.55 | K177: 0
A178: 20160107:2346 | B178: 7 | C178: 2016-01-08T07:00:00 | D178: 42377.29167 | E178: 10.83 | F178: 11.77 | G178: 10.83 | H178: 1.77 | I178: 21.8 | J178: 2.28 | K178: 0
A179: 20160108:0046 | B179: 8 | C179: 2016-01-08T08:00:00 | D179: 42377.33333 | E179: 28.88 | F179: 31.38 | G179: 28.88 | H179: 14.77 | I179: 22.91 | J179: 2.69 | K179: 0
A180: 20160108:0146 | B180: 9 | C180: 2016-01-08T09:00:00 | D180: 42377.375 | E180: 316.02 | F180: 274.14 | G180: 316.02 | H180: 27.04 | I180: 24.53 | J180: 2.9 | K180: 0
A181: 20160108:0246 | B181: 10 | C181: 2016-01-08T10:00:00 | D181: 42377.41667 | E181: 484.39 | F181: 438.46 | G181: 484.39 | H181: 38.06 | I181: 26.86 | J181: 2.76 | K181: 0
A182: 20160108:0346 | B182: 11 | C182: 2016-01-08T11:00:00 | D182: 42377.45833 | E182: 978.1 | F182: 845.48 | G182: 978.1 | H182: 46.85 | I182: 28.8 | J182: 2.48 | K182: 0
A183: 20160108:0446 | B183: 12 | C183: 2016-01-08T12:00:00 | D183: 42377.5 | E183: 1021.21 | F183: 940.61 | G183: 1021.21 | H183: 51.82 | I183: 30.6 | J183: 2.28 | K183: 0
A184: 20160108:0546 | B184: 13 | C184: 2016-01-08T13:00:00 | D184: 42377.54167 | E184: 1043.58 | F184: 963.32 | G184: 1043.58 | H184: 51.46 | I184: 31.17 | J184: 1.52 | K184: 0
A185: 20160108:0646 | B185: 14 | C185: 2016-01-08T14:00:00 | D185: 42377.58333 | E185: 1018.14 | F185: 887.05 | G185: 1018.14 | H185: 45.89 | I185: 30.01 | J185: 1.59 | K185: 0
A186: 20160108:0746 | B186: 15 | C186: 2016-01-08T15:00:00 | D186: 42377.625 | E186: 353.86 | F186: 347.97 | G186: 353.86 | H186: 36.74 | I186: 30.13 | J186: 1.66 | K186: 0
A187: 20160108:0846 | B187: 16 | C187: 2016-01-08T16:00:00 | D187: 42377.66667 | E187: 751.79 | F187: 506.81 | G187: 751.79 | H187: 25.51 | I187: 29.81 | J187: 1.59 | K187: 0
A188: 20160108:0946 | B188: 17 | C188: 2016-01-08T17:00:00 | D188: 42377.70833 | E188: 111.43 | F188: 98.47 | G188: 111.43 | H188: 13.12 | I188: 29.48 | J188: 1.52 | K188: 0
A189: 20160108:1046 | B189: 18 | C189: 2016-01-08T18:00:00 | D189: 42377.75 | E189: 0 | F189: 0 | G189: 0 | H189: 0 | I189: 28.56 | J189: 1.31 | K189: 0
A190: 20160108:1146 | B190: 19 | C190: 2016-01-08T19:00:00 | D190: 42377.79167 | E190: 0 | F190: 0 | G190: 0 | H190: 0 | I190: 27.5 | J190: 1.17 | K190: 0
A191: 20160108:1246 | B191: 20 | C191: 2016-01-08T20:00:00 | D191: 42377.83333 | E191: 0 | F191: 0 | G191: 0 | H191: 0 | I191: 26.55 | J191: 1.24 | K191: 0
A192: 20160108:1346 | B192: 21 | C192: 2016-01-08T21:00:00 | D192: 42377.875 | E192: 0 | F192: 0 | G192: 0 | H192: 0 | I192: 25.62 | J192: 1.24 | K192: 0
A193: 20160108:1446 | B193: 22 | C193: 2016-01-08T22:00:00 | D193: 42377.91667 | E193: 0 | F193: 0 | G193: 0 | H193: 0 | I193: 24.87 | J193: 1.03 | K193: 0
A194: 20160108:1546 | B194: 23 | C194: 2016-01-08T23:00:00 | D194: 42377.95833 | E194: 0 | F194: 0 | G194: 0 | H194: 0 | I194: 24.58 | J194: 1.17 | K194: 0
A195: 20160108:1646 | B195: 24 | C195: 2016-01-09 | D195: 42378 | E195: 0 | F195: 0 | G195: 0 | H195: 0 | I195: 24.49 | J195: 1.38 | K195: 0
A196: 20160108:1746 | B196: 1 | C196: 2016-01-09T01:00:00 | D196: 42378.04167 | E196: 0 | F196: 0 | G196: 0 | H196: 0 | I196: 24.44 | J196: 1.17 | K196: 0
A197: 20160108:1846 | B197: 2 | C197: 2016-01-09T02:00:00 | D197: 42378.08333 | E197: 0 | F197: 0 | G197: 0 | H197: 0 | I197: 24.55 | J197: 1.1 | K197: 0
A198: 20160108:1946 | B198: 3 | C198: 2016-01-09T03:00:00 | D198: 42378.125 | E198: 0 | F198: 0 | G198: 0 | H198: 0 | I198: 24.55 | J198: 1.1 | K198: 0
A199: 20160108:2046 | B199: 4 | C199: 2016-01-09T04:00:00 | D199: 42378.16667 | E199: 0 | F199: 0 | G199: 0 | H199: 0 | I199: 24.59 | J199: 1.17 | K199: 0
A200: 20160108:2146 | B200: 5 | C200: 2016-01-09T05:00:00 | D200: 42378.20833 | E200: 0 | F200: 0 | G200: 0 | H200: 0 | I200: 24.68 | J200: 1.24 | K200: 0
A201: 20160108:2246 | B201: 6 | C201: 2016-01-09T06:00:00 | D201: 42378.25 | E201: 0 | F201: 0 | G201: 0 | H201: 0 | I201: 24.63 | J201: 1.59 | K201: 0
... 8598 more rows

Sheet One Week
H1: Load Pattern
K2: Start | L2: 2016-11-23 | S2: Difference | T2: =AC6 -> 2.589977413
N3: STC | P3: Generation | Q3: Solar Cap
N4: 1000 | P4: 100 | Q4: 14 | S4: Duration | T4: =T6/T7 -> 4.555555556
X5: Total | Y5: Total | Z5: Battery Cap | AA5: Total Prod | AC5: Total Difference
G6: Std Dev | H6: 12 | K6: Sum | P6: =SUM(P10:P177) -> 477.686558 | Q6: =SUM(Q10:Q177) -> 683.12622 | S6: kWh Cap | T6: 41 | X6: =SUM(X10:X177) -> 260.8112567 | Y6: =SUM(Y10:Y177) -> 234.3369418 | Z6: =MAX(Z10:Z177) -> 41 | AA6: =SUM(AA17:AA177) -> 917.4631618 | AC6: =SUM(AC17:AC177) -> 2.589977413
S7: kW Cap | T7: 9
F8: Hour | G8: Load Percent | H8: Normal | J8: Count | L8: Hour | M8: Solar | N8: Capacity Factor | O8: Pattern | P8: Target Load | Q8: Solar Production No PR | R8: Surplus Solar | S8: Desired Discharge | T8: Capacity | U8: Less: Opening | V8: Max Charge | W8: Opening | X8: Add: Charge | Y8: Less: Discharge | Z8: Closing | AA8: Solar + Discharge | AB8: Total Load Met | AC8: Load Met vs Target
F10: 1 | G10: 1 | H10: =_xlfn.NORM.DIST(F10,12,$H$6,0) -> 0.02184061276 | J10: 1 | K10: =L2 -> 2016-11-23 | L10: =HOUR(K10)+1 -> 1 | M10: =LOOKUP(K10,'Hourly Solar'!C:C,'Hourly Solar'!G:G) -> 0 | N10: =M10/$N$4 -> 0 | O10: =LOOKUP(L10,F:F,H:H) -> 0.02184061276 | P10: =O10*$P$4 -> 2.184061276 | Q10: =$Q$4*N10 -> 0 | R10: =MAX(Q10-P10,0) -> 0 | S10: =MAX(P10-Q10,0) -> 2.184061276 | T10: =$T$6 -> 41 | U10: =W10 -> 0 | V10: =T10-U10 -> 41 | W10: =Z9 -> 0 | X10: =MIN(R10,V10,$T$7) -> 0 | Y10: =MIN(S10,W10,$T$7) -> 0 | Z10: =W10+X10-Y10 -> 0 | AA10: =Q10+Y10 -> 0 | AB10: =Y10+Q10-R10 -> 0
F11: 2 | G11: 1 | H11: =_xlfn.NORM.DIST(F11,12,$H$6,0) -> 0.02349265628 | J11: 2 | K11: =K10+1/24 -> 2016-11-23T01:00:00 | L11: =HOUR(K11)+1 -> 2 | M11: =LOOKUP(K11,'Hourly Solar'!C:C,'Hourly Solar'!G:G) -> 0 | N11: =M11/$N$4 -> 0 | O11: =LOOKUP(L11,F:F,H:H) -> 0.02349265628 | P11: =O11*$P$4 -> 2.349265628 | Q11: =$Q$4*N11 -> 0 | R11: =MAX(Q11-P11,0) -> 0 | S11: =MAX(P11-Q11,0) -> 2.349265628 | T11: =$T$6 -> 41 | U11: =W11 -> 0 | V11: =T11-U11 -> 41 | W11: =Z10 -> 0 | X11: =MIN(R11,V11,$T$7) -> 0 | Y11: =MIN(S11,W11,$T$7) -> 0 | Z11: =W11+X11-Y11 -> 0 | AA11: =Q11+Y11 -> 0 | AB11: =Y11+Q11-R11 -> 0
C12: Solar Difference | D12: =P6-Q6 -> -205.439662 | F12: 3 | G12: 1 | H12: 0.02509478601 | J12: 3 | K12: =K11+1/24 -> 2016-11-23T02:00:00 | L12: 3 | M12: =LOOKUP(K12,'Hourly Solar'!C:C,'Hourly Solar'!G:G) -> 0 | N12: 0 | O12: 0.02509478601 | P12: 2.509478601 | Q12: 0 | R12: 0 | S12: 2.509478601 | T12: 41 | U12: 0 | V12: 41 | W12: 0 | X12: 0 | Y12: 0 | Z12: 0 | AA12: 0 | AB12: 0
C13: Battery Difference | D13: =Y6-X6 -> -26.47431489 | F13: 4 | G13: 1 | H13: 0.02662066713 | J13: 4 | K13: 2016-11-23T03:00:00 | L13: 4 | M13: =LOOKUP(K13,'Hourly Solar'!C:C,'Hourly Solar'!G:G) -> 0 | N13: 0 | O13: 0.02662066713 | P13: 2.662066713 | Q13: 0 | R13: 0 | S13: 2.662066713 | T13: 41 | U13: 0 | V13: 41 | W13: 0 | X13: 0 | Y13: 0 | Z13: 0 | AA13: 0 | AB13: 0
F14: 5 | G14: 1 | H14: 0.0280439019 | J14: 5 | K14: 2016-11-23T04:00:00 | L14: 5 | M14: =LOOKUP(K14,'Hourly Solar'!C:C,'Hourly Solar'!G:G) -> 0 | N14: 0 | O14: 0.0280439019 | P14: 2.80439019 | Q14: 0 | R14: 0 | S14: 2.80439019 | T14: 41 | U14: 0 | V14: 41 | W14: 0 | X14: 0 | Y14: 0 | Z14: 0 | AA14: 0 | AB14: 0
F15: 6 | G15: 1 | H15: 0.02933877723 | J15: 6 | K15: 2016-11-23T05:00:00 | L15: 6 | M15: =LOOKUP(K15,'Hourly Solar'!C:C,'Hourly Solar'!G:G) -> 0 | N15: 0 | O15: 0.02933877723 | P15: 2.933877723 | Q15: 0 | R15: 0 | S15: 2.933877723 | T15: 41 | U15: 0 | V15: 41 | W15: 0 | X15: 0 | Y15: 0 | Z15: 0 | AA15: 0 | AB15: 0
F16: 7 | G16: 1 | H16: 0.03048103053 | J16: 7 | K16: 2016-11-23T06:00:00 | L16: 7 | M16: =LOOKUP(K16,'Hourly Solar'!C:C,'Hourly Solar'!G:G) -> 0 | N16: 0 | O16: 0.03048103053 | P16: 3.048103053 | Q16: 0 | R16: 0 | S16: 3.048103053 | T16: 41 | U16: 0 | V16: 41 | W16: 0 | X16: 0 | Y16: 0 | Z16: 0 | AA16: 0 | AB16: 0
F17: 8 | G17: 1 | H17: 0.03144860231 | J17: 8 | K17: 2016-11-23T07:00:00 | L17: 8 | M17: =LOOKUP(K17,'Hourly Solar'!C:C,'Hourly Solar'!G:G) -> 19.85 | N17: 0.01985 | O17: 0.03144860231 | P17: 3.144860231 | Q17: 0.2779 | R17: 0 | S17: 2.866960231 | T17: 41 | U17: 0 | V17: 41 | W17: 0 | X17: 0 | Y17: 0 | Z17: 0 | AA17: 0.2779 | AB17: 0.2779
F18: 9 | G18: 1 | H18: 0.03222234307 | J18: 9 | K18: 2016-11-23T08:00:00 | L18: 9 | M18: =LOOKUP(K18,'Hourly Solar'!C:C,'Hourly Solar'!G:G) -> 568.37 | N18: 0.56837 | O18: 0.03222234307 | P18: 3.222234307 | Q18: 7.95718 | R18: 4.734945693 | S18: 0 | T18: 41 | U18: 0 | V18: 41 | W18: 0 | X18: 4.734945693 | Y18: 0 | Z18: 4.734945693 | AA18: 7.95718 | AB18: 3.222234307 | AC18: =P18-AB18 -> 0
F19: 10 | G19: 1 | H19: 0.03278664301 | J19: 10 | K19: 2016-11-23T09:00:00 | L19: 10 | M19: =LOOKUP(K19,'Hourly Solar'!C:C,'Hourly Solar'!G:G) -> 271.32 | N19: 0.27132 | O19: 0.03278664301 | P19: 3.278664301 | Q19: 3.79848 | R19: 0.5198156992 | S19: 0 | T19: 41 | U19: 4.734945693 | V19: 36.26505431 | W19: 4.734945693 | X19: 0.5198156992 | Y19: 0 | Z19: 5.254761392 | AA19: 3.79848 | AB19: 3.278664301 | AC19: 0
F20: 11 | G20: 1 | H20: 0.03312995552 | J20: 11 | K20: 2016-11-23T10:00:00 | L20: 11 | M20: =LOOKUP(K20,'Hourly Solar'!C:C,'Hourly Solar'!G:G) -> 688.72 | N20: 0.68872 | O20: 0.03312995552 | P20: 3.312995552 | Q20: 9.64208 | R20: 6.329084448 | S20: 0 | T20: 41 | U20: 5.254761392 | V20: 35.74523861 | W20: 5.254761392 | X20: 6.329084448 | Y20: 0 | Z20: 11.58384584 | AA20: 9.64208 | AB20: 3.312995552 | AC20: 0
F21: 12 | G21: 1 | H21: 0.03324519003 | J21: 12 | K21: 2016-11-23T11:00:00 | L21: 12 | M21: =LOOKUP(K21,'Hourly Solar'!C:C,'Hourly Solar'!G:G) -> 914.76 | N21: 0.91476 | O21: 0.03324519003 | P21: 3.324519003 | Q21: 12.80664 | R21: 9.482120997 | S21: 0 | T21: 41 | U21: 11.58384584 | V21: 29.41615416 | W21: 11.58384584 | X21: 9 | Y21: 0 | Z21: 20.58384584 | AA21: 12.80664 | AB21: 3.324519003 | AC21: 0
F22: 13 | G22: 1 | H22: 0.03312995552 | J22: 13 | K22: 2016-11-23T12:00:00 | L22: 13 | M22: =LOOKUP(K22,'Hourly Solar'!C:C,'Hourly Solar'!G:G) -> 948.13 | N22: 0.94813 | O22: 0.03312995552 | P22: 3.312995552 | Q22: 13.27382 | R22: 9.960824448 | S22: 0 | T22: 41 | U22: 20.58384584 | V22: 20.41615416 | W22: 20.58384584 | X22: 9 | Y22: 0 | Z22: 29.58384584 | AA22: 13.27382 | AB22: 3.312995552 | AC22: 0
F23: 14 | G23: 1 | H23: 0.03278664301 | J23: 14 | K23: 2016-11-23T13:00:00 | L23: 14 | M23: =LOOKUP(K23,'Hourly Solar'!C:C,'Hourly Solar'!G:G) -> 615.63 | N23: 0.61563 | O23: 0.03278664301 | P23: 3.278664301 | Q23: 8.61882 | R23: 5.340155699 | S23: 0 | T23: 41 | U23: 29.58384584 | V23: 11.41615416 | W23: 29.58384584 | X23: 5.340155699 | Y23: 0 | Z23: 34.92400154 | AA23: 8.61882 | AB23: 3.278664301 | AC23: 0
F24: 15 | G24: 1 | H24: 0.03222234307 | J24: 15 | K24: 2016-11-23T14:00:00 | L24: 15 | M24: =LOOKUP(K24,'Hourly Solar'!C:C,'Hourly Solar'!G:G) -> 640.7 | N24: 0.6407 | O24: 0.03222234307 | P24: 3.222234307 | Q24: 8.9698 | R24: 5.747565693 | S24: 0 | T24: 41 | U24: 34.92400154 | V24: 6.075998461 | W24: 34.92400154 | X24: 5.747565693 | Y24: 0 | Z24: 40.67156723 | AA24: 8.9698 | AB24: 3.222234307 | AC24: 0
F25: 16 | G25: 1 | H25: 0.03144860231 | J25: 16 | K25: 2016-11-23T15:00:00 | L25: 16 | M25: =LOOKUP(K25,'Hourly Solar'!C:C,'Hourly Solar'!G:G) -> 836.16 | N25: 0.83616 | O25: 0.03144860231 | P25: 3.144860231 | Q25: 11.70624 | R25: 8.561379769 | S25: 0 | T25: 41 | U25: 40.67156723 | V25: 0.3284327672 | W25: 40.67156723 | X25: 0.3284327672 | Y25: 0 | Z25: 41 | AA25: 11.70624 | AB25: 3.144860231 | AC25: 0
F26: 17 | G26: 1 | H26: 0.03048103053 | J26: 17 | K26: 2016-11-23T16:00:00 | L26: 17 | M26: =LOOKUP(K26,'Hourly Solar'!C:C,'Hourly Solar'!G:G) -> 756.36 | N26: 0.75636 | O26: 0.03048103053 | P26: 3.048103053 | Q26: 10.58904 | R26: 7.540936947 | S26: 0 | T26: 41 | U26: 41 | V26: 0 | W26: 41 | X26: 0 | Y26: 0 | Z26: 41 | AA26: 10.58904 | AB26: 3.048103053 | AC26: 0
F27: 18 | G27: 1 | H27: 0.02933877723 | J27: 18 | K27: 2016-11-23T17:00:00 | L27: 18 | M27: =LOOKUP(K27,'Hourly Solar'!C:C,'Hourly Solar'!G:G) -> 72.86 | N27: 0.07286 | O27: 0.02933877723 | P27: 2.933877723 | Q27: 1.02004 | R27: 0 | S27: 1.913837723 | T27: 41 | U27: 41 | V27: 0 | W27: 41 | X27: 0 | Y27: 1.913837723 | Z27: 39.08616228 | AA27: 2.933877723 | AB27: 2.933877723 | AC27: 0
F28: 19 | G28: 1 | H28: 0.0280439019 | J28: 19 | K28: 2016-11-23T18:00:00 | L28: 19 | M28: =LOOKUP(K28,'Hourly Solar'!C:C,'Hourly Solar'!G:G) -> 0 | N28: 0 | O28: 0.0280439019 | P28: 2.80439019 | Q28: 0 | R28: 0 | S28: 2.80439019 | T28: 41 | U28: 39.08616228 | V28: 1.913837723 | W28: 39.08616228 | X28: 0 | Y28: 2.80439019 | Z28: 36.28177209 | AA28: 2.80439019 | AB28: 2.80439019 | AC28: 0
F29: 20 | G29: 1 | H29: 0.02662066713 | J29: 20 | K29: 2016-11-23T19:00:00 | L29: 20 | M29: =LOOKUP(K29,'Hourly Solar'!C:C,'Hourly Solar'!G:G) -> 0 | N29: 0 | O29: 0.02662066713 | P29: 2.662066713 | Q29: 0 | R29: 0 | S29: 2.662066713 | T29: 41 | U29: 36.28177209 | V29: 4.718227913 | W29: 36.28177209 | X29: 0 | Y29: 2.662066713 | Z29: 33.61970537 | AA29: 2.662066713 | AB29: 2.662066713 | AC29: 0
F30: 21 | G30: 1 | H30: 0.02509478601 | J30: 21 | K30: 2016-11-23T20:00:00 | L30: 21 | M30: =LOOKUP(K30,'Hourly Solar'!C:C,'Hourly Solar'!G:G) -> 0 | N30: 0 | O30: 0.02509478601 | P30: 2.509478601 | Q30: 0 | R30: 0 | S30: 2.509478601 | T30: 41 | U30: 33.61970537 | V30: 7.380294625 | W30: 33.61970537 | X30: 0 | Y30: 2.509478601 | Z30: 31.11022677 | AA30: 2.509478601 | AB30: 2.509478601 | AC30: 0
F31: 22 | G31: 1 | H31: 0.02349265628 | J31: 22 | K31: 2016-11-23T21:00:00 | L31: 22 | M31: =LOOKUP(K31,'Hourly Solar'!C:C,'Hourly Solar'!G:G) -> 0 | N31: 0 | O31: 0.02349265628 | P31: 2.349265628 | Q31: 0 | R31: 0 | S31: 2.349265628 | T31: 41 | U31: 31.11022677 | V31: 9.889773227 | W31: 31.11022677 | X31: 0 | Y31: 2.349265628 | Z31: 28.76096115 | AA31: 2.349265628 | AB31: 2.349265628 | AC31: 0
F32: 23 | G32: 1 | H32: 0.02184061276 | J32: 23 | K32: 2016-11-23T22:00:00 | L32: 23 | M32: =LOOKUP(K32,'Hourly Solar'!C:C,'Hourly Solar'!G:G) -> 0 | N32: 0 | O32: 0.02184061276 | P32: 2.184061276 | Q32: 0 | R32: 0 | S32: 2.184061276 | T32: 41 | U32: 28.76096115 | V32: 12.23903885 | W32: 28.76096115 | X32: 0 | Y32: 2.184061276 | Z32: 26.57689987 | AA32: 2.184061276 | AB32: 2.184061276 | AC32: 0
F33: 24 | G33: 1 | H33: 0.02016422704 | J33: 24 | K33: 2016-11-23T23:00:00 | L33: 24 | M33: =LOOKUP(K33,'Hourly Solar'!C:C,'Hourly Solar'!G:G) -> 0 | N33: 0 | O33: 0.02016422704 | P33: 2.016422704 | Q33: 0 | R33: 0 | S33: 2.016422704 | T33: 41 | U33: 26.57689987 | V33: 14.42310013 | W33: 26.57689987 | X33: 0 | Y33: 2.016422704 | Z33: 24.56047717 | AA33: 2.016422704 | AB33: 2.016422704 | AC33: 0
J34: 25 | K34: 2016-11-24 | L34: 1 | M34: =LOOKUP(K34,'Hourly Solar'!C:C,'Hourly Solar'!G:G) -> 0 | N34: 0 | O34: 0.02184061276 | P34: 2.184061276 | Q34: 0 | R34: 0 | S34: 2.184061276 | T34: 41 | U34: 24.56047717 | V34: 16.43952283 | W34: 24.56047717 | X34: 0 | Y34: 2.184061276 | Z34: 22.37641589 | AA34: 2.184061276 | AB34: 2.184061276 | AC34: 0
H35: =SUM(H10:H33) -> 0.6824093686 | J35: 26 | K35: 2016-11-24T01:00:00 | L35: 2 | M35: =LOOKUP(K35,'Hourly Solar'!C:C,'Hourly Solar'!G:G) -> 0 | N35: 0 | O35: 0.02349265628 | P35: 2.349265628 | Q35: 0 | R35: 0 | S35: 2.349265628 | T35: 41 | U35: 22.37641589 | V35: 18.62358411 | W35: 22.37641589 | X35: 0 | Y35: 2.349265628 | Z35: 20.02715026 | AA35: 2.349265628 | AB35: 2.349265628 | AC35: 0
J36: 27 | K36: 2016-11-24T02:00:00 | L36: 3 | M36: =LOOKUP(K36,'Hourly Solar'!C:C,'Hourly Solar'!G:G) -> 0 | N36: 0 | O36: 0.02509478601 | P36: 2.509478601 | Q36: 0 | R36: 0 | S36: 2.509478601 | T36: 41 | U36: 20.02715026 | V36: 20.97284974 | W36: 20.02715026 | X36: 0 | Y36: 2.509478601 | Z36: 17.51767166 | AA36: 2.509478601 | AB36: 2.509478601 | AC36: 0
J37: 28 | K37: 2016-11-24T03:00:00 | L37: 4 | M37: =LOOKUP(K37,'Hourly Solar'!C:C,'Hourly Solar'!G:G) -> 0 | N37: 0 | O37: 0.02662066713 | P37: 2.662066713 | Q37: 0 | R37: 0 | S37: 2.662066713 | T37: 41 | U37: 17.51767166 | V37: 23.48232834 | W37: 17.51767166 | X37: 0 | Y37: 2.662066713 | Z37: 14.85560495 | AA37: 2.662066713 | AB37: 2.662066713 | AC37: 0
J38: 29 | K38: 2016-11-24T04:00:00 | L38: 5 | M38: =LOOKUP(K38,'Hourly Solar'!C:C,'Hourly Solar'!G:G) -> 0 | N38: 0 | O38: 0.0280439019 | P38: 2.80439019 | Q38: 0 | R38: 0 | S38: 2.80439019 | T38: 41 | U38: 14.85560495 | V38: 26.14439505 | W38: 14.85560495 | X38: 0 | Y38: 2.80439019 | Z38: 12.05121476 | AA38: 2.80439019 | AB38: 2.80439019 | AC38: 0
J39: 30 | K39: 2016-11-24T05:00:00 | L39: 6 | M39: =LOOKUP(K39,'Hourly Solar'!C:C,'Hourly Solar'!G:G) -> 0 | N39: 0 | O39: 0.02933877723 | P39: 2.933877723 | Q39: 0 | R39: 0 | S39: 2.933877723 | T39: 41 | U39: 12.05121476 | V39: 28.94878524 | W39: 12.05121476 | X39: 0 | Y39: 2.933877723 | Z39: 9.117337034 | AA39: 2.933877723 | AB39: 2.933877723 | AC39: 0
J40: 31 | K40: 2016-11-24T06:00:00 | L40: 7 | M40: =LOOKUP(K40,'Hourly Solar'!C:C,'Hourly Solar'!G:G) -> 0 | N40: 0 | O40: 0.03048103053 | P40: 3.048103053 | Q40: 0 | R40: 0 | S40: 3.048103053 | T40: 41 | U40: 9.117337034 | V40: 31.88266297 | W40: 9.117337034 | X40: 0 | Y40: 3.048103053 | Z40: 6.069233981 | AA40: 3.048103053 | AB40: 3.048103053 | AC40: 0
J41: 32 | K41: 2016-11-24T07:00:00 | L41: 8 | M41: =LOOKUP(K41,'Hourly Solar'!C:C,'Hourly Solar'!G:G) -> 35.2 | N41: 0.0352 | O41: 0.03144860231 | P41: 3.144860231 | Q41: 0.4928 | R41: 0 | S41: 2.652060231 | T41: 41 | U41: 6.069233981 | V41: 34.93076602 | W41: 6.069233981 | X41: 0 | Y41: 2.652060231 | Z41: 3.41717375 | AA41: 3.144860231 | AB41: 3.144860231 | AC41: 0
J42: 33 | K42: 2016-11-24T08:00:00 | L42: 9 | M42: =LOOKUP(K42,'Hourly Solar'!C:C,'Hourly Solar'!G:G) -> 41.51 | N42: 0.04151 | O42: 0.03222234307 | P42: 3.222234307 | Q42: 0.58114 | R42: 0 | S42: 2.641094307 | T42: 41 | U42: 3.41717375 | V42: 37.58282625 | W42: 3.41717375 | X42: 0 | Y42: 2.641094307 | Z42: 0.7760794435 | AA42: 3.222234307 | AB42: 3.222234307 | AC42: 0
J43: 34 | K43: 2016-11-24T09:00:00 | L43: 10 | M43: =LOOKUP(K43,'Hourly Solar'!C:C,'Hourly Solar'!G:G) -> 117.32 | N43: 0.11732 | O43: 0.03278664301 | P43: 3.278664301 | Q43: 1.64248 | R43: 0 | S43: 1.636184301 | T43: 41 | U43: 0.7760794435 | V43: 40.22392056 | W43: 0.7760794435 | X43: 0 | Y43: 0.7760794435 | Z43: 0 | AA43: 2.418559444 | AB43: 2.418559444 | AC43: 0.8601048573
J44: 35 | K44: 2016-11-24T10:00:00 | L44: 11 | M44: =LOOKUP(K44,'Hourly Solar'!C:C,'Hourly Solar'!G:G) -> 830.15 | N44: 0.83015 | O44: 0.03312995552 | P44: 3.312995552 | Q44: 11.6221 | R44: 8.309104448 | S44: 0 | T44: 41 | U44: 0 | V44: 41 | W44: 0 | X44: 8.309104448 | Y44: 0 | Z44: 8.309104448 | AA44: 11.6221 | AB44: 3.312995552 | AC44: 0
J45: 36 | K45: 2016-11-24T11:00:00 | L45: 12 | M45: =LOOKUP(K45,'Hourly Solar'!C:C,'Hourly Solar'!G:G) -> 742.99 | N45: 0.74299 | O45: 0.03324519003 | P45: 3.324519003 | Q45: 10.40186 | R45: 7.077340997 | S45: 0 | T45: 41 | U45: 8.309104448 | V45: 32.69089555 | W45: 8.309104448 | X45: 7.077340997 | Y45: 0 | Z45: 15.38644544 | AA45: 10.40186 | AB45: 3.324519003 | AC45: 0
J46: 37 | K46: 2016-11-24T12:00:00 | L46: 13 | M46: =LOOKUP(K46,'Hourly Solar'!C:C,'Hourly Solar'!G:G) -> 697.78 | N46: 0.69778 | O46: 0.03312995552 | P46: 3.312995552 | Q46: 9.76892 | R46: 6.455924448 | S46: 0 | T46: 41 | U46: 15.38644544 | V46: 25.61355456 | W46: 15.38644544 | X46: 6.455924448 | Y46: 0 | Z46: 21.84236989 | AA46: 9.76892 | AB46: 3.312995552 | AC46: 0
J47: 38 | K47: 2016-11-24T13:00:00 | L47: 14 | M47: =LOOKUP(K47,'Hourly Solar'!C:C,'Hourly Solar'!G:G) -> 401.73 | N47: 0.40173 | O47: 0.03278664301 | P47: 3.278664301 | Q47: 5.62422 | R47: 2.345555699 | S47: 0 | T47: 41 | U47: 21.84236989 | V47: 19.15763011 | W47: 21.84236989 | X47: 2.345555699 | Y47: 0 | Z47: 24.18792559 | AA47: 5.62422 | AB47: 3.278664301 | AC47: 0
J48: 39 | K48: 2016-11-24T14:00:00 | L48: 15 | M48: =LOOKUP(K48,'Hourly Solar'!C:C,'Hourly Solar'!G:G) -> 655.13 | N48: 0.65513 | O48: 0.03222234307 | P48: 3.222234307 | Q48: 9.17182 | R48: 5.949585693 | S48: 0 | T48: 41 | U48: 24.18792559 | V48: 16.81207441 | W48: 24.18792559 | X48: 5.949585693 | Y48: 0 | Z48: 30.13751128 | AA48: 9.17182 | AB48: 3.222234307 | AC48: 0
J49: 40 | K49: 2016-11-24T15:00:00 | L49: 16 | M49: =LOOKUP(K49,'Hourly Solar'!C:C,'Hourly Solar'!G:G) -> 365.61 | N49: 0.36561 | O49: 0.03144860231 | P49: 3.144860231 | Q49: 5.11854 | R49: 1.973679769 | S49: 0 | T49: 41 | U49: 30.13751128 | V49: 10.86248872 | W49: 30.13751128 | X49: 1.973679769 | Y49: 0 | Z49: 32.11119105 | AA49: 5.11854 | AB49: 3.144860231 | AC49: 0
J50: 41 | K50: 2016-11-24T16:00:00 | L50: 17 | M50: =LOOKUP(K50,'Hourly Solar'!C:C,'Hourly Solar'!G:G) -> 309.85 | N50: 0.30985 | O50: 0.03048103053 | P50: 3.048103053 | Q50: 4.3379 | R50: 1.289796947 | S50: 0 | T50: 41 | U50: 32.11119105 | V50: 8.888808946 | W50: 32.11119105 | X50: 1.289796947 | Y50: 0 | Z50: 33.400988 | AA50: 4.3379 | AB50: 3.048103053 | AC50: =P50-AB50 -> 0
J51: 42 | K51: 2016-11-24T17:00:00 | L51: 18 | M51: =LOOKUP(K51,'Hourly Solar'!C:C,'Hourly Solar'!G:G) -> 404.16 | N51: 0.40416 | O51: 0.02933877723 | P51: 2.933877723 | Q51: 5.65824 | R51: 2.724362277 | S51: 0 | T51: 41 | U51: 33.400988 | V51: 7.599011999 | W51: 33.400988 | X51: 2.724362277 | Y51: 0 | Z51: 36.12535028 | AA51: 5.65824 | AB51: 2.933877723 | AC51: 0
J52: 43 | K52: 2016-11-24T18:00:00 | L52: 19 | M52: =LOOKUP(K52,'Hourly Solar'!C:C,'Hourly Solar'!G:G) -> 0 | N52: 0 | O52: 0.0280439019 | P52: 2.80439019 | Q52: 0 | R52: 0 | S52: 2.80439019 | T52: 41 | U52: 36.12535028 | V52: 4.874649722 | W52: 36.12535028 | X52: 0 | Y52: 2.80439019 | Z52: 33.32096009 | AA52: 2.80439019 | AB52: 2.80439019 | AC52: 0
J53: 44 | K53: 2016-11-24T19:00:00 | L53: 20 | M53: =LOOKUP(K53,'Hourly Solar'!C:C,'Hourly Solar'!G:G) -> 0 | N53: 0 | O53: 0.02662066713 | P53: 2.662066713 | Q53: 0 | R53: 0 | S53: 2.662066713 | T53: 41 | U53: 33.32096009 | V53: 7.679039912 | W53: 33.32096009 | X53: 0 | Y53: 2.662066713 | Z53: 30.65889338 | AA53: 2.662066713 | AB53: 2.662066713 | AC53: 0
J54: 45 | K54: 2016-11-24T20:00:00 | L54: 21 | M54: =LOOKUP(K54,'Hourly Solar'!C:C,'Hourly Solar'!G:G) -> 0 | N54: 0 | O54: 0.02509478601 | P54: 2.509478601 | Q54: 0 | R54: 0 | S54: 2.509478601 | T54: 41 | U54: 30.65889338 | V54: 10.34110662 | W54: 30.65889338 | X54: 0 | Y54: 2.509478601 | Z54: 28.14941477 | AA54: 2.509478601 | AB54: 2.509478601 | AC54: 0
J55: 46 | K55: 2016-11-24T21:00:00 | L55: 22 | M55: =LOOKUP(K55,'Hourly Solar'!C:C,'Hourly Solar'!G:G) -> 0 | N55: 0 | O55: 0.02349265628 | P55: 2.349265628 | Q55: 0 | R55: 0 | S55: 2.349265628 | T55: 41 | U55: 28.14941477 | V55: 12.85058523 | W55: 28.14941477 | X55: 0 | Y55: 2.349265628 | Z55: 25.80014915 | AA55: 2.349265628 | AB55: 2.349265628 | AC55: 0
J56: 47 | K56: 2016-11-24T22:00:00 | L56: 23 | M56: =LOOKUP(K56,'Hourly Solar'!C:C,'Hourly Solar'!G:G) -> 0 | N56: 0 | O56: 0.02184061276 | P56: 2.184061276 | Q56: 0 | R56: 0 | S56: 2.184061276 | T56: 41 | U56: 25.80014915 | V56: 15.19985085 | W56: 25.80014915 | X56: 0 | Y56: 2.184061276 | Z56: 23.61608787 | AA56: 2.184061276 | AB56: 2.184061276 | AC56: 0
J57: 48 | K57: 2016-11-24T23:00:00 | L57: 24 | M57: =LOOKUP(K57,'Hourly Solar'!C:C,'Hourly Solar'!G:G) -> 0 | N57: 0 | O57: 0.02016422704 | P57: 2.016422704 | Q57: 0 | R57: 0 | S57: 2.016422704 | T57: 41 | U57: 23.61608787 | V57: 17.38391213 | W57: 23.61608787 | X57: 0 | Y57: 2.016422704 | Z57: 21.59966517 | AA57: 2.016422704 | AB57: 2.016422704 | AC57: 0
J58: 49 | K58: 2016-11-25 | L58: 1 | M58: =LOOKUP(K58,'Hourly Solar'!C:C,'Hourly Solar'!G:G) -> 0 | N58: 0 | O58: 0.02184061276 | P58: 2.184061276 | Q58: 0 | R58: 0 | S58: 2.184061276 | T58: 41 | U58: 21.59966517 | V58: 19.40033483 | W58: 21.59966517 | X58: 0 | Y58: 2.184061276 | Z58: 19.41560389 | AA58: 2.184061276 | AB58: 2.184061276 | AC58: 0
J59: 50 | K59: 2016-11-25T01:00:00 | L59: 2 | M59: =LOOKUP(K59,'Hourly Solar'!C:C,'Hourly Solar'!G:G) -> 0 | N59: 0 | O59: 0.02349265628 | P59: 2.349265628 | Q59: 0 | R59: 0 | S59: 2.349265628 | T59: 41 | U59: 19.41560389 | V59: 21.58439611 | W59: 19.41560389 | X59: 0 | Y59: 2.349265628 | Z59: 17.06633826 | AA59: 2.349265628 | AB59: 2.349265628 | AC59: 0
J60: 51 | K60: 2016-11-25T02:00:00 | L60: 3 | M60: =LOOKUP(K60,'Hourly Solar'!C:C,'Hourly Solar'!G:G) -> 0 | N60: 0 | O60: 0.02509478601 | P60: 2.509478601 | Q60: 0 | R60: 0 | S60: 2.509478601 | T60: 41 | U60: 17.06633826 | V60: 23.93366174 | W60: 17.06633826 | X60: 0 | Y60: 2.509478601 | Z60: 14.55685966 | AA60: 2.509478601 | AB60: 2.509478601 | AC60: 0
J61: 52 | K61: 2016-11-25T03:00:00 | L61: 4 | M61: =LOOKUP(K61,'Hourly Solar'!C:C,'Hourly Solar'!G:G) -> 0 | N61: 0 | O61: 0.02662066713 | P61: 2.662066713 | Q61: 0 | R61: 0 | S61: 2.662066713 | T61: 41 | U61: 14.55685966 | V61: 26.44314034 | W61: 14.55685966 | X61: 0 | Y61: 2.662066713 | Z61: 11.89479295 | AA61: 2.662066713 | AB61: 2.662066713 | AC61: 0
J62: 53 | K62: 2016-11-25T04:00:00 | L62: 5 | M62: =LOOKUP(K62,'Hourly Solar'!C:C,'Hourly Solar'!G:G) -> 0 | N62: 0 | O62: 0.0280439019 | P62: 2.80439019 | Q62: 0 | R62: 0 | S62: 2.80439019 | T62: 41 | U62: 11.89479295 | V62: 29.10520705 | W62: 11.89479295 | X62: 0 | Y62: 2.80439019 | Z62: 9.090402758 | AA62: 2.80439019 | AB62: 2.80439019 | AC62: 0
J63: 54 | K63: 2016-11-25T05:00:00 | L63: 6 | M63: =LOOKUP(K63,'Hourly Solar'!C:C,'Hourly Solar'!G:G) -> 0 | N63: 0 | O63: 0.02933877723 | P63: 2.933877723 | Q63: 0 | R63: 0 | S63: 2.933877723 | T63: 41 | U63: 9.090402758 | V63: 31.90959724 | W63: 9.090402758 | X63: 0 | Y63: 2.933877723 | Z63: 6.156525035 | AA63: 2.933877723 | AB63: 2.933877723 | AC63: 0
J64: 55 | K64: 2016-11-25T06:00:00 | L64: 7 | M64: =LOOKUP(K64,'Hourly Solar'!C:C,'Hourly Solar'!G:G) -> 0 | N64: 0 | O64: 0.03048103053 | P64: 3.048103053 | Q64: 0 | R64: 0 | S64: 3.048103053 | T64: 41 | U64: 6.156525035 | V64: 34.84347496 | W64: 6.156525035 | X64: 0 | Y64: 3.048103053 | Z64: 3.108421982 | AA64: 3.048103053 | AB64: 3.048103053 | AC64: 0
J65: 56 | K65: 2016-11-25T07:00:00 | L65: 8 | M65: =LOOKUP(K65,'Hourly Solar'!C:C,'Hourly Solar'!G:G) -> 31.59 | N65: 0.03159 | O65: 0.03144860231 | P65: 3.144860231 | Q65: 0.44226 | R65: 0 | S65: 2.702600231 | T65: 41 | U65: 3.108421982 | V65: 37.89157802 | W65: 3.108421982 | X65: 0 | Y65: 2.702600231 | Z65: 0.4058217508 | AA65: 3.144860231 | AB65: 3.144860231 | AC65: 0
J66: 57 | K66: 2016-11-25T08:00:00 | L66: 9 | M66: =LOOKUP(K66,'Hourly Solar'!C:C,'Hourly Solar'!G:G) -> 77.61 | N66: 0.07761 | O66: 0.03222234307 | P66: 3.222234307 | Q66: 1.08654 | R66: 0 | S66: 2.135694307 | T66: 41 | U66: 0.4058217508 | V66: 40.59417825 | W66: 0.4058217508 | X66: 0 | Y66: 0.4058217508 | Z66: 0 | AA66: 1.492361751 | AB66: 1.492361751 | AC66: 1.729872556
J67: 58 | K67: 2016-11-25T09:00:00 | L67: 10 | M67: =LOOKUP(K67,'Hourly Solar'!C:C,'Hourly Solar'!G:G) -> 671.61 | N67: 0.67161 | O67: 0.03278664301 | P67: 3.278664301 | Q67: 9.40254 | R67: 6.123875699 | S67: 0 | T67: 41 | U67: 0 | V67: 41 | W67: 0 | X67: 6.123875699 | Y67: 0 | Z67: 6.123875699 | AA67: 9.40254 | AB67: 3.278664301 | AC67: 0
J68: 59 | K68: 2016-11-25T10:00:00 | L68: 11 | M68: =LOOKUP(K68,'Hourly Solar'!C:C,'Hourly Solar'!G:G) -> 968.74 | N68: 0.96874 | O68: 0.03312995552 | P68: 3.312995552 | Q68: 13.56236 | R68: 10.24936445 | S68: 0 | T68: 41 | U68: 6.123875699 | V68: 34.8761243 | W68: 6.123875699 | X68: 9 | Y68: 0 | Z68: 15.1238757 | AA68: 13.56236 | AB68: 3.312995552 | AC68: 0
J69: 60 | K69: 2016-11-25T11:00:00 | L69: 12 | M69: =LOOKUP(K69,'Hourly Solar'!C:C,'Hourly Solar'!G:G) -> 1031.01 | N69: 1.03101 | O69: 0.03324519003 | P69: 3.324519003 | Q69: 14.43414 | R69: 11.109621 | S69: 0 | T69: 41 | U69: 15.1238757 | V69: 25.8761243 | W69: 15.1238757 | X69: 9 | Y69: 0 | Z69: 24.1238757 | AA69: 14.43414 | AB69: 3.324519003 | AC69: 0
J70: 61 | K70: 2016-11-25T12:00:00 | L70: 13 | M70: =LOOKUP(K70,'Hourly Solar'!C:C,'Hourly Solar'!G:G) -> 1025.93 | N70: 1.02593 | O70: 0.03312995552 | P70: 3.312995552 | Q70: 14.36302 | R70: 11.05002445 | S70: 0 | T70: 41 | U70: 24.1238757 | V70: 16.8761243 | W70: 24.1238757 | X70: 9 | Y70: 0 | Z70: 33.1238757 | AA70: 14.36302 | AB70: 3.312995552 | AC70: 0
J71: 62 | K71: 2016-11-25T13:00:00 | L71: 14 | M71: =LOOKUP(K71,'Hourly Solar'!C:C,'Hourly Solar'!G:G) -> 747.3 | N71: 0.7473 | O71: 0.03278664301 | P71: 3.278664301 | Q71: 10.4622 | R71: 7.183535699 | S71: 0 | T71: 41 | U71: 33.1238757 | V71: 7.876124301 | W71: 33.1238757 | X71: 7.183535699 | Y71: 0 | Z71: 40.3074114 | AA71: 10.4622 | AB71: 3.278664301 | AC71: 0
J72: 63 | K72: 2016-11-25T14:00:00 | L72: 15 | M72: =LOOKUP(K72,'Hourly Solar'!C:C,'Hourly Solar'!G:G) -> 773.03 | N72: 0.77303 | O72: 0.03222234307 | P72: 3.222234307 | Q72: 10.82242 | R72: 7.600185693 | S72: 0 | T72: 41 | U72: 40.3074114 | V72: 0.6925886017 | W72: 40.3074114 | X72: 0.6925886017 | Y72: 0 | Z72: 41 | AA72: 10.82242 | AB72: 3.222234307 | AC72: 0
J73: 64 | K73: 2016-11-25T15:00:00 | L73: 16 | M73: =LOOKUP(K73,'Hourly Solar'!C:C,'Hourly Solar'!G:G) -> 536.68 | N73: 0.53668 | O73: 0.03144860231 | P73: 3.144860231 | Q73: 7.51352 | R73: 4.368659769 | S73: 0 | T73: 41 | U73: 41 | V73: 0 | W73: 41 | X73: 0 | Y73: 0 | Z73: 41 | AA73: 7.51352 | AB73: 3.144860231 | AC73: 0
J74: 65 | K74: 2016-11-25T16:00:00 | L74: 17 | M74: =LOOKUP(K74,'Hourly Solar'!C:C,'Hourly Solar'!G:G) -> 256.57 | N74: 0.25657 | O74: 0.03048103053 | P74: 3.048103053 | Q74: 3.59198 | R74: 0.5438769465 | S74: 0 | T74: 41 | U74: 41 | V74: 0 | W74: 41 | X74: 0 | Y74: 0 | Z74: 41 | AA74: 3.59198 | AB74: 3.048103053 | AC74: 0
J75: 66 | K75: 2016-11-25T17:00:00 | L75: =HOUR(K75)+1 -> 18 | M75: =LOOKUP(K75,'Hourly Solar'!C:C,'Hourly Solar'!G:G) -> 121.78 | N75: =M75/$N$4 -> 0.12178 | O75: =LOOKUP(L75,F:F,H:H) -> 0.02933877723 | P75: =O75*$P$4 -> 2.933877723 | Q75: =$Q$4*N75 -> 1.70492 | R75: =MAX(Q75-P75,0) -> 0 | S75: =MAX(P75-Q75,0) -> 1.228957723 | T75: =$T$6 -> 41 | U75: =W75 -> 41 | V75: =T75-U75 -> 0 | W75: =Z74 -> 41 | X75: =MIN(R75,V75,$T$7) -> 0 | Y75: =MIN(S75,W75,$T$7) -> 1.228957723 | Z75: =W75+X75-Y75 -> 39.77104228 | AA75: =Q75+Y75 -> 2.933877723 | AB75: =Y75+Q75-R75 -> 2.933877723 | AC75: =P75-AB75 -> 0
J76: 67 | K76: =K75+1/24 -> 2016-11-25T18:00:00 | L76: 19 | M76: =LOOKUP(K76,'Hourly Solar'!C:C,'Hourly Solar'!G:G) -> 0 | N76: 0 | O76: 0.0280439019 | P76: 2.80439019 | Q76: 0 | R76: 0 | S76: 2.80439019 | T76: 41 | U76: 39.77104228 | V76: 1.228957723 | W76: 39.77104228 | X76: 0 | Y76: 2.80439019 | Z76: 36.96665209 | AA76: 2.80439019 | AB76: 2.80439019 | AC76: 0
J77: 68 | K77: 2016-11-25T19:00:00 | L77: 20 | M77: =LOOKUP(K77,'Hourly Solar'!C:C,'Hourly Solar'!G:G) -> 0 | N77: 0 | O77: 0.02662066713 | P77: 2.662066713 | Q77: 0 | R77: 0 | S77: 2.662066713 | T77: 41 | U77: 36.96665209 | V77: 4.033347913 | W77: 36.96665209 | X77: 0 | Y77: 2.662066713 | Z77: 34.30458537 | AA77: 2.662066713 | AB77: 2.662066713 | AC77: 0
J78: 69 | K78: 2016-11-25T20:00:00 | L78: 21 | M78: =LOOKUP(K78,'Hourly Solar'!C:C,'Hourly Solar'!G:G) -> 0 | N78: 0 | O78: 0.02509478601 | P78: 2.509478601 | Q78: 0 | R78: 0 | S78: 2.509478601 | T78: 41 | U78: 34.30458537 | V78: 6.695414625 | W78: 34.30458537 | X78: 0 | Y78: 2.509478601 | Z78: 31.79510677 | AA78: 2.509478601 | AB78: 2.509478601 | AC78: 0
J79: 70 | K79: 2016-11-25T21:00:00 | L79: 22 | M79: =LOOKUP(K79,'Hourly Solar'!C:C,'Hourly Solar'!G:G) -> 0 | N79: 0 | O79: 0.02349265628 | P79: 2.349265628 | Q79: 0 | R79: 0 | S79: 2.349265628 | T79: 41 | U79: 31.79510677 | V79: 9.204893227 | W79: 31.79510677 | X79: 0 | Y79: 2.349265628 | Z79: 29.44584115 | AA79: 2.349265628 | AB79: 2.349265628 | AC79: 0
J80: 71 | K80: 2016-11-25T22:00:00 | L80: 23 | M80: =LOOKUP(K80,'Hourly Solar'!C:C,'Hourly Solar'!G:G) -> 0 | N80: 0 | O80: 0.02184061276 | P80: 2.184061276 | Q80: 0 | R80: 0 | S80: 2.184061276 | T80: 41 | U80: 29.44584115 | V80: 11.55415885 | W80: 29.44584115 | X80: 0 | Y80: 2.184061276 | Z80: 27.26177987 | AA80: 2.184061276 | AB80: 2.184061276 | AC80: 0
J81: 72 | K81: 2016-11-25T23:00:00 | L81: 24 | M81: =LOOKUP(K81,'Hourly Solar'!C:C,'Hourly Solar'!G:G) -> 0 | N81: 0 | O81: 0.02016422704 | P81: 2.016422704 | Q81: 0 | R81: 0 | S81: 2.016422704 | T81: 41 | U81: 27.26177987 | V81: 13.73822013 | W81: 27.26177987 | X81: 0 | Y81: 2.016422704 | Z81: 25.24535717 | AA81: 2.016422704 | AB81: 2.016422704 | AC81: 0
J82: 73 | K82: 2016-11-26 | L82: 1 | M82: =LOOKUP(K82,'Hourly Solar'!C:C,'Hourly Solar'!G:G) -> 0 | N82: 0 | O82: 0.02184061276 | P82: 2.184061276 | Q82: 0 | R82: 0 | S82: 2.184061276 | T82: 41 | U82: 25.24535717 | V82: 15.75464283 | W82: 25.24535717 | X82: 0 | Y82: 2.184061276 | Z82: 23.06129589 | AA82: 2.184061276 | AB82: 2.184061276 | AC82: 0
J83: 74 | K83: 2016-11-26T01:00:00 | L83: 2 | M83: =LOOKUP(K83,'Hourly Solar'!C:C,'Hourly Solar'!G:G) -> 0 | N83: 0 | O83: 0.02349265628 | P83: 2.349265628 | Q83: 0 | R83: 0 | S83: 2.349265628 | T83: 41 | U83: 23.06129589 | V83: 17.93870411 | W83: 23.06129589 | X83: 0 | Y83: 2.349265628 | Z83: 20.71203026 | AA83: 2.349265628 | AB83: 2.349265628 | AC83: 0
J84: 75 | K84: 2016-11-26T02:00:00 | L84: 3 | M84: =LOOKUP(K84,'Hourly Solar'!C:C,'Hourly Solar'!G:G) -> 0 | N84: 0 | O84: 0.02509478601 | P84: 2.509478601 | Q84: 0 | R84: 0 | S84: 2.509478601 | T84: 41 | U84: 20.71203026 | V84: 20.28796974 | W84: 20.71203026 | X84: 0 | Y84: 2.509478601 | Z84: 18.20255166 | AA84: 2.509478601 | AB84: 2.509478601 | AC84: 0
J85: 76 | K85: 2016-11-26T03:00:00 | L85: 4 | M85: =LOOKUP(K85,'Hourly Solar'!C:C,'Hourly Solar'!G:G) -> 0 | N85: 0 | O85: 0.02662066713 | P85: 2.662066713 | Q85: 0 | R85: 0 | S85: 2.662066713 | T85: 41 | U85: 18.20255166 | V85: 22.79744834 | W85: 18.20255166 | X85: 0 | Y85: 2.662066713 | Z85: 15.54048495 | AA85: 2.662066713 | AB85: 2.662066713 | AC85: 0
J86: 77 | K86: 2016-11-26T04:00:00 | L86: 5 | M86: =LOOKUP(K86,'Hourly Solar'!C:C,'Hourly Solar'!G:G) -> 0 | N86: 0 | O86: 0.0280439019 | P86: 2.80439019 | Q86: 0 | R86: 0 | S86: 2.80439019 | T86: 41 | U86: 15.54048495 | V86: 25.45951505 | W86: 15.54048495 | X86: 0 | Y86: 2.80439019 | Z86: 12.73609476 | AA86: 2.80439019 | AB86: 2.80439019 | AC86: 0
J87: 78 | K87: 2016-11-26T05:00:00 | L87: 6 | M87: =LOOKUP(K87,'Hourly Solar'!C:C,'Hourly Solar'!G:G) -> 0 | N87: 0 | O87: 0.02933877723 | P87: 2.933877723 | Q87: 0 | R87: 0 | S87: 2.933877723 | T87: 41 | U87: 12.73609476 | V87: 28.26390524 | W87: 12.73609476 | X87: 0 | Y87: 2.933877723 | Z87: 9.802217034 | AA87: 2.933877723 | AB87: 2.933877723 | AC87: 0
J88: 79 | K88: 2016-11-26T06:00:00 | L88: 7 | M88: =LOOKUP(K88,'Hourly Solar'!C:C,'Hourly Solar'!G:G) -> 0 | N88: 0 | O88: 0.03048103053 | P88: 3.048103053 | Q88: 0 | R88: 0 | S88: 3.048103053 | T88: 41 | U88: 9.802217034 | V88: 31.19778297 | W88: 9.802217034 | X88: 0 | Y88: 3.048103053 | Z88: 6.754113981 | AA88: 3.048103053 | AB88: 3.048103053 | AC88: 0
J89: 80 | K89: 2016-11-26T07:00:00 | L89: 8 | M89: =LOOKUP(K89,'Hourly Solar'!C:C,'Hourly Solar'!G:G) -> 19.85 | N89: 0.01985 | O89: 0.03144860231 | P89: 3.144860231 | Q89: 0.2779 | R89: 0 | S89: 2.866960231 | T89: 41 | U89: 6.754113981 | V89: 34.24588602 | W89: 6.754113981 | X89: 0 | Y89: 2.866960231 | Z89: 3.88715375 | AA89: 3.144860231 | AB89: 3.144860231 | AC89: 0
J90: 81 | K90: 2016-11-26T08:00:00 | L90: 9 | M90: =LOOKUP(K90,'Hourly Solar'!C:C,'Hourly Solar'!G:G) -> 46.02 | N90: 0.04602 | O90: 0.03222234307 | P90: 3.222234307 | Q90: 0.64428 | R90: 0 | S90: 2.577954307 | T90: 41 | U90: 3.88715375 | V90: 37.11284625 | W90: 3.88715375 | X90: 0 | Y90: 2.577954307 | Z90: 1.309199444 | AA90: 3.222234307 | AB90: 3.222234307 | AC90: 0
J91: 82 | K91: 2016-11-26T09:00:00 | L91: 10 | M91: =LOOKUP(K91,'Hourly Solar'!C:C,'Hourly Solar'!G:G) -> 343.1 | N91: 0.3431 | O91: 0.03278664301 | P91: 3.278664301 | Q91: 4.8034 | R91: 1.524735699 | S91: 0 | T91: 41 | U91: 1.309199444 | V91: 39.69080056 | W91: 1.309199444 | X91: 1.524735699 | Y91: 0 | Z91: 2.833935143 | AA91: 4.8034 | AB91: 3.278664301 | AC91: 0
J92: 83 | K92: 2016-11-26T10:00:00 | L92: 11 | M92: =LOOKUP(K92,'Hourly Solar'!C:C,'Hourly Solar'!G:G) -> 470.43 | N92: 0.47043 | O92: 0.03312995552 | P92: 3.312995552 | Q92: 6.58602 | R92: 3.273024448 | S92: 0 | T92: 41 | U92: 2.833935143 | V92: 38.16606486 | W92: 2.833935143 | X92: 3.273024448 | Y92: 0 | Z92: 6.106959591 | AA92: 6.58602 | AB92: 3.312995552 | AC92: 0
J93: 84 | K93: 2016-11-26T11:00:00 | L93: 12 | M93: =LOOKUP(K93,'Hourly Solar'!C:C,'Hourly Solar'!G:G) -> 850.06 | N93: 0.85006 | O93: 0.03324519003 | P93: 3.324519003 | Q93: 11.90084 | R93: 8.576320997 | S93: 0 | T93: 41 | U93: 6.106959591 | V93: 34.89304041 | W93: 6.106959591 | X93: 8.576320997 | Y93: 0 | Z93: 14.68328059 | AA93: 11.90084 | AB93: 3.324519003 | AC93: 0
J94: 85 | K94: 2016-11-26T12:00:00 | L94: 13 | M94: =LOOKUP(K94,'Hourly Solar'!C:C,'Hourly Solar'!G:G) -> 1039.73 | N94: 1.03973 | O94: 0.03312995552 | P94: 3.312995552 | Q94: 14.55622 | R94: 11.24322445 | S94: 0 | T94: 41 | U94: 14.68328059 | V94: 26.31671941 | W94: 14.68328059 | X94: 9 | Y94: 0 | Z94: 23.68328059 | AA94: 14.55622 | AB94: 3.312995552 | AC94: 0
J95: 86 | K95: 2016-11-26T13:00:00 | L95: 14 | M95: =LOOKUP(K95,'Hourly Solar'!C:C,'Hourly Solar'!G:G) -> 879.76 | N95: 0.87976 | O95: 0.03278664301 | P95: 3.278664301 | Q95: 12.31664 | R95: 9.037975699 | S95: 0 | T95: 41 | U95: 23.68328059 | V95: 17.31671941 | W95: 23.68328059 | X95: 9 | Y95: 0 | Z95: 32.68328059 | AA95: 12.31664 | AB95: 3.278664301 | AC95: 0
J96: 87 | K96: 2016-11-26T14:00:00 | L96: 15 | M96: =LOOKUP(K96,'Hourly Solar'!C:C,'Hourly Solar'!G:G) -> 668.8 | N96: 0.6688 | O96: 0.03222234307 | P96: 3.222234307 | Q96: 9.3632 | R96: 6.140965693 | S96: 0 | T96: 41 | U96: 32.68328059 | V96: 8.316719413 | W96: 32.68328059 | X96: 6.140965693 | Y96: 0 | Z96: 38.82424628 | AA96: 9.3632 | AB96: 3.222234307 | AC96: 0
J97: 88 | K97: 2016-11-26T15:00:00 | L97: 16 | M97: =LOOKUP(K97,'Hourly Solar'!C:C,'Hourly Solar'!G:G) -> 167.13 | N97: 0.16713 | O97: 0.03144860231 | P97: 3.144860231 | Q97: 2.33982 | R97: 0 | S97: 0.8050402308 | T97: 41 | U97: 38.82424628 | V97: 2.17575372 | W97: 38.82424628 | X97: 0 | Y97: 0.8050402308 | Z97: 38.01920605 | AA97: 3.144860231 | AB97: 3.144860231 | AC97: 0
J98: 89 | K98: 2016-11-26T16:00:00 | L98: 17 | M98: =LOOKUP(K98,'Hourly Solar'!C:C,'Hourly Solar'!G:G) -> 108.31 | N98: 0.10831 | O98: 0.03048103053 | P98: 3.048103053 | Q98: 1.51634 | R98: 0 | S98: 1.531763053 | T98: 41 | U98: 38.01920605 | V98: 2.98079395 | W98: 38.01920605 | X98: 0 | Y98: 1.531763053 | Z98: 36.487443 | AA98: 3.048103053 | AB98: 3.048103053 | AC98: 0
J99: 90 | K99: 2016-11-26T17:00:00 | L99: 18 | M99: =LOOKUP(K99,'Hourly Solar'!C:C,'Hourly Solar'!G:G) -> 94.74 | N99: 0.09474 | O99: 0.02933877723 | P99: 2.933877723 | Q99: 1.32636 | R99: 0 | S99: 1.607517723 | T99: 41 | U99: 36.487443 | V99: 4.512557004 | W99: 36.487443 | X99: 0 | Y99: 1.607517723 | Z99: 34.87992527 | AA99: 2.933877723 | AB99: 2.933877723 | AC99: 0
J100: 91 | K100: 2016-11-26T18:00:00 | L100: 19 | M100: =LOOKUP(K100,'Hourly Solar'!C:C,'Hourly Solar'!G:G) -> 0 | N100: 0 | O100: 0.0280439019 | P100: 2.80439019 | Q100: 0 | R100: 0 | S100: 2.80439019 | T100: 41 | U100: 34.87992527 | V100: 6.120074727 | W100: 34.87992527 | X100: 0 | Y100: 2.80439019 | Z100: 32.07553508 | AA100: 2.80439019 | AB100: 2.80439019 | AC100: 0
J101: 92 | K101: 2016-11-26T19:00:00 | L101: 20 | M101: =LOOKUP(K101,'Hourly Solar'!C:C,'Hourly Solar'!G:G) -> 0 | N101: 0 | O101: 0.02662066713 | P101: 2.662066713 | Q101: 0 | R101: 0 | S101: 2.662066713 | T101: 41 | U101: 32.07553508 | V101: 8.924464916 | W101: 32.07553508 | X101: 0 | Y101: 2.662066713 | Z101: 29.41346837 | AA101: 2.662066713 | AB101: 2.662066713 | AC101: 0
J102: 93 | K102: 2016-11-26T20:00:00 | L102: 21 | M102: =LOOKUP(K102,'Hourly Solar'!C:C,'Hourly Solar'!G:G) -> 0 | N102: 0 | O102: 0.02509478601 | P102: 2.509478601 | Q102: 0 | R102: 0 | S102: 2.509478601 | T102: 41 | U102: 29.41346837 | V102: 11.58653163 | W102: 29.41346837 | X102: 0 | Y102: 2.509478601 | Z102: 26.90398977 | AA102: 2.509478601 | AB102: 2.509478601 | AC102: 0
J103: 94 | K103: 2016-11-26T21:00:00 | L103: 22 | M103: =LOOKUP(K103,'Hourly Solar'!C:C,'Hourly Solar'!G:G) -> 0 | N103: 0 | O103: 0.02349265628 | P103: 2.349265628 | Q103: 0 | R103: 0 | S103: 2.349265628 | T103: 41 | U103: 26.90398977 | V103: 14.09601023 | W103: 26.90398977 | X103: 0 | Y103: 2.349265628 | Z103: 24.55472414 | AA103: 2.349265628 | AB103: 2.349265628 | AC103: 0
J104: 95 | K104: 2016-11-26T22:00:00 | L104: 23 | M104: =LOOKUP(K104,'Hourly Solar'!C:C,'Hourly Solar'!G:G) -> 0 | N104: 0 | O104: 0.02184061276 | P104: 2.184061276 | Q104: 0 | R104: 0 | S104: 2.184061276 | T104: 41 | U104: 24.55472414 | V104: 16.44527586 | W104: 24.55472414 | X104: 0 | Y104: 2.184061276 | Z104: 22.37066287 | AA104: 2.184061276 | AB104: 2.184061276 | AC104: 0
J105: 96 | K105: 2016-11-26T23:00:00 | L105: 24 | M105: =LOOKUP(K105,'Hourly Solar'!C:C,'Hourly Solar'!G:G) -> 0 | N105: 0 | O105: 0.02016422704 | P105: 2.016422704 | Q105: 0 | R105: 0 | S105: 2.016422704 | T105: 41 | U105: 22.37066287 | V105: 18.62933713 | W105: 22.37066287 | X105: 0 | Y105: 2.016422704 | Z105: 20.35424016 | AA105: 2.016422704 | AB105: 2.016422704 | AC105: 0
J106: 97 | K106: 2016-11-27 | L106: 1 | M106: =LOOKUP(K106,'Hourly Solar'!C:C,'Hourly Solar'!G:G) -> 0 | N106: 0 | O106: 0.02184061276 | P106: 2.184061276 | Q106: 0 | R106: 0 | S106: 2.184061276 | T106: 41 | U106: 20.35424016 | V106: 20.64575984 | W106: 20.35424016 | X106: 0 | Y106: 2.184061276 | Z106: 18.17017889 | AA106: 2.184061276 | AB106: 2.184061276 | AC106: 0
J107: 98 | K107: 2016-11-27T01:00:00 | L107: 2 | M107: =LOOKUP(K107,'Hourly Solar'!C:C,'Hourly Solar'!G:G) -> 0 | N107: 0 | O107: 0.02349265628 | P107: 2.349265628 | Q107: 0 | R107: 0 | S107: 2.349265628 | T107: 41 | U107: 18.17017889 | V107: 22.82982111 | W107: 18.17017889 | X107: 0 | Y107: 2.349265628 | Z107: 15.82091326 | AA107: 2.349265628 | AB107: 2.349265628 | AC107: 0
J108: 99 | K108: 2016-11-27T02:00:00 | L108: 3 | M108: =LOOKUP(K108,'Hourly Solar'!C:C,'Hourly Solar'!G:G) -> 0 | N108: 0 | O108: 0.02509478601 | P108: 2.509478601 | Q108: 0 | R108: 0 | S108: 2.509478601 | T108: 41 | U108: 15.82091326 | V108: 25.17908674 | W108: 15.82091326 | X108: 0 | Y108: 2.509478601 | Z108: 13.31143466 | AA108: 2.509478601 | AB108: 2.509478601 | AC108: 0
J109: 100 | K109: 2016-11-27T03:00:00 | L109: 4 | M109: =LOOKUP(K109,'Hourly Solar'!C:C,'Hourly Solar'!G:G) -> 0 | N109: 0 | O109: 0.02662066713 | P109: 2.662066713 | Q109: 0 | R109: 0 | S109: 2.662066713 | T109: 41 | U109: 13.31143466 | V109: 27.68856534 | W109: 13.31143466 | X109: 0 | Y109: 2.662066713 | Z109: 10.64936794 | AA109: 2.662066713 | AB109: 2.662066713 | AC109: 0
J110: 101 | K110: 2016-11-27T04:00:00 | L110: 5 | M110: =LOOKUP(K110,'Hourly Solar'!C:C,'Hourly Solar'!G:G) -> 0 | N110: 0 | O110: 0.0280439019 | P110: 2.80439019 | Q110: 0 | R110: 0 | S110: 2.80439019 | T110: 41 | U110: 10.64936794 | V110: 30.35063206 | W110: 10.64936794 | X110: 0 | Y110: 2.80439019 | Z110: 7.844977754 | AA110: 2.80439019 | AB110: 2.80439019 | AC110: 0
J111: 102 | K111: 2016-11-27T05:00:00 | L111: 6 | M111: =LOOKUP(K111,'Hourly Solar'!C:C,'Hourly Solar'!G:G) -> 0 | N111: 0 | O111: 0.02933877723 | P111: 2.933877723 | Q111: 0 | R111: 0 | S111: 2.933877723 | T111: 41 | U111: 7.844977754 | V111: 33.15502225 | W111: 7.844977754 | X111: 0 | Y111: 2.933877723 | Z111: 4.911100031 | AA111: 2.933877723 | AB111: 2.933877723 | AC111: 0
J112: 103 | K112: 2016-11-27T06:00:00 | L112: 7 | M112: =LOOKUP(K112,'Hourly Solar'!C:C,'Hourly Solar'!G:G) -> 0 | N112: 0 | O112: 0.03048103053 | P112: 3.048103053 | Q112: 0 | R112: 0 | S112: 3.048103053 | T112: 41 | U112: 4.911100031 | V112: 36.08889997 | W112: 4.911100031 | X112: 0 | Y112: 3.048103053 | Z112: 1.862996977 | AA112: 3.048103053 | AB112: 3.048103053 | AC112: 0
J113: 104 | K113: 2016-11-27T07:00:00 | L113: 8 | M113: =LOOKUP(K113,'Hourly Solar'!C:C,'Hourly Solar'!G:G) -> 844.67 | N113: 0.84467 | O113: 0.03144860231 | P113: 3.144860231 | Q113: 11.82538 | R113: 8.680519769 | S113: 0 | T113: 41 | U113: 1.862996977 | V113: 39.13700302 | W113: 1.862996977 | X113: 8.680519769 | Y113: 0 | Z113: 10.54351675 | AA113: 11.82538 | AB113: 3.144860231 | AC113: 0
J114: 105 | K114: 2016-11-27T08:00:00 | L114: 9 | M114: =LOOKUP(K114,'Hourly Solar'!C:C,'Hourly Solar'!G:G) -> 607.73 | N114: 0.60773 | O114: 0.03222234307 | P114: 3.222234307 | Q114: 8.50822 | R114: 5.285985693 | S114: 0 | T114: 41 | U114: 10.54351675 | V114: 30.45648325 | W114: 10.54351675 | X114: 5.285985693 | Y114: 0 | Z114: 15.82950244 | AA114: 8.50822 | AB114: 3.222234307 | AC114: 0
J115: 106 | K115: 2016-11-27T09:00:00 | L115: 10 | M115: =LOOKUP(K115,'Hourly Solar'!C:C,'Hourly Solar'!G:G) -> 853.52 | N115: 0.85352 | O115: 0.03278664301 | P115: 3.278664301 | Q115: 11.94928 | R115: 8.670615699 | S115: 0 | T115: 41 | U115: 15.82950244 | V115: 25.17049756 | W115: 15.82950244 | X115: 8.670615699 | Y115: 0 | Z115: 24.50011814 | AA115: 11.94928 | AB115: 3.278664301 | AC115: 0
J116: 107 | K116: 2016-11-27T10:00:00 | L116: 11 | M116: =LOOKUP(K116,'Hourly Solar'!C:C,'Hourly Solar'!G:G) -> 965.55 | N116: 0.96555 | O116: 0.03312995552 | P116: 3.312995552 | Q116: 13.5177 | R116: 10.20470445 | S116: 0 | T116: 41 | U116: 24.50011814 | V116: 16.49988186 | W116: 24.50011814 | X116: 9 | Y116: 0 | Z116: 33.50011814 | AA116: 13.5177 | AB116: 3.312995552 | AC116: 0
J117: 108 | K117: 2016-11-27T11:00:00 | L117: 12 | M117: =LOOKUP(K117,'Hourly Solar'!C:C,'Hourly Solar'!G:G) -> 1030.07 | N117: 1.03007 | O117: 0.03324519003 | P117: 3.324519003 | Q117: 14.42098 | R117: 11.096461 | S117: 0 | T117: 41 | U117: 33.50011814 | V117: 7.499881861 | W117: 33.50011814 | X117: 7.499881861 | Y117: 0 | Z117: 41 | AA117: 14.42098 | AB117: 3.324519003 | AC117: 0
J118: 109 | K118: 2016-11-27T12:00:00 | L118: 13 | M118: =LOOKUP(K118,'Hourly Solar'!C:C,'Hourly Solar'!G:G) -> 1025.97 | N118: 1.02597 | O118: 0.03312995552 | P118: 3.312995552 | Q118: 14.36358 | R118: 11.05058445 | S118: 0 | T118: 41 | U118: 41 | V118: 0 | W118: 41 | X118: 0 | Y118: 0 | Z118: 41 | AA118: 14.36358 | AB118: 3.312995552 | AC118: 0
J119: 110 | K119: 2016-11-27T13:00:00 | L119: 14 | M119: =LOOKUP(K119,'Hourly Solar'!C:C,'Hourly Solar'!G:G) -> 1028.94 | N119: 1.02894 | O119: 0.03278664301 | P119: 3.278664301 | Q119: 14.40516 | R119: 11.1264957 | S119: 0 | T119: 41 | U119: 41 | V119: 0 | W119: 41 | X119: 0 | Y119: 0 | Z119: 41 | AA119: 14.40516 | AB119: 3.278664301 | AC119: 0
J120: 111 | K120: 2016-11-27T14:00:00 | L120: 15 | M120: =LOOKUP(K120,'Hourly Solar'!C:C,'Hourly Solar'!G:G) -> 979.43 | N120: 0.97943 | O120: 0.03222234307 | P120: 3.222234307 | Q120: 13.71202 | R120: 10.48978569 | S120: 0 | T120: 41 | U120: 41 | V120: 0 | W120: 41 | X120: 0 | Y120: 0 | Z120: 41 | AA120: 13.71202 | AB120: 3.222234307 | AC120: 0
J121: 112 | K121: 2016-11-27T15:00:00 | L121: 16 | M121: =LOOKUP(K121,'Hourly Solar'!C:C,'Hourly Solar'!G:G) -> 906.43 | N121: 0.90643 | O121: 0.03144860231 | P121: 3.144860231 | Q121: 12.69002 | R121: 9.545159769 | S121: 0 | T121: 41 | U121: 41 | V121: 0 | W121: 41 | X121: 0 | Y121: 0 | Z121: 41 | AA121: 12.69002 | AB121: 3.144860231 | AC121: 0
J122: 113 | K122: 2016-11-27T16:00:00 | L122: 17 | M122: =LOOKUP(K122,'Hourly Solar'!C:C,'Hourly Solar'!G:G) -> 671.67 | N122: 0.67167 | O122: 0.03048103053 | P122: 3.048103053 | Q122: 9.40338 | R122: 6.355276947 | S122: 0 | T122: 41 | U122: 41 | V122: 0 | W122: 41 | X122: 0 | Y122: 0 | Z122: 41 | AA122: 9.40338 | AB122: 3.048103053 | AC122: 0
J123: 114 | K123: 2016-11-27T17:00:00 | L123: 18 | M123: =LOOKUP(K123,'Hourly Solar'!C:C,'Hourly Solar'!G:G) -> 309.17 | N123: 0.30917 | O123: 0.02933877723 | P123: 2.933877723 | Q123: 4.32838 | R123: 1.394502277 | S123: 0 | T123: 41 | U123: 41 | V123: 0 | W123: 41 | X123: 0 | Y123: 0 | Z123: 41 | AA123: 4.32838 | AB123: 2.933877723 | AC123: 0
J124: 115 | K124: 2016-11-27T18:00:00 | L124: 19 | M124: =LOOKUP(K124,'Hourly Solar'!C:C,'Hourly Solar'!G:G) -> 0 | N124: 0 | O124: 0.0280439019 | P124: 2.80439019 | Q124: 0 | R124: 0 | S124: 2.80439019 | T124: 41 | U124: 41 | V124: 0 | W124: 41 | X124: 0 | Y124: 2.80439019 | Z124: 38.19560981 | AA124: 2.80439019 | AB124: 2.80439019 | AC124: 0
J125: 116 | K125: 2016-11-27T19:00:00 | L125: 20 | M125: =LOOKUP(K125,'Hourly Solar'!C:C,'Hourly Solar'!G:G) -> 0 | N125: 0 | O125: 0.02662066713 | P125: 2.662066713 | Q125: 0 | R125: 0 | S125: 2.662066713 | T125: 41 | U125: 38.19560981 | V125: 2.80439019 | W125: 38.19560981 | X125: 0 | Y125: 2.662066713 | Z125: 35.5335431 | AA125: 2.662066713 | AB125: 2.662066713 | AC125: 0
J126: 117 | K126: 2016-11-27T20:00:00 | L126: 21 | M126: =LOOKUP(K126,'Hourly Solar'!C:C,'Hourly Solar'!G:G) -> 0 | N126: 0 | O126: 0.02509478601 | P126: 2.509478601 | Q126: 0 | R126: 0 | S126: 2.509478601 | T126: 41 | U126: 35.5335431 | V126: 5.466456902 | W126: 35.5335431 | X126: 0 | Y126: 2.509478601 | Z126: 33.0240645 | AA126: 2.509478601 | AB126: 2.509478601 | AC126: 0
J127: 118 | K127: 2016-11-27T21:00:00 | L127: 22 | M127: =LOOKUP(K127,'Hourly Solar'!C:C,'Hourly Solar'!G:G) -> 0 | N127: 0 | O127: 0.02349265628 | P127: 2.349265628 | Q127: 0 | R127: 0 | S127: 2.349265628 | T127: 41 | U127: 33.0240645 | V127: 7.975935504 | W127: 33.0240645 | X127: 0 | Y127: 2.349265628 | Z127: 30.67479887 | AA127: 2.349265628 | AB127: 2.349265628 | AC127: 0
J128: 119 | K128: 2016-11-27T22:00:00 | L128: 23 | M128: =LOOKUP(K128,'Hourly Solar'!C:C,'Hourly Solar'!G:G) -> 0 | N128: 0 | O128: 0.02184061276 | P128: 2.184061276 | Q128: 0 | R128: 0 | S128: 2.184061276 | T128: 41 | U128: 30.67479887 | V128: 10.32520113 | W128: 30.67479887 | X128: 0 | Y128: 2.184061276 | Z128: 28.49073759 | AA128: 2.184061276 | AB128: 2.184061276 | AC128: 0
J129: 120 | K129: 2016-11-27T23:00:00 | L129: 24 | M129: =LOOKUP(K129,'Hourly Solar'!C:C,'Hourly Solar'!G:G) -> 0 | N129: 0 | O129: 0.02016422704 | P129: 2.016422704 | Q129: 0 | R129: 0 | S129: 2.016422704 | T129: 41 | U129: 28.49073759 | V129: 12.50926241 | W129: 28.49073759 | X129: 0 | Y129: 2.016422704 | Z129: 26.47431489 | AA129: 2.016422704 | AB129: 2.016422704 | AC129: 0
J130: 121 | K130: 2016-11-28 | L130: 1 | M130: =LOOKUP(K130,'Hourly Solar'!C:C,'Hourly Solar'!G:G) -> 0 | N130: 0 | O130: 0.02184061276 | P130: 2.184061276 | Q130: 0 | R130: 0 | S130: 2.184061276 | T130: 41 | U130: 26.47431489 | V130: 14.52568511 | W130: 26.47431489 | X130: 0 | Y130: 2.184061276 | Z130: 24.29025361 | AA130: 2.184061276 | AB130: 2.184061276 | AC130: 0
J131: 122 | K131: 2016-11-28T01:00:00 | L131: 2 | M131: =LOOKUP(K131,'Hourly Solar'!C:C,'Hourly Solar'!G:G) -> 0 | N131: 0 | O131: 0.02349265628 | P131: 2.349265628 | Q131: 0 | R131: 0 | S131: 2.349265628 | T131: 41 | U131: 24.29025361 | V131: 16.70974639 | W131: 24.29025361 | X131: 0 | Y131: 2.349265628 | Z131: 21.94098798 | AA131: 2.349265628 | AB131: 2.349265628 | AC131: 0
J132: 123 | K132: 2016-11-28T02:00:00 | L132: 3 | M132: =LOOKUP(K132,'Hourly Solar'!C:C,'Hourly Solar'!G:G) -> 0 | N132: 0 | O132: 0.02509478601 | P132: 2.509478601 | Q132: 0 | R132: 0 | S132: 2.509478601 | T132: 41 | U132: 21.94098798 | V132: 19.05901202 | W132: 21.94098798 | X132: 0 | Y132: 2.509478601 | Z132: 19.43150938 | AA132: 2.509478601 | AB132: 2.509478601 | AC132: 0
J133: 124 | K133: 2016-11-28T03:00:00 | L133: 4 | M133: =LOOKUP(K133,'Hourly Solar'!C:C,'Hourly Solar'!G:G) -> 0 | N133: 0 | O133: 0.02662066713 | P133: 2.662066713 | Q133: 0 | R133: 0 | S133: 2.662066713 | T133: 41 | U133: 19.43150938 | V133: 21.56849062 | W133: 19.43150938 | X133: 0 | Y133: 2.662066713 | Z133: 16.76944267 | AA133: 2.662066713 | AB133: 2.662066713 | AC133: 0
J134: 125 | K134: 2016-11-28T04:00:00 | L134: 5 | M134: =LOOKUP(K134,'Hourly Solar'!C:C,'Hourly Solar'!G:G) -> 0 | N134: 0 | O134: 0.0280439019 | P134: 2.80439019 | Q134: 0 | R134: 0 | S134: 2.80439019 | T134: 41 | U134: 16.76944267 | V134: 24.23055733 | W134: 16.76944267 | X134: 0 | Y134: 2.80439019 | Z134: 13.96505248 | AA134: 2.80439019 | AB134: 2.80439019 | AC134: 0
J135: 126 | K135: 2016-11-28T05:00:00 | L135: 6 | M135: =LOOKUP(K135,'Hourly Solar'!C:C,'Hourly Solar'!G:G) -> 0 | N135: 0 | O135: 0.02933877723 | P135: 2.933877723 | Q135: 0 | R135: 0 | S135: 2.933877723 | T135: 41 | U135: 13.96505248 | V135: 27.03494752 | W135: 13.96505248 | X135: 0 | Y135: 2.933877723 | Z135: 11.03117476 | AA135: 2.933877723 | AB135: 2.933877723 | AC135: 0
J136: 127 | K136: 2016-11-28T06:00:00 | L136: 7 | M136: =LOOKUP(K136,'Hourly Solar'!C:C,'Hourly Solar'!G:G) -> 0 | N136: 0 | O136: 0.03048103053 | P136: 3.048103053 | Q136: 0 | R136: 0 | S136: 3.048103053 | T136: 41 | U136: 11.03117476 | V136: 29.96882524 | W136: 11.03117476 | X136: 0 | Y136: 3.048103053 | Z136: 7.983071704 | AA136: 3.048103053 | AB136: 3.048103053 | AC136: 0
J137: 128 | K137: 2016-11-28T07:00:00 | L137: 8 | M137: =LOOKUP(K137,'Hourly Solar'!C:C,'Hourly Solar'!G:G) -> 612.7 | N137: 0.6127 | O137: 0.03144860231 | P137: 3.144860231 | Q137: 8.5778 | R137: 5.432939769 | S137: 0 | T137: 41 | U137: 7.983071704 | V137: 33.0169283 | W137: 7.983071704 | X137: 5.432939769 | Y137: 0 | Z137: 13.41601147 | AA137: 8.5778 | AB137: 3.144860231 | AC137: 0
J138: 129 | K138: 2016-11-28T08:00:00 | L138: 9 | M138: =LOOKUP(K138,'Hourly Solar'!C:C,'Hourly Solar'!G:G) -> 570.23 | N138: 0.57023 | O138: 0.03222234307 | P138: 3.222234307 | Q138: 7.98322 | R138: 4.760985693 | S138: 0 | T138: 41 | U138: 13.41601147 | V138: 27.58398853 | W138: 13.41601147 | X138: 4.760985693 | Y138: 0 | Z138: 18.17699717 | AA138: 7.98322 | AB138: 3.222234307 | AC138: 0
J139: 130 | K139: 2016-11-28T09:00:00 | L139: =HOUR(K139)+1 -> 10 | M139: =LOOKUP(K139,'Hourly Solar'!C:C,'Hourly Solar'!G:G) -> 827.9 | N139: =M139/$N$4 -> 0.8279 | O139: =LOOKUP(L139,F:F,H:H) -> 0.03278664301 | P139: =O139*$P$4 -> 3.278664301 | Q139: =$Q$4*N139 -> 11.5906 | R139: =MAX(Q139-P139,0) -> 8.311935699 | S139: =MAX(P139-Q139,0) -> 0 | T139: =$T$6 -> 41 | U139: =W139 -> 18.17699717 | V139: =T139-U139 -> 22.82300283 | W139: =Z138 -> 18.17699717 | X139: =MIN(R139,V139,$T$7) -> 8.311935699 | Y139: =MIN(S139,W139,$T$7) -> 0 | Z139: =W139+X139-Y139 -> 26.48893287 | AA139: =Q139+Y139 -> 11.5906 | AB139: =Y139+Q139-R139 -> 3.278664301 | AC139: =P139-AB139 -> 0
J140: 131 | K140: =K139+1/24 -> 2016-11-28T10:00:00 | L140: 11 | M140: =LOOKUP(K140,'Hourly Solar'!C:C,'Hourly Solar'!G:G) -> 950.06 | N140: 0.95006 | O140: 0.03312995552 | P140: 3.312995552 | Q140: 13.30084 | R140: 9.987844448 | S140: 0 | T140: 41 | U140: 26.48893287 | V140: 14.51106713 | W140: 26.48893287 | X140: 9 | Y140: 0 | Z140: 35.48893287 | AA140: 13.30084 | AB140: 3.312995552 | AC140: 0
J141: 132 | K141: 2016-11-28T11:00:00 | L141: 12 | M141: =LOOKUP(K141,'Hourly Solar'!C:C,'Hourly Solar'!G:G) -> 1015.19 | N141: 1.01519 | O141: 0.03324519003 | P141: 3.324519003 | Q141: 14.21266 | R141: 10.888141 | S141: 0 | T141: 41 | U141: 35.48893287 | V141: 5.511067134 | W141: 35.48893287 | X141: 5.511067134 | Y141: 0 | Z141: 41 | AA141: 14.21266 | AB141: 3.324519003 | AC141: 0
J142: 133 | K142: 2016-11-28T12:00:00 | L142: 13 | M142: =LOOKUP(K142,'Hourly Solar'!C:C,'Hourly Solar'!G:G) -> 1025.85 | N142: 1.02585 | O142: 0.03312995552 | P142: 3.312995552 | Q142: 14.3619 | R142: 11.04890445 | S142: 0 | T142: 41 | U142: 41 | V142: 0 | W142: 41 | X142: 0 | Y142: 0 | Z142: 41 | AA142: 14.3619 | AB142: 3.312995552 | AC142: 0
J143: 134 | K143: 2016-11-28T13:00:00 | L143: 14 | M143: =LOOKUP(K143,'Hourly Solar'!C:C,'Hourly Solar'!G:G) -> 1014.91 | N143: 1.01491 | O143: 0.03278664301 | P143: 3.278664301 | Q143: 14.20874 | R143: 10.9300757 | S143: 0 | T143: 41 | U143: 41 | V143: 0 | W143: 41 | X143: 0 | Y143: 0 | Z143: 41 | AA143: 14.20874 | AB143: 3.278664301 | AC143: 0
J144: 135 | K144: 2016-11-28T14:00:00 | L144: 15 | M144: =LOOKUP(K144,'Hourly Solar'!C:C,'Hourly Solar'!G:G) -> 979.26 | N144: 0.97926 | O144: 0.03222234307 | P144: 3.222234307 | Q144: 13.70964 | R144: 10.48740569 | S144: 0 | T144: 41 | U144: 41 | V144: 0 | W144: 41 | X144: 0 | Y144: 0 | Z144: 41 | AA144: 13.70964 | AB144: 3.222234307 | AC144: 0
J145: 136 | K145: 2016-11-28T15:00:00 | L145: 16 | M145: =LOOKUP(K145,'Hourly Solar'!C:C,'Hourly Solar'!G:G) -> 905.4 | N145: 0.9054 | O145: 0.03144860231 | P145: 3.144860231 | Q145: 12.6756 | R145: 9.530739769 | S145: 0 | T145: 41 | U145: 41 | V145: 0 | W145: 41 | X145: 0 | Y145: 0 | Z145: 41 | AA145: 12.6756 | AB145: 3.144860231 | AC145: 0
J146: 137 | K146: 2016-11-28T16:00:00 | L146: 17 | M146: =LOOKUP(K146,'Hourly Solar'!C:C,'Hourly Solar'!G:G) -> 709.06 | N146: 0.70906 | O146: 0.03048103053 | P146: 3.048103053 | Q146: 9.92684 | R146: 6.878736947 | S146: 0 | T146: 41 | U146: 41 | V146: 0 | W146: 41 | X146: 0 | Y146: 0 | Z146: 41 | AA146: 9.92684 | AB146: 3.048103053 | AC146: 0
J147: 138 | K147: 2016-11-28T17:00:00 | L147: 18 | M147: =LOOKUP(K147,'Hourly Solar'!C:C,'Hourly Solar'!G:G) -> 314.57 | N147: 0.31457 | O147: 0.02933877723 | P147: 2.933877723 | Q147: 4.40398 | R147: 1.470102277 | S147: 0 | T147: 41 | U147: 41 | V147: 0 | W147: 41 | X147: 0 | Y147: 0 | Z147: 41 | AA147: 4.40398 | AB147: 2.933877723 | AC147: 0
J148: 139 | K148: 2016-11-28T18:00:00 | L148: 19 | M148: =LOOKUP(K148,'Hourly Solar'!C:C,'Hourly Solar'!G:G) -> 0 | N148: 0 | O148: 0.0280439019 | P148: 2.80439019 | Q148: 0 | R148: 0 | S148: 2.80439019 | T148: 41 | U148: 41 | V148: 0 | W148: 41 | X148: 0 | Y148: 2.80439019 | Z148: 38.19560981 | AA148: 2.80439019 | AB148: 2.80439019 | AC148: 0
J149: 140 | K149: 2016-11-28T19:00:00 | L149: 20 | M149: =LOOKUP(K149,'Hourly Solar'!C:C,'Hourly Solar'!G:G) -> 0 | N149: 0 | O149: 0.02662066713 | P149: 2.662066713 | Q149: 0 | R149: 0 | S149: 2.662066713 | T149: 41 | U149: 38.19560981 | V149: 2.80439019 | W149: 38.19560981 | X149: 0 | Y149: 2.662066713 | Z149: 35.5335431 | AA149: 2.662066713 | AB149: 2.662066713 | AC149: 0
J150: 141 | K150: 2016-11-28T20:00:00 | L150: 21 | M150: =LOOKUP(K150,'Hourly Solar'!C:C,'Hourly Solar'!G:G) -> 0 | N150: 0 | O150: 0.02509478601 | P150: 2.509478601 | Q150: 0 | R150: 0 | S150: 2.509478601 | T150: 41 | U150: 35.5335431 | V150: 5.466456902 | W150: 35.5335431 | X150: 0 | Y150: 2.509478601 | Z150: 33.0240645 | AA150: 2.509478601 | AB150: 2.509478601 | AC150: 0
J151: 142 | K151: 2016-11-28T21:00:00 | L151: 22 | M151: =LOOKUP(K151,'Hourly Solar'!C:C,'Hourly Solar'!G:G) -> 0 | N151: 0 | O151: 0.02349265628 | P151: 2.349265628 | Q151: 0 | R151: 0 | S151: 2.349265628 | T151: 41 | U151: 33.0240645 | V151: 7.975935504 | W151: 33.0240645 | X151: 0 | Y151: 2.349265628 | Z151: 30.67479887 | AA151: 2.349265628 | AB151: 2.349265628 | AC151: 0
J152: 143 | K152: 2016-11-28T22:00:00 | L152: 23 | M152: =LOOKUP(K152,'Hourly Solar'!C:C,'Hourly Solar'!G:G) -> 0 | N152: 0 | O152: 0.02184061276 | P152: 2.184061276 | Q152: 0 | R152: 0 | S152: 2.184061276 | T152: 41 | U152: 30.67479887 | V152: 10.32520113 | W152: 30.67479887 | X152: 0 | Y152: 2.184061276 | Z152: 28.49073759 | AA152: 2.184061276 | AB152: 2.184061276 | AC152: 0
J153: 144 | K153: 2016-11-28T23:00:00 | L153: 24 | M153: =LOOKUP(K153,'Hourly Solar'!C:C,'Hourly Solar'!G:G) -> 0 | N153: 0 | O153: 0.02016422704 | P153: 2.016422704 | Q153: 0 | R153: 0 | S153: 2.016422704 | T153: 41 | U153: 28.49073759 | V153: 12.50926241 | W153: 28.49073759 | X153: 0 | Y153: 2.016422704 | Z153: 26.47431489 | AA153: 2.016422704 | AB153: 2.016422704 | AC153: 0
J154: 145 | K154: 2016-11-29 | L154: 1 | M154: =LOOKUP(K154,'Hourly Solar'!C:C,'Hourly Solar'!G:G) -> 0 | N154: 0 | O154: 0.02184061276 | P154: 2.184061276 | Q154: 0 | R154: 0 | S154: 2.184061276 | T154: 41 | U154: 26.47431489 | V154: 14.52568511 | W154: 26.47431489 | X154: 0 | Y154: 2.184061276 | Z154: 24.29025361 | AA154: 2.184061276 | AB154: 2.184061276 | AC154: 0
J155: 146 | K155: 2016-11-29T01:00:00 | L155: 2 | M155: =LOOKUP(K155,'Hourly Solar'!C:C,'Hourly Solar'!G:G) -> 0 | N155: 0 | O155: 0.02349265628 | P155: 2.349265628 | Q155: 0 | R155: 0 | S155: 2.349265628 | T155: 41 | U155: 24.29025361 | V155: 16.70974639 | W155: 24.29025361 | X155: 0 | Y155: 2.349265628 | Z155: 21.94098798 | AA155: 2.349265628 | AB155: 2.349265628 | AC155: 0
J156: 147 | K156: 2016-11-29T02:00:00 | L156: 3 | M156: =LOOKUP(K156,'Hourly Solar'!C:C,'Hourly Solar'!G:G) -> 0 | N156: 0 | O156: 0.02509478601 | P156: 2.509478601 | Q156: 0 | R156: 0 | S156: 2.509478601 | T156: 41 | U156: 21.94098798 | V156: 19.05901202 | W156: 21.94098798 | X156: 0 | Y156: 2.509478601 | Z156: 19.43150938 | AA156: 2.509478601 | AB156: 2.509478601 | AC156: 0
J157: 148 | K157: 2016-11-29T03:00:00 | L157: 4 | M157: =LOOKUP(K157,'Hourly Solar'!C:C,'Hourly Solar'!G:G) -> 0 | N157: 0 | O157: 0.02662066713 | P157: 2.662066713 | Q157: 0 | R157: 0 | S157: 2.662066713 | T157: 41 | U157: 19.43150938 | V157: 21.56849062 | W157: 19.43150938 | X157: 0 | Y157: 2.662066713 | Z157: 16.76944267 | AA157: 2.662066713 | AB157: 2.662066713 | AC157: 0
J158: 149 | K158: 2016-11-29T04:00:00 | L158: 5 | M158: =LOOKUP(K158,'Hourly Solar'!C:C,'Hourly Solar'!G:G) -> 0 | N158: 0 | O158: 0.0280439019 | P158: 2.80439019 | Q158: 0 | R158: 0 | S158: 2.80439019 | T158: 41 | U158: 16.76944267 | V158: 24.23055733 | W158: 16.76944267 | X158: 0 | Y158: 2.80439019 | Z158: 13.96505248 | AA158: 2.80439019 | AB158: 2.80439019 | AC158: 0
J159: 150 | K159: 2016-11-29T05:00:00 | L159: 6 | M159: =LOOKUP(K159,'Hourly Solar'!C:C,'Hourly Solar'!G:G) -> 0 | N159: 0 | O159: 0.02933877723 | P159: 2.933877723 | Q159: 0 | R159: 0 | S159: 2.933877723 | T159: 41 | U159: 13.96505248 | V159: 27.03494752 | W159: 13.96505248 | X159: 0 | Y159: 2.933877723 | Z159: 11.03117476 | AA159: 2.933877723 | AB159: 2.933877723 | AC159: 0
J160: 151 | K160: 2016-11-29T06:00:00 | L160: 7 | M160: =LOOKUP(K160,'Hourly Solar'!C:C,'Hourly Solar'!G:G) -> 0 | N160: 0 | O160: 0.03048103053 | P160: 3.048103053 | Q160: 0 | R160: 0 | S160: 3.048103053 | T160: 41 | U160: 11.03117476 | V160: 29.96882524 | W160: 11.03117476 | X160: 0 | Y160: 3.048103053 | Z160: 7.983071704 | AA160: 3.048103053 | AB160: 3.048103053 | AC160: 0
J161: 152 | K161: 2016-11-29T07:00:00 | L161: 8 | M161: =LOOKUP(K161,'Hourly Solar'!C:C,'Hourly Solar'!G:G) -> 579.28 | N161: 0.57928 | O161: 0.03144860231 | P161: 3.144860231 | Q161: 8.10992 | R161: 4.965059769 | S161: 0 | T161: 41 | U161: 7.983071704 | V161: 33.0169283 | W161: 7.983071704 | X161: 4.965059769 | Y161: 0 | Z161: 12.94813147 | AA161: 8.10992 | AB161: 3.144860231 | AC161: 0
J162: 153 | K162: 2016-11-29T08:00:00 | L162: 9 | M162: =LOOKUP(K162,'Hourly Solar'!C:C,'Hourly Solar'!G:G) -> 559.67 | N162: 0.55967 | O162: 0.03222234307 | P162: 3.222234307 | Q162: 7.83538 | R162: 4.613145693 | S162: 0 | T162: 41 | U162: 12.94813147 | V162: 28.05186853 | W162: 12.94813147 | X162: 4.613145693 | Y162: 0 | Z162: 17.56127717 | AA162: 7.83538 | AB162: 3.222234307 | AC162: 0
J163: 154 | K163: 2016-11-29T09:00:00 | L163: 10 | M163: =LOOKUP(K163,'Hourly Solar'!C:C,'Hourly Solar'!G:G) -> 795.08 | N163: 0.79508 | O163: 0.03278664301 | P163: 3.278664301 | Q163: 11.13112 | R163: 7.852455699 | S163: 0 | T163: 41 | U163: 17.56127717 | V163: 23.43872283 | W163: 17.56127717 | X163: 7.852455699 | Y163: 0 | Z163: 25.41373287 | AA163: 11.13112 | AB163: 3.278664301 | AC163: 0
J164: 155 | K164: 2016-11-29T10:00:00 | L164: 11 | M164: =LOOKUP(K164,'Hourly Solar'!C:C,'Hourly Solar'!G:G) -> 948.41 | N164: 0.94841 | O164: 0.03312995552 | P164: 3.312995552 | Q164: 13.27774 | R164: 9.964744448 | S164: 0 | T164: 41 | U164: 25.41373287 | V164: 15.58626713 | W164: 25.41373287 | X164: 9 | Y164: 0 | Z164: 34.41373287 | AA164: 13.27774 | AB164: 3.312995552 | AC164: 0
J165: 156 | K165: 2016-11-29T11:00:00 | L165: 12 | M165: =LOOKUP(K165,'Hourly Solar'!C:C,'Hourly Solar'!G:G) -> 1013.93 | N165: 1.01393 | O165: 0.03324519003 | P165: 3.324519003 | Q165: 14.19502 | R165: 10.870501 | S165: 0 | T165: 41 | U165: 34.41373287 | V165: 6.586267134 | W165: 34.41373287 | X165: 6.586267134 | Y165: 0 | Z165: 41 | AA165: 14.19502 | AB165: 3.324519003 | AC165: 0
J166: 157 | K166: 2016-11-29T12:00:00 | L166: 13 | M166: =LOOKUP(K166,'Hourly Solar'!C:C,'Hourly Solar'!G:G) -> 1025.65 | N166: 1.02565 | O166: 0.03312995552 | P166: 3.312995552 | Q166: 14.3591 | R166: 11.04610445 | S166: 0 | T166: 41 | U166: 41 | V166: 0 | W166: 41 | X166: 0 | Y166: 0 | Z166: 41 | AA166: 14.3591 | AB166: 3.312995552 | AC166: 0
J167: 158 | K167: 2016-11-29T13:00:00 | L167: 14 | M167: =LOOKUP(K167,'Hourly Solar'!C:C,'Hourly Solar'!G:G) -> 1014.05 | N167: 1.01405 | O167: 0.03278664301 | P167: 3.278664301 | Q167: 14.1967 | R167: 10.9180357 | S167: 0 | T167: 41 | U167: 41 | V167: 0 | W167: 41 | X167: 0 | Y167: 0 | Z167: 41 | AA167: 14.1967 | AB167: 3.278664301 | AC167: 0
J168: 159 | K168: 2016-11-29T14:00:00 | L168: 15 | M168: =LOOKUP(K168,'Hourly Solar'!C:C,'Hourly Solar'!G:G) -> 963.12 | N168: 0.96312 | O168: 0.03222234307 | P168: 3.222234307 | Q168: 13.48368 | R168: 10.26144569 | S168: 0 | T168: 41 | U168: 41 | V168: 0 | W168: 41 | X168: 0 | Y168: 0 | Z168: 41 | AA168: 13.48368 | AB168: 3.222234307 | AC168: 0
J169: 160 | K169: 2016-11-29T15:00:00 | L169: 16 | M169: =LOOKUP(K169,'Hourly Solar'!C:C,'Hourly Solar'!G:G) -> 904.75 | N169: 0.90475 | O169: 0.03144860231 | P169: 3.144860231 | Q169: 12.6665 | R169: 9.521639769 | S169: 0 | T169: 41 | U169: 41 | V169: 0 | W169: 41 | X169: 0 | Y169: 0 | Z169: 41 | AA169: 12.6665 | AB169: 3.144860231 | AC169: 0
J170: 161 | K170: 2016-11-29T16:00:00 | L170: 17 | M170: =LOOKUP(K170,'Hourly Solar'!C:C,'Hourly Solar'!G:G) -> 664.29 | N170: 0.66429 | O170: 0.03048103053 | P170: 3.048103053 | Q170: 9.30006 | R170: 6.251956947 | S170: 0 | T170: 41 | U170: 41 | V170: 0 | W170: 41 | X170: 0 | Y170: 0 | Z170: 41 | AA170: 9.30006 | AB170: 3.048103053 | AC170: 0
J171: 162 | K171: 2016-11-29T17:00:00 | L171: 18 | M171: =LOOKUP(K171,'Hourly Solar'!C:C,'Hourly Solar'!G:G) -> 314.15 | N171: 0.31415 | O171: 0.02933877723 | P171: 2.933877723 | Q171: 4.3981 | R171: 1.464222277 | S171: 0 | T171: 41 | U171: 41 | V171: 0 | W171: 41 | X171: 0 | Y171: 0 | Z171: 41 | AA171: 4.3981 | AB171: 2.933877723 | AC171: 0
J172: 163 | K172: 2016-11-29T18:00:00 | L172: 19 | M172: =LOOKUP(K172,'Hourly Solar'!C:C,'Hourly Solar'!G:G) -> 0 | N172: 0 | O172: 0.0280439019 | P172: 2.80439019 | Q172: 0 | R172: 0 | S172: 2.80439019 | T172: 41 | U172: 41 | V172: 0 | W172: 41 | X172: 0 | Y172: 2.80439019 | Z172: 38.19560981 | AA172: 2.80439019 | AB172: 2.80439019 | AC172: 0
J173: 164 | K173: 2016-11-29T19:00:00 | L173: 20 | M173: =LOOKUP(K173,'Hourly Solar'!C:C,'Hourly Solar'!G:G) -> 0 | N173: 0 | O173: 0.02662066713 | P173: 2.662066713 | Q173: 0 | R173: 0 | S173: 2.662066713 | T173: 41 | U173: 38.19560981 | V173: 2.80439019 | W173: 38.19560981 | X173: 0 | Y173: 2.662066713 | Z173: 35.5335431 | AA173: 2.662066713 | AB173: 2.662066713 | AC173: 0
J174: 165 | K174: 2016-11-29T20:00:00 | L174: 21 | M174: =LOOKUP(K174,'Hourly Solar'!C:C,'Hourly Solar'!G:G) -> 0 | N174: 0 | O174: 0.02509478601 | P174: 2.509478601 | Q174: 0 | R174: 0 | S174: 2.509478601 | T174: 41 | U174: 35.5335431 | V174: 5.466456902 | W174: 35.5335431 | X174: 0 | Y174: 2.509478601 | Z174: 33.0240645 | AA174: 2.509478601 | AB174: 2.509478601 | AC174: 0
J175: 166 | K175: 2016-11-29T21:00:00 | L175: 22 | M175: =LOOKUP(K175,'Hourly Solar'!C:C,'Hourly Solar'!G:G) -> 0 | N175: 0 | O175: 0.02349265628 | P175: 2.349265628 | Q175: 0 | R175: 0 | S175: 2.349265628 | T175: 41 | U175: 33.0240645 | V175: 7.975935504 | W175: 33.0240645 | X175: 0 | Y175: 2.349265628 | Z175: 30.67479887 | AA175: 2.349265628 | AB175: 2.349265628 | AC175: 0
J176: 167 | K176: 2016-11-29T22:00:00 | L176: 23 | M176: =LOOKUP(K176,'Hourly Solar'!C:C,'Hourly Solar'!G:G) -> 0 | N176: 0 | O176: 0.02184061276 | P176: 2.184061276 | Q176: 0 | R176: 0 | S176: 2.184061276 | T176: 41 | U176: 30.67479887 | V176: 10.32520113 | W176: 30.67479887 | X176: 0 | Y176: 2.184061276 | Z176: 28.49073759 | AA176: 2.184061276 | AB176: 2.184061276 | AC176: 0
J177: 168 | K177: 2016-11-29T23:00:00 | L177: 24 | M177: =LOOKUP(K177,'Hourly Solar'!C:C,'Hourly Solar'!G:G) -> 0 | N177: 0 | O177: 0.02016422704 | P177: 2.016422704 | Q177: 0 | R177: 0 | S177: 2.016422704 | T177: 41 | U177: 28.49073759 | V177: 12.50926241 | W177: 28.49073759 | X177: 0 | Y177: 2.016422704 | Z177: 26.47431489 | AA177: 2.016422704 | AB177: 2.016422704 | AC177: 0

Sheet Value
F2: Solar | G2: Battery | H2: Solar + Battery
B3: Capacity | E3: kW | F3: ='One Week'!Q4 -> 14
B4: Capacity | E4: kWh | G4: ='One Week'!T6 -> 41
B6: Cost | E6: USD/kW | F6: 700
B7: Cost | E7: USD/kWh | G7: 300
B9: Capital Expenditure | E9: USD | F9: =F6*F3 -> 9800 | G9: =G7*G4 -> 12300
B11: IRR with Infl, Degrad | E11: % | F11: 0.05 | G11: 0.06
B12: Life | F12: 35 | G12: 15
B13: Carrying Charge | E13: USD/yr | F13: =PMT(F11,F12,-F9) -> 598.5027309 | G13: =PMT(G11,G12,-G9) -> 1266.441997 | H13: =G13+F13 -> 1864.944728
B15: O&M Cost | E15: USD/kwyr | F15: 15 | G15: 0.015
B16: Total O&M Cost | E16: USD/yr | F16: =F15*F3 -> 210 | G16: =G15*G9 -> 184.5
B17: Total Cost | E17: USD/yr | F17: =F16+F13 -> 808.5027309 | G17: =G16+G13 -> 1450.941997 | H17: =G17+F17 -> 2259.444728
B19: Total Production | E19: kWh-w | F19: ='One Week'!AA6 -> 917.4631618 | H19: =F19 -> 917.4631618
B20: Total Production | E20: kWh-p.a. | F20: =F19*52 -> 47708.08442 | H20: =H19*52 -> 47708.08442
B21: Cost of Electricity | E21: USD/kWh | F21: =F17/F20 -> 0.01694687055 | H21: =H17/H20 -> 0.04735978724

Sheet System Analysis Summary
B1: Scenario Code | C1: 3 | H1: Graph Month | J1: ='Graph Data'!C2 -> 12
B3: Solar Capacity | C3: ='System Analysis Input'!F38 -> 19000 | E3: Battery Duration | F3: ='System Analysis Input'!F24 -> 6
C4: Solar Flag | D4: Storage Flag
B5: Scenario 1: No Solar | C5: FALSE | D5: FALSE
B6: Scenario 2: Solar, No Battery | C6: TRUE | D6: FALSE
B7: Scenario 3: Solar and Battery | C7: TRUE | D7: TRUE
B8: Scenario 4: Solar and hydrogen | C8: TRUE | D8: FALSE
B10: =INDEX(B5:B8,$C$1) -> Scenario 3: Solar and Battery | C10: =INDEX(C5:C8,$C$1) -> TRUE | D10: =INDEX(D5:D8,$C$1) -> TRUE

Sheet System Analysis Input
B2: Coal
C3: Coal Capacity | E3: MW | F3: 10000
C4: Coal Outage | E4: % | F4: 0.06
C5: Coal Force Outage | E5: % | F5: 0.02
C6: Total Outage | E6: % | F6: =SUM(F4:F5) -> 0.08
C7: Minimum coal | E7: % | F7: 0.5
C8: Minimum Coal Capacity | E8: MW | F8: =F3*(1-F6)*F7 -> 4600
B10: Gas
C11: Total gas | E11: MW | F11: 13000
C12: Minimum gas | E12: % | F12: 0.3
C13: Minimum gas | E13: MW | F13: =F11*F12 -> 3900
B15: Load Growth
C16: Year | F16: 2025
C17: Base Year | F17: 2018
C18: Year | F18: =F16-F17 -> 7
C19: Annual Growth | F19: 0.02
C20: Compound Growth | F20: =(1+F19)^F18 -> 1.148685668
B22: Storage
C23: Storage capacity | E23: MW | F23: =F38 -> 19000
C24: Duration of the cycle | E24: Hr | F24: 6
C25: Storage capacity | E25: MWh | F25: =F24*F23*F26 -> 114000
F26: ='System Analysis Summary'!D10 -> TRUE
D27: Depth of discharge | E27: % | F27: 0.1
D29: Round trip efficiency | E29: % | F29: 0.95
B31: Fuel Cost
C32: Market Price for Natural Gas | E32: USD/mmbtu | F32: 15
C33: Average Heat Rate | E33: mmbtu/MWh | F33: 8
C34: Cost of Natural Gas | E34: RM/MWh | F34: =F32*F33 -> 120
B37: Solar
C38: Solar Capacity | E38: MW | F38: 19000
C39: Solar Flag | E39: Flag | F39: ='System Analysis Summary'!C10 -> TRUE
C40: Solar Applied | F40: =F38*F39 -> 19000
C42: STC for Irriatiation | E42: Watt | F42: 1000
C43: Temperature Adder for Panel | E43: % | F43: 1.35
C45: Temperature Adder | E45: C | F45: 30
C46: STC Temperature | E46: C | F46: 25
C47: Temperature Coefficient | E47: % | F47: 0.003
C49: Other Losses | E49: % | F49: 0.08
B53: Hydro Generation
D54: Month | E54: 1 | F54: 2 | G54: 3 | H54: 4 | I54: 5 | J54: 6 | K54: 7 | L54: 8 | M54: 9 | N54: 10 | O54: 11 | P54: 12
D55: Hydro seasonality | E55: 0.1348592216 | F55: 0.09034744949 | G55: 0.07179506043 | H55: 0.09053441067 | I55: 0.07740050256 | J55: 0.06104249359 | K55: 0.06688631616 | L55: 0.08347989969 | M55: 0.07482266864 | N55: 0.09384843458 | O55: 0.0872213215 | P55: 0.06776222114
D57: Hydro annual capacity factor | E57: 0.31
D58: Annual capacity | E58: 2500
D60: Annual energy | E60: =E58*E57*8760 -> 6789000 | F60: =E60 -> 6789000 | G60: 6789000 | H60: 6789000 | I60: 6789000 | J60: 6789000 | K60: 6789000 | L60: 6789000 | M60: 6789000 | N60: 6789000 | O60: 6789000 | P60: 6789000
D61: Monthly energy | E61: =E60*E55 -> 915559.2551 | F61: 613368.8346 | G61: 487416.6652 | H61: 614638.1141 | I61: 525472.0119 | J61: 414417.489 | K61: 454091.2004 | L61: 566745.039 | M61: 507971.0974 | N61: 637137.0223 | O61: 592145.5517 | P61: 460037.7193
D62: Hour | E62: =8760/12 -> 730 | F62: =8760/12 -> 730 | G62: 730 | H62: 730 | I62: 730 | J62: 730 | K62: 730 | L62: 730 | M62: 730 | N62: 730 | O62: 730 | P62: 730
D63: Hourly energy | E63: =E61/E62 -> 1254.19076 | F63: 840.2312803 | G63: 667.694062 | H63: 841.9700193 | I63: 719.8246738 | J63: 567.6951904 | K63: 622.0427403 | L63: 776.3630671 | M63: 695.8508183 | N63: 872.7904416 | O63: 811.15829 | P63: 630.1886566
E96: Ambient Temp | F96: 28
E97: Adder | F97: 30
E98: Total | F98: =F96+F97 -> 58 | G98: =F98/F96 -> 2.071428571
E100: STC Temperature | F100: 25
E102: Adder | F102: =F98-F100 -> 33
E104: Coefficient | F104: 0.004
E106: Percent Change | F106: =F102*F104 -> 0.132

Sheet System Analysis Hourly
B1: Time Line | F1: Constant | G1: Sum
D2: Hour Period | I2: 1 | J2: 2 | K2: 3 | L2: 4 | M2: 5 | N2: 6 | O2: 7 | P2: 8 | Q2: 9 | R2: 10 | S2: 11 | T2: 12 | U2: 13 | V2: 14 | W2: 15 | X2: 16 | Y2: 17 | Z2: 18 | AA2: 19 | AB2: 20 | AC2: 21 | AD2: 22 | AE2: 23 | AF2: 24 | AG2: 25 | AH2: 26 | AI2: 27 | AJ2: 28 | AK2: 29 | AL2: 30 | AM2: 31 | AN2: 32 | AO2: 33 | AP2: 34 | AQ2: 35 | AR2: 36 | AS2: 37 | AT2: 38 | AU2: 39 | AV2: 40 | AW2: 41 | AX2: 42 | AY2: 43 | AZ2: 44 | BA2: 45 | BB2: 46 | BC2: 47 | BD2: 48 | BE2: 49 | BF2: 50 | BG2: 51 | BH2: 52 | BI2: 53 | BJ2: 54 | BK2: 55 | BL2: 56 | BM2: 57 | BN2: 58 | BO2: 59 | BP2: 60 | BQ2: 61 | BR2: 62 | BS2: 63 | BT2: 64 | BU2: 65 | BV2: 66 | BW2: 67 | BX2: 68 | BY2: 69 | BZ2: 70 | CA2: 71 | CB2: 72 | CC2: 73 | CD2: 74 | CE2: 75 | CF2: 76 | CG2: 77 | CH2: 78 | CI2: 79 | CJ2: 80 | CK2: 81 | CL2: 82 | CM2: 83 | CN2: 84 | CO2: 85 | CP2: 86 | CQ2: 87 | CR2: 88 | CS2: 89 | CT2: 90 | CU2: 91 | CV2: 92 | CW2: 93 | CX2: 94 | CY2: 95 | CZ2: 96 | DA2: 97 | DB2: 98 | DC2: 99 | DD2: 100 | DE2: 101 | DF2: 102 | DG2: 103 | DH2: 104 | DI2: 105 | DJ2: 106 | DK2: 107 | DL2: 108 | DM2: 109 | DN2: 110 | DO2: 111 | DP2: 112 | DQ2: 113 | DR2: 114 | DS2: 115 | DT2: 116 | DU2: 117 | DV2: 118 | DW2: 119 | DX2: 120 | DY2: 121 | DZ2: 122 | EA2: 123 | EB2: 124 | EC2: 125 | ED2: 126 | EE2: 127 | EF2: 128 | EG2: 129 | EH2: 130 | EI2: 131 | EJ2: 132 | EK2: 133 | EL2: 134 | EM2: 135 | EN2: 136 | EO2: 137 | EP2: 138 | EQ2: 139 | ER2: 140 | ES2: 141 | ET2: 142 | EU2: 143 | EV2: 144 | EW2: 145 | EX2: 146 | EY2: 147 | EZ2: 148 | FA2: 149 | FB2: 150 | FC2: 151 | FD2: 152 | FE2: 153 | FF2: 154 | FG2: 155 | FH2: 156 | FI2: 157 | FJ2: 158 | FK2: 159 | FL2: 160 | FM2: 161 | FN2: 162 | FO2: 163 | FP2: 164 | FQ2: 165 | FR2: 166 | FS2: 167 | FT2: 168 | FU2: 169 | FV2: 170 | FW2: 171 | FX2: 172 | FY2: 173 | FZ2: 174 | GA2: 175 | GB2: 176 | GC2: 177 | GD2: 178 | GE2: 179 | GF2: 180 | GG2: 181 | GH2: 182 | GI2: 183 | GJ2: 184 | GK2: 185 | GL2: 186 | GM2: 187 | GN2: 188 | GO2: 189 | GP2: 190 | GQ2: 191 | GR2: 192 | GS2: 193 | GT2: 194 | GU2: 195 | GV2: 196 | GW2: 197 | GX2: 198 | GY2: 199 | GZ2: 200 | HA2: 201 | HB2: 202 | HC2: 203 | HD2: 204 | HE2: 205 | HF2: 206 | HG2: 207 | HH2: 208 | HI2: 209 | HJ2: 210 | HK2: 211 | HL2: 212 | HM2: 213 | HN2: 214 | HO2: 215 | HP2: 216 | HQ2: 217 | HR2: 218 | HS2: 219 | HT2: 220 | HU2: 221 | HV2: 222 | HW2: 223 | HX2: 224 | HY2: 225 | HZ2: 226 | IA2: 227 | IB2: 228 | IC2: 229 | ID2: 230 | IE2: 231 | IF2: 232 | IG2: 233 | IH2: 234 | II2: 235 | IJ2: 236 | IK2: 237 | IL2: 238 | IM2: 239 | IN2: 240 | IO2: 241 | IP2: 242 | IQ2: 243 | IR2: 244 | IS2: 245 | IT2: 246 | IU2: 247 | IV2: 248 | IW2: 249 | IX2: 250 | IY2: 251 | IZ2: 252 | JA2: 253 | JB2: 254 | JC2: 255 | JD2: 256 | JE2: 257 | JF2: 258 | JG2: 259 | JH2: 260 | JI2: 261 | JJ2: 262 | JK2: 263 | JL2: 264 | JM2: 265 | JN2: 266 | JO2: 267 | JP2: 268 | JQ2: 269 | JR2: 270 | JS2: 271 | JT2: 272 | JU2: 273 | JV2: 274 | JW2: 275 | JX2: 276 | JY2: 277 | JZ2: 278 | KA2: 279 | KB2: 280 | KC2: 281 | KD2: 282 | KE2: 283 | KF2: 284 | KG2: 285 | KH2: 286 | KI2: 287 | KJ2: 288 | KK2: 289 | KL2: 290 | KM2: 291 | KN2: 292 | KO2: 293 | KP2: 294 | KQ2: 295 | KR2: 296 | KS2: 297 | KT2: 298 | KU2: 299 | KV2: 300 | KW2: 301 | KX2: 302 | KY2: 303 | KZ2: 304 | LA2: 305 | LB2: 306 | LC2: 307 | LD2: 308 | LE2: 309 | LF2: 310 | LG2: 311 | LH2: 312 | LI2: 313 | LJ2: 314 | LK2: 315 | LL2: 316 | LM2: 317 | LN2: 318 | LO2: 319 | LP2: 320 | LQ2: 321 | LR2: 322 | LS2: 323 | LT2: 324 | LU2: 325 | LV2: 326 | LW2: 327 | LX2: 328 | LY2: 329 | LZ2: 330 | MA2: 331 | MB2: 332 | MC2: 333 | MD2: 334 | ME2: 335 | MF2: 336 | MG2: 337 | MH2: 338 | MI2: 339 | MJ2: 340 | MK2: 341 | ML2: 342 | MM2: 343 | MN2: 344 | MO2: 345 | MP2: 346 | MQ2: 347 | MR2: 348 | MS2: 349 | MT2: 350 | MU2: 351 | MV2: 352 | MW2: 353 | MX2: 354 | MY2: 355 | MZ2: 356 | NA2: 357 | NB2: 358 | NC2: 359 | ND2: 360 | NE2: 361 | NF2: 362 | NG2: 363 | NH2: 364 | NI2: 365 | NJ2: 366 | NK2: 367 | NL2: 368 | NM2: 369 | NN2: 370 | NO2: 371 | NP2: 372 | NQ2: 373 | NR2: 374 | NS2: 375 | NT2: 376 | NU2: 377 | NV2: 378 | NW2: 379 | NX2: 380 | NY2: 381 | NZ2: 382 | OA2: 383 | OB2: 384 | OC2: 385 | OD2: 386 | OE2: 387 | OF2: 388 | OG2: 389 | OH2: 390 | OI2: 391 | OJ2: 392 | OK2: 393 | OL2: 394 | OM2: 395 | ON2: 396 | OO2: 397 | OP2: 398 | OQ2: 399 | OR2: 400 | OS2: 401 | OT2: 402 | OU2: 403 | OV2: 404 | OW2: 405 | OX2: 406 | OY2: 407 | OZ2: 408 | PA2: 409 | PB2: 410 | PC2: 411 | PD2: 412 | PE2: 413 | PF2: 414 | PG2: 415 | PH2: 416 | PI2: 417 | PJ2: 418 | PK2: 419 | PL2: 420 | PM2: 421 | PN2: 422 | PO2: 423 | PP2: 424 | PQ2: 425 | PR2: 426 | PS2: 427 | PT2: 428 | PU2: 429 | PV2: 430 | PW2: 431 | PX2: 432 | PY2: 433 | PZ2: 434 | QA2: 435 | QB2: 436 | QC2: 437 | QD2: 438 | QE2: 439 | QF2: 440 | QG2: 441 | QH2: 442 | QI2: 443 | QJ2: 444 | QK2: 445 | QL2: 446 | QM2: 447 | QN2: 448 | QO2: 449 | QP2: 450 | QQ2: 451 | QR2: 452 | QS2: 453 | QT2: 454 | QU2: 455 | QV2: 456 | QW2: 457 | QX2: 458 | QY2: 459 | QZ2: 460 | RA2: 461 | RB2: 462 | RC2: 463 | RD2: 464 | RE2: 465 | RF2: 466 | RG2: 467 | RH2: 468 | RI2: 469 | RJ2: 470 | RK2: 471 | RL2: 472 | RM2: 473 | RN2: 474 | RO2: 475 | RP2: 476 | RQ2: 477 | RR2: 478 | RS2: 479 | RT2: 480 | RU2: 481 | RV2: 482 | RW2: 483 | RX2: 484 | RY2: 485 | RZ2: 486 | SA2: 487 | SB2: 488 | SC2: 489 | SD2: 490 | SE2: 491 | SF2: 492 | SG2: 493 | SH2: 494 | SI2: 495 | SJ2: 496 | SK2: 497 | SL2: 498 | SM2: 499 | SN2: 500 | SO2: 501 | SP2: 502 | SQ2: 503 | SR2: 504 | SS2: 505 | ST2: 506 | SU2: 507 | SV2: 508 | SW2: 509 | SX2: 510 | SY2: 511 | SZ2: 512 | TA2: 513 | TB2: 514 | TC2: 515 | TD2: 516 | TE2: 517 | TF2: 518 | TG2: 519 | TH2: 520 | TI2: 521 | TJ2: 522 | TK2: 523 | TL2: 524 | TM2: 525 | TN2: 526 | TO2: 527 | TP2: 528 | TQ2: 529 | TR2: 530 | TS2: 531 | TT2: 532 | TU2: 533 | TV2: 534 | TW2: 535 | TX2: 536 | TY2: 537 | TZ2: 538 | UA2: 539 | UB2: 540 | UC2: 541 | UD2: 542 | UE2: 543 | UF2: 544 | UG2: 545 | UH2: 546 | UI2: 547 | UJ2: 548 | UK2: 549 | UL2: 550 | UM2: 551 | UN2: 552 | UO2: 553 | UP2: 554 | UQ2: 555 | UR2: 556 | US2: 557 | UT2: 558 | UU2: 559 | UV2: 560 | UW2: 561 | UX2: 562 | UY2: 563 | UZ2: 564 | VA2: 565 | VB2: 566 | VC2: 567 | VD2: 568 | VE2: 569 | VF2: 570 | VG2: 571 | VH2: 572 | VI2: 573 | VJ2: 574 | VK2: 575 | VL2: 576 | VM2: 577 | VN2: 578 | VO2: 579 | VP2: 580 | VQ2: 581 | VR2: 582 | VS2: 583 | VT2: 584 | VU2: 585 | VV2: 586 | VW2: 587 | VX2: 588 | VY2: 589 | VZ2: 590 | WA2: 591 | WB2: 592 | WC2: 593 | WD2: 594 | WE2: 595 | WF2: 596 | WG2: 597 | WH2: 598 | WI2: 599 | WJ2: 600 | WK2: 601 | WL2: 602 | WM2: 603 | WN2: 604 | WO2: 605 | WP2: 606 | WQ2: 607 | WR2: 608 | WS2: 609 | WT2: 610 | WU2: 611 | WV2: 612 | WW2: 613 | WX2: 614 | WY2: 615 | WZ2: 616 | XA2: 617 | XB2: 618 | XC2: 619 | XD2: 620 | XE2: 621 | XF2: 622 | XG2: 623 | XH2: 624 | XI2: 625 | XJ2: 626 | XK2: 627 | XL2: 628 | XM2: 629 | XN2: 630 | XO2: 631 | XP2: 632 | XQ2: 633 | XR2: 634 | XS2: 635 | XT2: 636 | XU2: 637 | XV2: 638 | XW2: 639 | XX2: 640 | XY2: 641 | XZ2: 642 | YA2: 643 | YB2: 644 | YC2: 645 | YD2: 646 | YE2: 647 | YF2: 648 | YG2: 649 | YH2: 650 | YI2: 651 | YJ2: 652 | YK2: 653 | YL2: 654 | YM2: 655 | YN2: 656 | YO2: 657 | YP2: 658 | YQ2: 659 | YR2: 660 | YS2: 661 | YT2: 662 | YU2: 663 | YV2: 664 | YW2: 665 | YX2: 666 | YY2: 667 | YZ2: 668 | ZA2: 669 | ZB2: 670 | ZC2: 671 | ZD2: 672 | ZE2: 673 | ZF2: 674 | ZG2: 675 | ZH2: 676 | ZI2: 677 | ZJ2: 678 | ZK2: 679 | ZL2: 680 | ZM2: 681 | ZN2: 682 | ZO2: 683 | ZP2: 684 | ZQ2: 685 | ZR2: 686 | ZS2: 687 | ZT2: 688 | ZU2: 689 | ZV2: 690 | ZW2: 691 | ZX2: 692 | ZY2: 693 | ZZ2: 694 | AAA2: 695 | AAB2: 696 | AAC2: 697 | AAD2: 698 | AAE2: 699 | AAF2: 700 | AAG2: 701 | AAH2: 702 | AAI2: 703 | AAJ2: 704 | AAK2: 705 | AAL2: 706 | AAM2: 707 | AAN2: 708 | AAO2: 709 | AAP2: 710 | AAQ2: 711 | AAR2: 712 | AAS2: 713 | AAT2: 714 | AAU2: 715 | AAV2: 716 | AAW2: 717 | AAX2: 718 | AAY2: 719 | AAZ2: 720 | ABA2: 721 | ABB2: 722 | ABC2: 723 | ABD2: 724 | ABE2: 725 | ABF2: 726 | ABG2: 727 | ABH2: 728 | ABI2: 729 | ABJ2: 730 | ABK2: 731 | ABL2: 732 | ABM2: 733 | ABN2: 734 | ABO2: 735 | ABP2: 736 | ABQ2: 737 | ABR2: 738 | ABS2: 739 | ABT2: 740 | ABU2: 741 | ABV2: 742 | ABW2: 743 | ABX2: 744 | ABY2: 745 | ABZ2: 746 | ACA2: 747 | ACB2: 748 | ACC2: 749 | ACD2: 750 | ACE2: 751 | ACF2: 752 | ACG2: 753 | ACH2: 754 | ACI2: 755 | ACJ2: 756 | ACK2: 757 | ACL2: 758 | ACM2: 759 | ACN2: 760 | ACO2: 761 | ACP2: 762 | ACQ2: 763 | ACR2: 764 | ACS2: 765 | ACT2: 766 | ACU2: 767 | ACV2: 768 | ACW2: 769 | ACX2: 770 | ACY2: 771 | ACZ2: 772 | ADA2: 773 | ADB2: 774 | ADC2: 775 | ADD2: 776 | ADE2: 777 | ADF2: 778 | ADG2: 779 | ADH2: 780 | ADI2: 781 | ADJ2: 782 | ADK2: 783 | ADL2: 784 | ADM2: 785 | ADN2: 786 | ADO2: 787 | ADP2: 788 | ADQ2: 789 | ADR2: 790 | ADS2: 791 | ADT2: 792 | ADU2: 793 | ADV2: 794 | ADW2: 795 | ADX2: 796 | ADY2: 797 | ADZ2: 798 | AEA2: 799 | AEB2: 800 | AEC2: 801 | AED2: 802 | AEE2: 803 | AEF2: 804 | AEG2: 805 | AEH2: 806 | AEI2: 807 | AEJ2: 808 | AEK2: 809 | AEL2: 810 | AEM2: 811 | AEN2: 812 | AEO2: 813 | AEP2: 814 | AEQ2: 815 | AER2: 816 | AES2: 817 | AET2: 818 | AEU2: 819 | AEV2: 820 | AEW2: 821 | AEX2: 822 | AEY2: 823 | AEZ2: 824 | AFA2: 825 | AFB2: 826 | AFC2: 827 | AFD2: 828 | AFE2: 829 | AFF2: 830 | AFG2: 831 | AFH2: 832 | AFI2: 833 | AFJ2: 834 | AFK2: 835 | AFL2: 836 | AFM2: 837 | AFN2: 838 | AFO2: 839 | AFP2: 840 | AFQ2: 841 | AFR2: 842 | AFS2: 843 | AFT2: 844 | AFU2: 845 | AFV2: 846 | AFW2: 847 | AFX2: 848 | AFY2: 849 | AFZ2: 850 | AGA2: 851 | AGB2: 852 | AGC2: 853 | AGD2: 854 | AGE2: 855 | AGF2: 856 | AGG2: 857 | AGH2: 858 | AGI2: 859 | AGJ2: 860 | AGK2: 861 | AGL2: 862 | AGM2: 863 | AGN2: 864 | AGO2: 865 | AGP2: 866 | AGQ2: 867 | AGR2: 868 | AGS2: 869 | AGT2: 870 | AGU2: 871 | AGV2: 872 | AGW2: 873 | AGX2: 874 | AGY2: 875 | AGZ2: 876 | AHA2: 877 | AHB2: 878 | AHC2: 879 | AHD2: 880 | AHE2: 881 | AHF2: 882 | AHG2: 883 | AHH2: 884 | AHI2: 885 | AHJ2: 886 | AHK2: 887 | AHL2: 888 | AHM2: 889 | AHN2: 890 | AHO2: 891 | AHP2: 892 | AHQ2: 893 | AHR2: 894 | AHS2: 895 | AHT2: 896 | AHU2: 897 | AHV2: 898 | AHW2: 899 | AHX2: 900 | AHY2: 901 | AHZ2: 902 | AIA2: 903 | AIB2: 904 | AIC2: 905 | AID2: 906 | AIE2: 907 | AIF2: 908 | AIG2: 909 | AIH2: 910 | AII2: 911 | AIJ2: 912 | AIK2: 913 | AIL2: 914 | AIM2: 915 | AIN2: 916 | AIO2: 917 | AIP2: 918 | AIQ2: 919 | AIR2: 920 | AIS2: 921 | AIT2: 922 | AIU2: 923 | AIV2: 924 | AIW2: 925 | AIX2: 926 | AIY2: 927 | AIZ2: 928 | AJA2: 929 | AJB2: 930 | AJC2: 931 | AJD2: 932 | AJE2: 933 | AJF2: 934 | AJG2: 935 | AJH2: 936 | AJI2: 937 | AJJ2: 938 | AJK2: 939 | AJL2: 940 | AJM2: 941 | AJN2: 942 | AJO2: 943 | AJP2: 944 | AJQ2: 945 | AJR2: 946 | AJS2: 947 | AJT2: 948 | AJU2: 949 | AJV2: 950 | AJW2: 951 | AJX2: 952 | AJY2: 953 | AJZ2: 954 | AKA2: 955 | AKB2: 956 | AKC2: 957 | AKD2: 958 | AKE2: 959 | AKF2: 960 | AKG2: 961 | AKH2: 962 | AKI2: 963 | AKJ2: 964 | AKK2: 965 | AKL2: 966 | AKM2: 967 | AKN2: 968 | AKO2: 969 | AKP2: 970 | AKQ2: 971 | AKR2: 972 | AKS2: 973 | AKT2: 974 | AKU2: 975 | AKV2: 976 | AKW2: 977 | AKX2: 978 | AKY2: 979 | AKZ2: 980 | ALA2: 981 | ALB2: 982 | ALC2: 983 | ALD2: 984 | ALE2: 985 | ALF2: 986 | ALG2: 987 | ALH2: 988 | ALI2: 989 | ALJ2: 990 | ALK2: 991 | ALL2: 992 | ALM2: 993 | ALN2: 994 | ALO2: 995 | ALP2: 996 | ALQ2: 997 | ALR2: 998 | ALS2: 999 | ALT2: 1000 | ALU2: 1001 | ALV2: 1002 | ALW2: 1003 | ALX2: 1004 | ALY2: 1005 | ALZ2: 1006 | AMA2: 1007 | AMB2: 1008 | AMC2: 1009 | AMD2: 1010 | AME2: 1011 | AMF2: 1012 | AMG2: 1013 | AMH2: 1014 | AMI2: 1015 | AMJ2: 1016 | AMK2: 1017 | AML2: 1018 | AMM2: 1019 | AMN2: 1020 | AMO2: 1021 | AMP2: 1022 | AMQ2: 1023 | AMR2: 1024 | AMS2: 1025 | AMT2: 1026 | AMU2: 1027 | AMV2: 1028 | AMW2: 1029 | AMX2: 1030 | AMY2: 1031 | AMZ2: 1032 | ANA2: 1033 | ANB2: 1034 | ANC2: 1035 | AND2: 1036 | ANE2: 1037 | ANF2: 1038 | ANG2: 1039 | ANH2: 1040 | ANI2: 1041 | ANJ2: 1042 | ANK2: 1043 | ANL2: 1044 | ANM2: 1045 | ANN2: 1046 | ANO2: 1047 | ANP2: 1048 | ANQ2: 1049 | ANR2: 1050 | ANS2: 1051 | ANT2: 1052 | ANU2: 1053 | ANV2: 1054 | ANW2: 1055 | ANX2: 1056 | ANY2: 1057 | ANZ2: 1058 | AOA2: 1059 | AOB2: 1060 | AOC2: 1061 | AOD2: 1062 | AOE2: 1063 | AOF2: 1064 | AOG2: 1065 | AOH2: 1066 | AOI2: 1067 | AOJ2: 1068 | AOK2: 1069 | AOL2: 1070 | AOM2: 1071 | AON2: 1072 | AOO2: 1073 | AOP2: 1074 | AOQ2: 1075 | AOR2: 1076 | AOS2: 1077 | AOT2: 1078 | AOU2: 1079 | AOV2: 1080 | AOW2: 1081 | AOX2: 1082 | AOY2: 1083 | AOZ2: 1084 | APA2: 1085 | APB2: 1086 | APC2: 1087 | APD2: 1088 | APE2: 1089 | APF2: 1090 | APG2: 1091 | APH2: 1092 | API2: 1093 | APJ2: 1094 | APK2: 1095 | APL2: 1096 | APM2: 1097 | APN2: 1098 | APO2: 1099 | APP2: 1100 | APQ2: 1101 | APR2: 1102 | APS2: 1103 | APT2: 1104 | APU2: 1105 | APV2: 1106 | APW2: 1107 | APX2: 1108 | APY2: 1109 | APZ2: 1110 | AQA2: 1111 | AQB2: 1112 | AQC2: 1113 | AQD2: 1114 | AQE2: 1115 | AQF2: 1116 | AQG2: 1117 | AQH2: 1118 | AQI2: 1119 | AQJ2: 1120 | AQK2: 1121 | AQL2: 1122 | AQM2: 1123 | AQN2: 1124 | AQO2: 1125 | AQP2: 1126 | AQQ2: 1127 | AQR2: 1128 | AQS2: 1129 | AQT2: 1130 | AQU2: 1131 | AQV2: 1132 | AQW2: 1133 | AQX2: 1134 | AQY2: 1135 | AQZ2: 1136 | ARA2: 1137 | ARB2: 1138 | ARC2: 1139 | ARD2: 1140 | ARE2: 1141 | ARF2: 1142 | ARG2: 1143 | ARH2: 1144 | ARI2: 1145 | ARJ2: 1146 | ARK2: 1147 | ARL2: 1148 | ARM2: 1149 | ARN2: 1150 | ARO2: 1151 | ARP2: 1152 | ARQ2: 1153 | ARR2: 1154 | ARS2: 1155 | ART2: 1156 | ARU2: 1157 | ARV2: 1158 | ARW2: 1159 | ARX2: 1160 | ARY2: 1161 | ARZ2: 1162 | ASA2: 1163 | ASB2: 1164 | ASC2: 1165 | ASD2: 1166 | ASE2: 1167 | ASF2: 1168 | ASG2: 1169 | ASH2: 1170 | ASI2: 1171 | ASJ2: 1172 | ASK2: 1173 | ASL2: 1174 | ASM2: 1175 | ASN2: 1176 | ASO2: 1177 | ASP2: 1178 | ASQ2: 1179 | ASR2: 1180 | ASS2: 1181 | AST2: 1182 | ASU2: 1183 | ASV2: 1184 | ASW2: 1185 | ASX2: 1186 | ASY2: 1187 | ASZ2: 1188 | ATA2: 1189 | ATB2: 1190 | ATC2: 1191 | ATD2: 1192 | ATE2: 1193 | ATF2: 1194 | ATG2: 1195 | ATH2: 1196 | ATI2: 1197 | ATJ2: 1198 | ATK2: 1199 | ATL2: 1200 | ATM2: 1201 | ATN2: 1202 | ATO2: 1203 | ATP2: 1204 | ATQ2: 1205 | ATR2: 1206 | ATS2: 1207 | ATT2: 1208 | ATU2: 1209 | ATV2: 1210 | ATW2: 1211 | ATX2: 1212 | ATY2: 1213 | ATZ2: 1214 | AUA2: 1215 | AUB2: 1216 | AUC2: 1217 | AUD2: 1218 | AUE2: 1219 | AUF2: 1220 | AUG2: 1221 | AUH2: 1222 | AUI2: 1223 | AUJ2: 1224 | AUK2: 1225 | AUL2: 1226 | AUM2: 1227 | AUN2: 1228 | AUO2: 1229 | AUP2: 1230 | AUQ2: 1231 | AUR2: 1232 | AUS2: 1233 | AUT2: 1234 | AUU2: 1235 | AUV2: 1236 | AUW2: 1237 | AUX2: 1238 | AUY2: 1239 | AUZ2: 1240 | AVA2: 1241 | AVB2: 1242 | AVC2: 1243 | AVD2: 1244 | AVE2: 1245 | AVF2: 1246 | AVG2: 1247 | AVH2: 1248 | AVI2: 1249 | AVJ2: 1250 | AVK2: 1251 | AVL2: 1252 | AVM2: 1253 | AVN2: 1254 | AVO2: 1255 | AVP2: 1256 | AVQ2: 1257 | AVR2: 1258 | AVS2: 1259 | AVT2: 1260 | AVU2: 1261 | AVV2: 1262 | AVW2: 1263 | AVX2: 1264 | AVY2: 1265 | AVZ2: 1266 | AWA2: 1267 | AWB2: 1268 | AWC2: 1269 | AWD2: 1270 | AWE2: 1271 | AWF2: 1272 | AWG2: 1273 | AWH2: 1274 | AWI2: 1275 | AWJ2: 1276 | AWK2: 1277 | AWL2: 1278 | AWM2: 1279 | AWN2: 1280 | AWO2: 1281 | AWP2: 1282 | AWQ2: 1283 | AWR2: 1284 | AWS2: 1285 | AWT2: 1286 | AWU2: 1287 | AWV2: 1288 | AWW2: 1289 | AWX2: 1290 | AWY2: 1291 | AWZ2: 1292 | AXA2: 1293 | AXB2: 1294 | AXC2: 1295 | AXD2: 1296 | AXE2: 1297 | AXF2: 1298 | AXG2: 1299 | AXH2: 1300 | AXI2: 1301 | AXJ2: 1302 | AXK2: 1303 | AXL2: 1304 | AXM2: 1305 | AXN2: 1306 | AXO2: 1307 | AXP2: 1308 | AXQ2: 1309 | AXR2: 1310 | AXS2: 1311 | AXT2: 1312 | AXU2: 1313 | AXV2: 1314 | AXW2: 1315 | AXX2: 1316 | AXY2: 1317 | AXZ2: 1318 | AYA2: 1319 | AYB2: 1320 | AYC2: 1321 | AYD2: 1322 | AYE2: 1323 | AYF2: 1324 | AYG2: 1325 | AYH2: 1326 | AYI2: 1327 | AYJ2: 1328 | AYK2: 1329 | AYL2: 1330 | AYM2: 1331 | AYN2: 1332 | AYO2: 1333 | AYP2: 1334 | AYQ2: 1335 | AYR2: 1336 | AYS2: 1337 | AYT2: 1338 | AYU2: 1339 | AYV2: 1340 | AYW2: 1341 | AYX2: 1342 | AYY2: 1343 | AYZ2: 1344 | AZA2: 1345 | AZB2: 1346 | AZC2: 1347 | AZD2: 1348 | AZE2: 1349 | AZF2: 1350 | AZG2: 1351 | AZH2: 1352 | AZI2: 1353 | AZJ2: 1354 | AZK2: 1355 | AZL2: 1356 | AZM2: 1357 | AZN2: 1358 | AZO2: 1359 | AZP2: 1360 | AZQ2: 1361 | AZR2: 1362 | AZS2: 1363 | AZT2: 1364 | AZU2: 1365 | AZV2: 1366 | AZW2: 1367 | AZX2: 1368 | AZY2: 1369 | AZZ2: 1370 | BAA2: 1371 | BAB2: 1372 | BAC2: 1373 | BAD2: 1374 | BAE2: 1375 | BAF2: 1376 | BAG2: 1377 | BAH2: 1378 | BAI2: 1379 | BAJ2: 1380 | BAK2: 1381 | BAL2: 1382 | BAM2: 1383 | BAN2: 1384 | BAO2: 1385 | BAP2: 1386 | BAQ2: 1387 | BAR2: 1388 | BAS2: 1389 | BAT2: 1390 | BAU2: 1391 | BAV2: 1392 | BAW2: 1393 | BAX2: 1394 | BAY2: 1395 | BAZ2: 1396 | BBA2: 1397 | BBB2: 1398 | BBC2: 1399 | BBD2: 1400 | BBE2: 1401 | BBF2: 1402 | BBG2: 1403 | BBH2: 1404 | BBI2: 1405 | BBJ2: 1406 | BBK2: 1407 | BBL2: 1408 | BBM2: 1409 | BBN2: 1410 | BBO2: 1411 | BBP2: 1412 | BBQ2: 1413 | BBR2: 1414 | BBS2: 1415 | BBT2: 1416 | BBU2: 1417 | BBV2: 1418 | BBW2: 1419 | BBX2: 1420 | BBY2: 1421 | BBZ2: 1422 | BCA2: 1423 | BCB2: 1424 | BCC2: 1425 | BCD2: 1426 | BCE2: 1427 | BCF2: 1428 | BCG2: 1429 | BCH2: 1430 | BCI2: 1431 | BCJ2: 1432 | BCK2: 1433 | BCL2: 1434 | BCM2: 1435 | BCN2: 1436 | BCO2: 1437 | BCP2: 1438 | BCQ2: 1439 | BCR2: 1440 | BCS2: 1441 | BCT2: 1442 | BCU2: 1443 | BCV2: 1444 | BCW2: 1445 | BCX2: 1446 | BCY2: 1447 | BCZ2: 1448 | BDA2: 1449 | BDB2: 1450 | BDC2: 1451 | BDD2: 1452 | BDE2: 1453 | BDF2: 1454 | BDG2: 1455 | BDH2: 1456 | BDI2: 1457 | BDJ2: 1458 | BDK2: 1459 | BDL2: 1460 | BDM2: 1461 | BDN2: 1462 | BDO2: 1463 | BDP2: 1464 | BDQ2: 1465 | BDR2: 1466 | BDS2: 1467 | BDT2: 1468 | BDU2: 1469 | BDV2: 1470 | BDW2: 1471 | BDX2: 1472 | BDY2: 1473 | BDZ2: 1474 | BEA2: 1475 | BEB2: 1476 | BEC2: 1477 | BED2: 1478 | BEE2: 1479 | BEF2: 1480 | BEG2: 1481 | BEH2: 1482 | BEI2: 1483 | BEJ2: 1484 | BEK2: 1485 | BEL2: 1486 | BEM2: 1487 | BEN2: 1488 | BEO2: 1489 | BEP2: 1490 | BEQ2: 1491 | BER2: 1492 | BES2: 1493 | BET2: 1494 | BEU2: 1495 | BEV2: 1496 | BEW2: 1497 | BEX2: 1498 | BEY2: 1499 | BEZ2: 1500 | BFA2: 1501 | BFB2: 1502 | BFC2: 1503 | BFD2: 1504 | BFE2: 1505 | BFF2: 1506 | BFG2: 1507 | BFH2: 1508 | BFI2: 1509 | BFJ2: 1510 | BFK2: 1511 | BFL2: 1512 | BFM2: 1513 | BFN2: 1514 | BFO2: 1515 | BFP2: 1516 | BFQ2: 1517 | BFR2: 1518 | BFS2: 1519 | BFT2: 1520 | BFU2: 1521 | BFV2: 1522 | BFW2: 1523 | BFX2: 1524 | BFY2: 1525 | BFZ2: 1526 | BGA2: 1527 | BGB2: 1528 | BGC2: 1529 | BGD2: 1530 | BGE2: 1531 | BGF2: 1532 | BGG2: 1533 | BGH2: 1534 | BGI2: 1535 | BGJ2: 1536 | BGK2: 1537 | BGL2: 1538 | BGM2: 1539 | BGN2: 1540 | BGO2: 1541 | BGP2: 1542 | BGQ2: 1543 | BGR2: 1544 | BGS2: 1545 | BGT2: 1546 | BGU2: 1547 | BGV2: 1548 | BGW2: 1549 | BGX2: 1550 | BGY2: 1551 | BGZ2: 1552 | BHA2: 1553 | BHB2: 1554 | BHC2: 1555 | BHD2: 1556 | BHE2: 1557 | BHF2: 1558 | BHG2: 1559 | BHH2: 1560 | BHI2: 1561 | BHJ2: 1562 | BHK2: 1563 | BHL2: 1564 | BHM2: 1565 | BHN2: 1566 | BHO2: 1567 | BHP2: 1568 | BHQ2: 1569 | BHR2: 1570 | BHS2: 1571 | BHT2: 1572 | BHU2: 1573 | BHV2: 1574 | BHW2: 1575 | BHX2: 1576 | BHY2: 1577 | BHZ2: 1578 | BIA2: 1579 | BIB2: 1580 | BIC2: 1581 | BID2: 1582 | BIE2: 1583 | BIF2: 1584 | BIG2: 1585 | BIH2: 1586 | BII2: 1587 | BIJ2: 1588 | BIK2: 1589 | BIL2: 1590 | BIM2: 1591 | BIN2: 1592 | BIO2: 1593 | BIP2: 1594 | BIQ2: 1595 | BIR2: 1596 | BIS2: 1597 | BIT2: 1598 | BIU2: 1599 | BIV2: 1600 | BIW2: 1601 | BIX2: 1602 | BIY2: 1603 | BIZ2: 1604 | BJA2: 1605 | BJB2: 1606 | BJC2: 1607 | BJD2: 1608 | BJE2: 1609 | BJF2: 1610 | BJG2: 1611 | BJH2: 1612 | BJI2: 1613 | BJJ2: 1614 | BJK2: 1615 | BJL2: 1616 | BJM2: 1617 | BJN2: 1618 | BJO2: 1619 | BJP2: 1620 | BJQ2: 1621 | BJR2: 1622 | BJS2: 1623 | BJT2: 1624 | BJU2: 1625 | BJV2: 1626 | BJW2: 1627 | BJX2: 1628 | BJY2: 1629 | BJZ2: 1630 | BKA2: 1631 | BKB2: 1632 | BKC2: 1633 | BKD2: 1634 | BKE2: 1635 | BKF2: 1636 | BKG2: 1637 | BKH2: 1638 | BKI2: 1639 | BKJ2: 1640 | BKK2: 1641 | BKL2: 1642 | BKM2: 1643 | BKN2: 1644 | BKO2: 1645 | BKP2: 1646 | BKQ2: 1647 | BKR2: 1648 | BKS2: 1649 | BKT2: 1650 | BKU2: 1651 | BKV2: 1652 | BKW2: 1653 | BKX2: 1654 | BKY2: 1655 | BKZ2: 1656 | BLA2: 1657 | BLB2: 1658 | BLC2: 1659 | BLD2: 1660 | BLE2: 1661 | BLF2: 1662 | BLG2: 1663 | BLH2: 1664 | BLI2: 1665 | BLJ2: 1666 | BLK2: 1667 | BLL2: 1668 | BLM2: 1669 | BLN2: 1670 | BLO2: 1671 | BLP2: 1672 | BLQ2: 1673 | BLR2: 1674 | BLS2: 1675 | BLT2: 1676 | BLU2: 1677 | BLV2: 1678 | BLW2: 1679 | BLX2: 1680 | BLY2: 1681 | BLZ2: 1682 | BMA2: 1683 | BMB2: 1684 | BMC2: 1685 | BMD2: 1686 | BME2: 1687 | BMF2: 1688 | BMG2: 1689 | BMH2: 1690 | BMI2: 1691 | BMJ2: 1692 | BMK2: 1693 | BML2: 1694 | BMM2: 1695 | BMN2: 1696 | BMO2: 1697 | BMP2: 1698 | BMQ2: 1699 | BMR2: 1700 | BMS2: 1701 | BMT2: 1702 | BMU2: 1703 | BMV2: 1704 | BMW2: 1705 | BMX2: 1706 | BMY2: 1707 | BMZ2: 1708 | BNA2: 1709 | BNB2: 1710 | BNC2: 1711 | BND2: 1712 | BNE2: 1713 | BNF2: 1714 | BNG2: 1715 | BNH2: 1716 | BNI2: 1717 | BNJ2: 1718 | BNK2: 1719 | BNL2: 1720 | BNM2: 1721 | BNN2: 1722 | BNO2: 1723 | BNP2: 1724 | BNQ2: 1725 | BNR2: 1726 | BNS2: 1727 | BNT2: 1728 | BNU2: 1729 | BNV2: 1730 | BNW2: 1731 | BNX2: 1732 | BNY2: 1733 | BNZ2: 1734 | BOA2: 1735 | BOB2: 1736 | BOC2: 1737 | BOD2: 1738 | BOE2: 1739 | BOF2: 1740 | BOG2: 1741 | BOH2: 1742 | BOI2: 1743 | BOJ2: 1744 | BOK2: 1745 | BOL2: 1746 | BOM2: 1747 | BON2: 1748 | BOO2: 1749 | BOP2: 1750 | BOQ2: 1751 | BOR2: 1752 | BOS2: 1753 | BOT2: 1754 | BOU2: 1755 | BOV2: 1756 | BOW2: 1757 | BOX2: 1758 | BOY2: 1759 | BOZ2: 1760 | BPA2: 1761 | BPB2: 1762 | BPC2: 1763 | BPD2: 1764 | BPE2: 1765 | BPF2: 1766 | BPG2: 1767 | BPH2: 1768 | BPI2: 1769 | BPJ2: 1770 | BPK2: 1771 | BPL2: 1772 | BPM2: 1773 | BPN2: 1774 | BPO2: 1775 | BPP2: 1776 | BPQ2: 1777 | BPR2: 1778 | BPS2: 1779 | BPT2: 1780 | BPU2: 1781 | BPV2: 1782 | BPW2: 1783 | BPX2: 1784 | BPY2: 1785 | BPZ2: 1786 | BQA2: 1787 | BQB2: 1788 | BQC2: 1789 | BQD2: 1790 | BQE2: 1791 | BQF2: 1792 | BQG2: 1793 | BQH2: 1794 | BQI2: 1795 | BQJ2: 1796 | BQK2: 1797 | BQL2: 1798 | BQM2: 1799 | BQN2: 1800 | BQO2: 1801 | BQP2: 1802 | BQQ2: 1803 | BQR2: 1804 | BQS2: 1805 | BQT2: 1806 | BQU2: 1807 | BQV2: 1808 | BQW2: 1809 | BQX2: 1810 | BQY2: 1811 | BQZ2: 1812 | BRA2: 1813 | BRB2: 1814 | BRC2: 1815 | BRD2: 1816 | BRE2: 1817 | BRF2: 1818 | BRG2: 1819 | BRH2: 1820 | BRI2: 1821 | BRJ2: 1822 | BRK2: 1823 | BRL2: 1824 | BRM2: 1825 | BRN2: 1826 | BRO2: 1827 | BRP2: 1828 | BRQ2: 1829 | BRR2: 1830 | BRS2: 1831 | BRT2: 1832 | BRU2: 1833 | BRV2: 1834 | BRW2: 1835 | BRX2: 1836 | BRY2: 1837 | BRZ2: 1838 | BSA2: 1839 | BSB2: 1840 | BSC2: 1841 | BSD2: 1842 | BSE2: 1843 | BSF2: 1844 | BSG2: 1845 | BSH2: 1846 | BSI2: 1847 | BSJ2: 1848 | BSK2: 1849 | BSL2: 1850 | BSM2: 1851 | BSN2: 1852 | BSO2: 1853 | BSP2: 1854 | BSQ2: 1855 | BSR2: 1856 | BSS2: 1857 | BST2: 1858 | BSU2: 1859 | BSV2: 1860 | BSW2: 1861 | BSX2: 1862 | BSY2: 1863 | BSZ2: 1864 | BTA2: 1865 | BTB2: 1866 | BTC2: 1867 | BTD2: 1868 | BTE2: 1869 | BTF2: 1870 | BTG2: 1871 | BTH2: 1872 | BTI2: 1873 | BTJ2: 1874 | BTK2: 1875 | BTL2: 1876 | BTM2: 1877 | BTN2: 1878 | BTO2: 1879 | BTP2: 1880 | BTQ2: 1881 | BTR2: 1882 | BTS2: 1883 | BTT2: 1884 | BTU2: 1885 | BTV2: 1886 | BTW2: 1887 | BTX2: 1888 | BTY2: 1889 | BTZ2: 1890 | BUA2: 1891 | BUB2: 1892 | BUC2: 1893 | BUD2: 1894 | BUE2: 1895 | BUF2: 1896 | BUG2: 1897 | BUH2: 1898 | BUI2: 1899 | BUJ2: 1900 | BUK2: 1901 | BUL2: 1902 | BUM2: 1903 | BUN2: 1904 | BUO2: 1905 | BUP2: 1906 | BUQ2: 1907 | BUR2: 1908 | BUS2: 1909 | BUT2: 1910 | BUU2: 1911 | BUV2: 1912 | BUW2: 1913 | BUX2: 1914 | BUY2: 1915 | BUZ2: 1916 | BVA2: 1917 | BVB2: 1918 | BVC2: 1919 | BVD2: 1920 | BVE2: 1921 | BVF2: 1922 | BVG2: 1923 | BVH2: 1924 | BVI2: 1925 | BVJ2: 1926 | BVK2: 1927 | BVL2: 1928 | BVM2: 1929 | BVN2: 1930 | BVO2: 1931 | BVP2: 1932 | BVQ2: 1933 | BVR2: 1934 | BVS2: 1935 | BVT2: 1936 | BVU2: 1937 | BVV2: 1938 | BVW2: 1939 | BVX2: 1940 | BVY2: 1941 | BVZ2: 1942 | BWA2: 1943 | BWB2: 1944 | BWC2: 1945 | BWD2: 1946 | BWE2: 1947 | BWF2: 1948 | BWG2: 1949 | BWH2: 1950 | BWI2: 1951 | BWJ2: 1952 | BWK2: 1953 | BWL2: 1954 | BWM2: 1955 | BWN2: 1956 | BWO2: 1957 | BWP2: 1958 | BWQ2: 1959 | BWR2: 1960 | BWS2: 1961 | BWT2: 1962 | BWU2: 1963 | BWV2: 1964 | BWW2: 1965 | BWX2: 1966 | BWY2: 1967 | BWZ2: 1968 | BXA2: 1969 | BXB2: 1970 | BXC2: 1971 | BXD2: 1972 | BXE2: 1973 | BXF2: 1974 | BXG2: 1975 | BXH2: 1976 | BXI2: 1977 | BXJ2: 1978 | BXK2: 1979 | BXL2: 1980 | BXM2: 1981 | BXN2: 1982 | BXO2: 1983 | BXP2: 1984 | BXQ2: 1985 | BXR2: 1986 | BXS2: 1987 | BXT2: 1988 | BXU2: 1989 | BXV2: 1990 | BXW2: 1991 | BXX2: 1992 | BXY2: 1993 | BXZ2: 1994 | BYA2: 1995 | BYB2: 1996 | BYC2: 1997 | BYD2: 1998 | BYE2: 1999 | BYF2: 2000 | BYG2: 2001 | BYH2: 2002 | BYI2: 2003 | BYJ2: 2004 | BYK2: 2005 | BYL2: 2006 | BYM2: 2007 | BYN2: 2008 | BYO2: 2009 | BYP2: 2010 | BYQ2: 2011 | BYR2: 2012 | BYS2: 2013 | BYT2: 2014 | BYU2: 2015 | BYV2: 2016 | BYW2: 2017 | BYX2: 2018 | BYY2: 2019 | BYZ2: 2020 | BZA2: 2021 | BZB2: 2022 | BZC2: 2023 | BZD2: 2024 | BZE2: 2025 | BZF2: 2026 | BZG2: 2027 | BZH2: 2028 | BZI2: 2029 | BZJ2: 2030 | BZK2: 2031 | BZL2: 2032 | BZM2: 2033 | BZN2: 2034 | BZO2: 2035 | BZP2: 2036 | BZQ2: 2037 | BZR2: 2038 | BZS2: 2039 | BZT2: 2040 | BZU2: 2041 | BZV2: 2042 | BZW2: 2043 | BZX2: 2044 | BZY2: 2045 | BZZ2: 2046 | CAA2: 2047 | CAB2: 2048 | CAC2: 2049 | CAD2: 2050 | CAE2: 2051 | CAF2: 2052 | CAG2: 2053 | CAH2: 2054 | CAI2: 2055 | CAJ2: 2056 | CAK2: 2057 | CAL2: 2058 | CAM2: 2059 | CAN2: 2060 | CAO2: 2061 | CAP2: 2062 | CAQ2: 2063 | CAR2: 2064 | CAS2: 2065 | CAT2: 2066 | CAU2: 2067 | CAV2: 2068 | CAW2: 2069 | CAX2: 2070 | CAY2: 2071 | CAZ2: 2072 | CBA2: 2073 | CBB2: 2074 | CBC2: 2075 | CBD2: 2076 | CBE2: 2077 | CBF2: 2078 | CBG2: 2079 | CBH2: 2080 | CBI2: 2081 | CBJ2: 2082 | CBK2: 2083 | CBL2: 2084 | CBM2: 2085 | CBN2: 2086 | CBO2: 2087 | CBP2: 2088 | CBQ2: 2089 | CBR2: 2090 | CBS2: 2091 | CBT2: 2092 | CBU2: 2093 | CBV2: 2094 | CBW2: 2095 | CBX2: 2096 | CBY2: 2097 | CBZ2: 2098 | CCA2: 2099 | CCB2: 2100 | CCC2: 2101 | CCD2: 2102 | CCE2: 2103 | CCF2: 2104 | CCG2: 2105 | CCH2: 2106 | CCI2: 2107 | CCJ2: 2108 | CCK2: 2109 | CCL2: 2110 | CCM2: 2111 | CCN2: 2112 | CCO2: 2113 | CCP2: 2114 | CCQ2: 2115 | CCR2: 2116 | CCS2: 2117 | CCT2: 2118 | CCU2: 2119 | CCV2: 2120 | CCW2: 2121 | CCX2: 2122 | CCY2: 2123 | CCZ2: 2124 | CDA2: 2125 | CDB2: 2126 | CDC2: 2127 | CDD2: 2128 | CDE2: 2129 | CDF2: 2130 | CDG2: 2131 | CDH2: 2132 | CDI2: 2133 | CDJ2: 2134 | CDK2: 2135 | CDL2: 2136 | CDM2: 2137 | CDN2: 2138 | CDO2: 2139 | CDP2: 2140 | CDQ2: 2141 | CDR2: 2142 | CDS2: 2143 | CDT2: 2144 | CDU2: 2145 | CDV2: 2146 | CDW2: 2147 | CDX2: 2148 | CDY2: 2149 | CDZ2: 2150 | CEA2: 2151 | CEB2: 2152 | CEC2: 2153 | CED2: 2154 | CEE2: 2155 | CEF2: 2156 | CEG2: 2157 | CEH2: 2158 | CEI2: 2159 | CEJ2: 2160 | CEK2: 2161 | CEL2: 2162 | CEM2: 2163 | CEN2: 2164 | CEO2: 2165 | CEP2: 2166 | CEQ2: 2167 | CER2: 2168 | CES2: 2169 | CET2: 2170 | CEU2: 2171 | CEV2: 2172 | CEW2: 2173 | CEX2: 2174 | CEY2: 2175 | CEZ2: 2176 | CFA2: 2177 | CFB2: 2178 | CFC2: 2179 | CFD2: 2180 | CFE2: 2181 | CFF2: 2182 | CFG2: 2183 | CFH2: 2184 | CFI2: 2185 | CFJ2: 2186 | CFK2: 2187 | CFL2: 2188 | CFM2: 2189 | CFN2: 2190 | CFO2: 2191 | CFP2: 2192 | CFQ2: 2193 | CFR2: 2194 | CFS2: 2195 | CFT2: 2196 | CFU2: 2197 | CFV2: 2198 | CFW2: 2199 | CFX2: 2200 | CFY2: 2201 | CFZ2: 2202 | CGA2: 2203 | CGB2: 2204 | CGC2: 2205 | CGD2: 2206 | CGE2: 2207 | CGF2: 2208 | CGG2: 2209 | CGH2: 2210 | CGI2: 2211 | CGJ2: 2212 | CGK2: 2213 | CGL2: 2214 | CGM2: 2215 | CGN2: 2216 | CGO2: 2217 | CGP2: 2218 | CGQ2: 2219 | CGR2: 2220 | CGS2: 2221 | CGT2: 2222 | CGU2: 2223 | CGV2: 2224 | CGW2: 2225 | CGX2: 2226 | CGY2: 2227 | CGZ2: 2228 | CHA2: 2229 | CHB2: 2230 | CHC2: 2231 | CHD2: 2232 | CHE2: 2233 | CHF2: 2234 | CHG2: 2235 | CHH2: 2236 | CHI2: 2237 | CHJ2: 2238 | CHK2: 2239 | CHL2: 2240 | CHM2: 2241 | CHN2: 2242 | CHO2: 2243 | CHP2: 2244 | CHQ2: 2245 | CHR2: 2246 | CHS2: 2247 | CHT2: 2248 | CHU2: 2249 | CHV2: 2250 | CHW2: 2251 | CHX2: 2252 | CHY2: 2253 | CHZ2: 2254 | CIA2: 2255 | CIB2: 2256 | CIC2: 2257 | CID2: 2258 | CIE2: 2259 | CIF2: 2260 | CIG2: 2261 | CIH2: 2262 | CII2: 2263 | CIJ2: 2264 | CIK2: 2265 | CIL2: 2266 | CIM2: 2267 | CIN2: 2268 | CIO2: 2269 | CIP2: 2270 | CIQ2: 2271 | CIR2: 2272 | CIS2: 2273 | CIT2: 2274 | CIU2: 2275 | CIV2: 2276 | CIW2: 2277 | CIX2: 2278 | CIY2: 2279 | CIZ2: 2280 | CJA2: 2281 | CJB2: 2282 | CJC2: 2283 | CJD2: 2284 | CJE2: 2285 | CJF2: 2286 | CJG2: 2287 | CJH2: 2288 | CJI2: 2289 | CJJ2: 2290 | CJK2: 2291 | CJL2: 2292 | CJM2: 2293 | CJN2: 2294 | CJO2: 2295 | CJP2: 2296 | CJQ2: 2297 | CJR2: 2298 | CJS2: 2299 | CJT2: 2300 | CJU2: 2301 | CJV2: 2302 | CJW2: 2303 | CJX2: 2304 | CJY2: 2305 | CJZ2: 2306 | CKA2: 2307 | CKB2: 2308 | CKC2: 2309 | CKD2: 2310 | CKE2: 2311 | CKF2: 2312 | CKG2: 2313 | CKH2: 2314 | CKI2: 2315 | CKJ2: 2316 | CKK2: 2317 | CKL2: 2318 | CKM2: 2319 | CKN2: 2320 | CKO2: 2321 | CKP2: 2322 | CKQ2: 2323 | CKR2: 2324 | CKS2: 2325 | CKT2: 2326 | CKU2: 2327 | CKV2: 2328 | CKW2: 2329 | CKX2: 2330 | CKY2: 2331 | CKZ2: 2332 | CLA2: 2333 | CLB2: 2334 | CLC2: 2335 | CLD2: 2336 | CLE2: 2337 | CLF2: 2338 | CLG2: 2339 | CLH2: 2340 | CLI2: 2341 | CLJ2: 2342 | CLK2: 2343 | CLL2: 2344 | CLM2: 2345 | CLN2: 2346 | CLO2: 2347 | CLP2: 2348 | CLQ2: 2349 | CLR2: 2350 | CLS2: 2351 | CLT2: 2352 | CLU2: 2353 | CLV2: 2354 | CLW2: 2355 | CLX2: 2356 | CLY2: 2357 | CLZ2: 2358 | CMA2: 2359 | CMB2: 2360 | CMC2: 2361 | CMD2: 2362 | CME2: 2363 | CMF2: 2364 | CMG2: 2365 | CMH2: 2366 | CMI2: 2367 | CMJ2: 2368 | CMK2: 2369 | CML2: 2370 | CMM2: 2371 | CMN2: 2372 | CMO2: 2373 | CMP2: 2374 | CMQ2: 2375 | CMR2: 2376 | CMS2: 2377 | CMT2: 2378 | CMU2: 2379 | CMV2: 2380 | CMW2: 2381 | CMX2: 2382 | CMY2: 2383 | CMZ2: 2384 | CNA2: 2385 | CNB2: 2386 | CNC2: 2387 | CND2: 2388 | CNE2: 2389 | CNF2: 2390 | CNG2: 2391 | CNH2: 2392 | CNI2: 2393 | CNJ2: 2394 | CNK2: 2395 | CNL2: 2396 | CNM2: 2397 | CNN2: 2398 | CNO2: 2399 | CNP2: 2400 | CNQ2: 2401 | CNR2: 2402 | CNS2: 2403 | CNT2: 2404 | CNU2: 2405 | CNV2: 2406 | CNW2: 2407 | CNX2: 2408 | CNY2: 2409 | CNZ2: 2410 | COA2: 2411 | COB2: 2412 | COC2: 2413 | COD2: 2414 | COE2: 2415 | COF2: 2416 | COG2: 2417 | COH2: 2418 | COI2: 2419 | COJ2: 2420 | COK2: 2421 | COL2: 2422 | COM2: 2423 | CON2: 2424 | COO2: 2425 | COP2: 2426 | COQ2: 2427 | COR2: 2428 | COS2: 2429 | COT2: 2430 | COU2: 2431 | COV2: 2432 | COW2: 2433 | COX2: 2434 | COY2: 2435 | COZ2: 2436 | CPA2: 2437 | CPB2: 2438 | CPC2: 2439 | CPD2: 2440 | CPE2: 2441 | CPF2: 2442 | CPG2: 2443 | CPH2: 2444 | CPI2: 2445 | CPJ2: 2446 | CPK2: 2447 | CPL2: 2448 | CPM2: 2449 | CPN2: 2450 | CPO2: 2451 | CPP2: 2452 | CPQ2: 2453 | CPR2: 2454 | CPS2: 2455 | CPT2: 2456 | CPU2: 2457 | CPV2: 2458 | CPW2: 2459 | CPX2: 2460 | CPY2: 2461 | CPZ2: 2462 | CQA2: 2463 | CQB2: 2464 | CQC2: 2465 | CQD2: 2466 | CQE2: 2467 | CQF2: 2468 | CQG2: 2469 | CQH2: 2470 | CQI2: 2471 | CQJ2: 2472 | CQK2: 2473 | CQL2: 2474 | CQM2: 2475 | CQN2: 2476 | CQO2: 2477 | CQP2: 2478 | CQQ2: 2479 | CQR2: 2480 | CQS2: 2481 | CQT2: 2482 | CQU2: 2483 | CQV2: 2484 | CQW2: 2485 | CQX2: 2486 | CQY2: 2487 | CQZ2: 2488 | CRA2: 2489 | CRB2: 2490 | CRC2: 2491 | CRD2: 2492 | CRE2: 2493 | CRF2: 2494 | CRG2: 2495 | CRH2: 2496 | CRI2: 2497 | CRJ2: 2498 | CRK2: 2499 | CRL2: 2500 | CRM2: 2501 | CRN2: 2502 | CRO2: 2503 | CRP2: 2504 | CRQ2: 2505 | CRR2: 2506 | CRS2: 2507 | CRT2: 2508 | CRU2: 2509 | CRV2: 2510 | CRW2: 2511 | CRX2: 2512 | CRY2: 2513 | CRZ2: 2514 | CSA2: 2515 | CSB2: 2516 | CSC2: 2517 | CSD2: 2518 | CSE2: 2519 | CSF2: 2520 | CSG2: 2521 | CSH2: 2522 | CSI2: 2523 | CSJ2: 2524 | CSK2: 2525 | CSL2: 2526 | CSM2: 2527 | CSN2: 2528 | CSO2: 2529 | CSP2: 2530 | CSQ2: 2531 | CSR2: 2532 | CSS2: 2533 | CST2: 2534 | CSU2: 2535 | CSV2: 2536 | CSW2: 2537 | CSX2: 2538 | CSY2: 2539 | CSZ2: 2540 | CTA2: 2541 | CTB2: 2542 | CTC2: 2543 | CTD2: 2544 | CTE2: 2545 | CTF2: 2546 | CTG2: 2547 | CTH2: 2548 | CTI2: 2549 | CTJ2: 2550 | CTK2: 2551 | CTL2: 2552 | CTM2: 2553 | CTN2: 2554 | CTO2: 2555 | CTP2: 2556 | CTQ2: 2557 | CTR2: 2558 | CTS2: 2559 | CTT2: 2560 | CTU2: 2561 | CTV2: 2562 | CTW2: 2563 | CTX2: 2564 | CTY2: 2565 | CTZ2: 2566 | CUA2: 2567 | CUB2: 2568 | CUC2: 2569 | CUD2: 2570 | CUE2: 2571 | CUF2: 2572 | CUG2: 2573 | CUH2: 2574 | CUI2: 2575 | CUJ2: 2576 | CUK2: 2577 | CUL2: 2578 | CUM2: 2579 | CUN2: 2580 | CUO2: 2581 | CUP2: 2582 | CUQ2: 2583 | CUR2: 2584 | CUS2: 2585 | CUT2: 2586 | CUU2: 2587 | CUV2: 2588 | CUW2: 2589 | CUX2: 2590 | CUY2: 2591 | CUZ2: 2592 | CVA2: 2593 | CVB2: 2594 | CVC2: 2595 | CVD2: 2596 | CVE2: 2597 | CVF2: 2598 | CVG2: 2599 | CVH2: 2600 | CVI2: 2601 | CVJ2: 2602 | CVK2: 2603 | CVL2: 2604 | CVM2: 2605 | CVN2: 2606 | CVO2: 2607 | CVP2: 2608 | CVQ2: 2609 | CVR2: 2610 | CVS2: 2611 | CVT2: 2612 | CVU2: 2613 | CVV2: 2614 | CVW2: 2615 | CVX2: 2616 | CVY2: 2617 | CVZ2: 2618 | CWA2: 2619 | CWB2: 2620 | CWC2: 2621 | CWD2: 2622 | CWE2: 2623 | CWF2: 2624 | CWG2: 2625 | CWH2: 2626 | CWI2: 2627 | CWJ2: 2628 | CWK2: 2629 | CWL2: 2630 | CWM2: 2631 | CWN2: 2632 | CWO2: 2633 | CWP2: 2634 | CWQ2: 2635 | CWR2: 2636 | CWS2: 2637 | CWT2: 2638 | CWU2: 2639 | CWV2: 2640 | CWW2: 2641 | CWX2: 2642 | CWY2: 2643 | CWZ2: 2644 | CXA2: 2645 | CXB2: 2646 | CXC2: 2647 | CXD2: 2648 | CXE2: 2649 | CXF2: 2650 | CXG2: 2651 | CXH2: 2652 | CXI2: 2653 | CXJ2: 2654 | CXK2: 2655 | CXL2: 2656 | CXM2: 2657 | CXN2: 2658 | CXO2: 2659 | CXP2: 2660 | CXQ2: 2661 | CXR2: 2662 | CXS2: 2663 | CXT2: 2664 | CXU2: 2665 | CXV2: 2666 | CXW2: 2667 | CXX2: 2668 | CXY2: 2669 | CXZ2: 2670 | CYA2: 2671 | CYB2: 2672 | CYC2: 2673 | CYD2: 2674 | CYE2: 2675 | CYF2: 2676 | CYG2: 2677 | CYH2: 2678 | CYI2: 2679 | CYJ2: 2680 | CYK2: 2681 | CYL2: 2682 | CYM2: 2683 | CYN2: 2684 | CYO2: 2685 | CYP2: 2686 | CYQ2: 2687 | CYR2: 2688 | CYS2: 2689 | CYT2: 2690 | CYU2: 2691 | CYV2: 2692 | CYW2: 2693 | CYX2: 2694 | CYY2: 2695 | CYZ2: 2696 | CZA2: 2697 | CZB2: 2698 | CZC2: 2699 | CZD2: 2700 | CZE2: 2701 | CZF2: 2702 | CZG2: 2703 | CZH2: 2704 | CZI2: 2705 | CZJ2: 2706 | CZK2: 2707 | CZL2: 2708 | CZM2: 2709 | CZN2: 2710 | CZO2: 2711 | CZP2: 2712 | CZQ2: 2713 | CZR2: 2714 | CZS2: 2715 | CZT2: 2716 | CZU2: 2717 | CZV2: 2718 | CZW2: 2719 | CZX2: 2720 | CZY2: 2721 | CZZ2: 2722 | DAA2: 2723 | DAB2: 2724 | DAC2: 2725 | DAD2: 2726 | DAE2: 2727 | DAF2: 2728 | DAG2: 2729 | DAH2: 2730 | DAI2: 2731 | DAJ2: 2732 | DAK2: 2733 | DAL2: 2734 | DAM2: 2735 | DAN2: 2736 | DAO2: 2737 | DAP2: 2738 | DAQ2: 2739 | DAR2: 2740 | DAS2: 2741 | DAT2: 2742 | DAU2: 2743 | DAV2: 2744 | DAW2: 2745 | DAX2: 2746 | DAY2: 2747 | DAZ2: 2748 | DBA2: 2749 | DBB2: 2750 | DBC2: 2751 | DBD2: 2752 | DBE2: 2753 | DBF2: 2754 | DBG2: 2755 | DBH2: 2756 | DBI2: 2757 | DBJ2: 2758 | DBK2: 2759 | DBL2: 2760 | DBM2: 2761 | DBN2: 2762 | DBO2: 2763 | DBP2: 2764 | DBQ2: 2765 | DBR2: 2766 | DBS2: 2767 | DBT2: 2768 | DBU2: 2769 | DBV2: 2770 | DBW2: 2771 | DBX2: 2772 | DBY2: 2773 | DBZ2: 2774 | DCA2: 2775 | DCB2: 2776 | DCC2: 2777 | DCD2: 2778 | DCE2: 2779 | DCF2: 2780 | DCG2: 2781 | DCH2: 2782 | DCI2: 2783 | DCJ2: 2784 | DCK2: 2785 | DCL2: 2786 | DCM2: 2787 | DCN2: 2788 | DCO2: 2789 | DCP2: 2790 | DCQ2: 2791 | DCR2: 2792 | DCS2: 2793 | DCT2: 2794 | DCU2: 2795 | DCV2: 2796 | DCW2: 2797 | DCX2: 2798 | DCY2: 2799 | DCZ2: 2800 | DDA2: 2801 | DDB2: 2802 | DDC2: 2803 | DDD2: 2804 | DDE2: 2805 | DDF2: 2806 | DDG2: 2807 | DDH2: 2808 | DDI2: 2809 | DDJ2: 2810 | DDK2: 2811 | DDL2: 2812 | DDM2: 2813 | DDN2: 2814 | DDO2: 2815 | DDP2: 2816 | DDQ2: 2817 | DDR2: 2818 | DDS2: 2819 | DDT2: 2820 | DDU2: 2821 | DDV2: 2822 | DDW2: 2823 | DDX2: 2824 | DDY2: 2825 | DDZ2: 2826 | DEA2: 2827 | DEB2: 2828 | DEC2: 2829 | DED2: 2830 | DEE2: 2831 | DEF2: 2832 | DEG2: 2833 | DEH2: 2834 | DEI2: 2835 | DEJ2: 2836 | DEK2: 2837 | DEL2: 2838 | DEM2: 2839 | DEN2: 2840 | DEO2: 2841 | DEP2: 2842 | DEQ2: 2843 | DER2: 2844 | DES2: 2845 | DET2: 2846 | DEU2: 2847 | DEV2: 2848 | DEW2: 2849 | DEX2: 2850 | DEY2: 2851 | DEZ2: 2852 | DFA2: 2853 | DFB2: 2854 | DFC2: 2855 | DFD2: 2856 | DFE2: 2857 | DFF2: 2858 | DFG2: 2859 | DFH2: 2860 | DFI2: 2861 | DFJ2: 2862 | DFK2: 2863 | DFL2: 2864 | DFM2: 2865 | DFN2: 2866 | DFO2: 2867 | DFP2: 2868 | DFQ2: 2869 | DFR2: 2870 | DFS2: 2871 | DFT2: 2872 | DFU2: 2873 | DFV2: 2874 | DFW2: 2875 | DFX2: 2876 | DFY2: 2877 | DFZ2: 2878 | DGA2: 2879 | DGB2: 2880 | DGC2: 2881 | DGD2: 2882 | DGE2: 2883 | DGF2: 2884 | DGG2: 2885 | DGH2: 2886 | DGI2: 2887 | DGJ2: 2888 | DGK2: 2889 | DGL2: 2890 | DGM2: 2891 | DGN2: 2892 | DGO2: 2893 | DGP2: 2894 | DGQ2: 2895 | DGR2: 2896 | DGS2: 2897 | DGT2: 2898 | DGU2: 2899 | DGV2: 2900 | DGW2: 2901 | DGX2: 2902 | DGY2: 2903 | DGZ2: 2904 | DHA2: 2905 | DHB2: 2906 | DHC2: 2907 | DHD2: 2908 | DHE2: 2909 | DHF2: 2910 | DHG2: 2911 | DHH2: 2912 | DHI2: 2913 | DHJ2: 2914 | DHK2: 2915 | DHL2: 2916 | DHM2: 2917 | DHN2: 2918 | DHO2: 2919 | DHP2: 2920 | DHQ2: 2921 | DHR2: 2922 | DHS2: 2923 | DHT2: 2924 | DHU2: 2925 | DHV2: 2926 | DHW2: 2927 | DHX2: 2928 | DHY2: 2929 | DHZ2: 2930 | DIA2: 2931 | DIB2: 2932 | DIC2: 2933 | DID2: 2934 | DIE2: 2935 | DIF2: 2936 | DIG2: 2937 | DIH2: 2938 | DII2: 2939 | DIJ2: 2940 | DIK2: 2941 | DIL2: 2942 | DIM2: 2943 | DIN2: 2944 | DIO2: 2945 | DIP2: 2946 | DIQ2: 2947 | DIR2: 2948 | DIS2: 2949 | DIT2: 2950 | DIU2: 2951 | DIV2: 2952 | DIW2: 2953 | DIX2: 2954 | DIY2: 2955 | DIZ2: 2956 | DJA2: 2957 | DJB2: 2958 | DJC2: 2959 | DJD2: 2960 | DJE2: 2961 | DJF2: 2962 | DJG2: 2963 | DJH2: 2964 | DJI2: 2965 | DJJ2: 2966 | DJK2: 2967 | DJL2: 2968 | DJM2: 2969 | DJN2: 2970 | DJO2: 2971 | DJP2: 2972 | DJQ2: 2973 | DJR2: 2974 | DJS2: 2975 | DJT2: 2976 | DJU2: 2977 | DJV2: 2978 | DJW2: 2979 | DJX2: 2980 | DJY2: 2981 | DJZ2: 2982 | DKA2: 2983 | DKB2: 2984 | DKC2: 2985 | DKD2: 2986 | DKE2: 2987 | DKF2: 2988 | DKG2: 2989 | DKH2: 2990 | DKI2: 2991 | DKJ2: 2992 | DKK2: 2993 | DKL2: 2994 | DKM2: 2995 | DKN2: 2996 | DKO2: 2997 | DKP2: 2998 | DKQ2: 2999 | DKR2: 3000 | DKS2: 3001 | DKT2: 3002 | DKU2: 3003 | DKV2: 3004 | DKW2: 3005 | DKX2: 3006 | DKY2: 3007 | DKZ2: 3008 | DLA2: 3009 | DLB2: 3010 | DLC2: 3011 | DLD2: 3012 | DLE2: 3013 | DLF2: 3014 | DLG2: 3015 | DLH2: 3016 | DLI2: 3017 | DLJ2: 3018 | DLK2: 3019 | DLL2: 3020 | DLM2: 3021 | DLN2: 3022 | DLO2: 3023 | DLP2: 3024 | DLQ2: 3025 | DLR2: 3026 | DLS2: 3027 | DLT2: 3028 | DLU2: 3029 | DLV2: 3030 | DLW2: 3031 | DLX2: 3032 | DLY2: 3033 | DLZ2: 3034 | DMA2: 3035 | DMB2: 3036 | DMC2: 3037 | DMD2: 3038 | DME2: 3039 | DMF2: 3040 | DMG2: 3041 | DMH2: 3042 | DMI2: 3043 | DMJ2: 3044 | DMK2: 3045 | DML2: 3046 | DMM2: 3047 | DMN2: 3048 | DMO2: 3049 | DMP2: 3050 | DMQ2: 3051 | DMR2: 3052 | DMS2: 3053 | DMT2: 3054 | DMU2: 3055 | DMV2: 3056 | DMW2: 3057 | DMX2: 3058 | DMY2: 3059 | DMZ2: 3060 | DNA2: 3061 | DNB2: 3062 | DNC2: 3063 | DND2: 3064 | DNE2: 3065 | DNF2: 3066 | DNG2: 3067 | DNH2: 3068 | DNI2: 3069 | DNJ2: 3070 | DNK2: 3071 | DNL2: 3072 | DNM2: 3073 | DNN2: 3074 | DNO2: 3075 | DNP2: 3076 | DNQ2: 3077 | DNR2: 3078 | DNS2: 3079 | DNT2: 3080 | DNU2: 3081 | DNV2: 3082 | DNW2: 3083 | DNX2: 3084 | DNY2: 3085 | DNZ2: 3086 | DOA2: 3087 | DOB2: 3088 | DOC2: 3089 | DOD2: 3090 | DOE2: 3091 | DOF2: 3092 | DOG2: 3093 | DOH2: 3094 | DOI2: 3095 | DOJ2: 3096 | DOK2: 3097 | DOL2: 3098 | DOM2: 3099 | DON2: 3100 | DOO2: 3101 | DOP2: 3102 | DOQ2: 3103 | DOR2: 3104 | DOS2: 3105 | DOT2: 3106 | DOU2: 3107 | DOV2: 3108 | DOW2: 3109 | DOX2: 3110 | DOY2: 3111 | DOZ2: 3112 | DPA2: 3113 | DPB2: 3114 | DPC2: 3115 | DPD2: 3116 | DPE2: 3117 | DPF2: 3118 | DPG2: 3119 | DPH2: 3120 | DPI2: 3121 | DPJ2: 3122 | DPK2: 3123 | DPL2: 3124 | DPM2: 3125 | DPN2: 3126 | DPO2: 3127 | DPP2: 3128 | DPQ2: 3129 | DPR2: 3130 | DPS2: 3131 | DPT2: 3132 | DPU2: 3133 | DPV2: 3134 | DPW2: 3135 | DPX2: 3136 | DPY2: 3137 | DPZ2: 3138 | DQA2: 3139 | DQB2: 3140 | DQC2: 3141 | DQD2: 3142 | DQE2: 3143 | DQF2: 3144 | DQG2: 3145 | DQH2: 3146 | DQI2: 3147 | DQJ2: 3148 | DQK2: 3149 | DQL2: 3150 | DQM2: 3151 | DQN2: 3152 | DQO2: 3153 | DQP2: 3154 | DQQ2: 3155 | DQR2: 3156 | DQS2: 3157 | DQT2: 3158 | DQU2: 3159 | DQV2: 3160 | DQW2: 3161 | DQX2: 3162 | DQY2: 3163 | DQZ2: 3164 | DRA2: 3165 | DRB2: 3166 | DRC2: 3167 | DRD2: 3168 | DRE2: 3169 | DRF2: 3170 | DRG2: 3171 | DRH2: 3172 | DRI2: 3173 | DRJ2: 3174 | DRK2: 3175 | DRL2: 3176 | DRM2: 3177 | DRN2: 3178 | DRO2: 3179 | DRP2: 3180 | DRQ2: 3181 | DRR2: 3182 | DRS2: 3183 | DRT2: 3184 | DRU2: 3185 | DRV2: 3186 | DRW2: 3187 | DRX2: 3188 | DRY2: 3189 | DRZ2: 3190 | DSA2: 3191 | DSB2: 3192 | DSC2: 3193 | DSD2: 3194 | DSE2: 3195 | DSF2: 3196 | DSG2: 3197 | DSH2: 3198 | DSI2: 3199 | DSJ2: 3200 | DSK2: 3201 | DSL2: 3202 | DSM2: 3203 | DSN2: 3204 | DSO2: 3205 | DSP2: 3206 | DSQ2: 3207 | DSR2: 3208 | DSS2: 3209 | DST2: 3210 | DSU2: 3211 | DSV2: 3212 | DSW2: 3213 | DSX2: 3214 | DSY2: 3215 | DSZ2: 3216 | DTA2: 3217 | DTB2: 3218 | DTC2: 3219 | DTD2: 3220 | DTE2: 3221 | DTF2: 3222 | DTG2: 3223 | DTH2: 3224 | DTI2: 3225 | DTJ2: 3226 | DTK2: 3227 | DTL2: 3228 | DTM2: 3229 | DTN2: 3230 | DTO2: 3231 | DTP2: 3232 | DTQ2: 3233 | DTR2: 3234 | DTS2: 3235 | DTT2: 3236 | DTU2: 3237 | DTV2: 3238 | DTW2: 3239 | DTX2: 3240 | DTY2: 3241 | DTZ2: 3242 | DUA2: 3243 | DUB2: 3244 | DUC2: 3245 | DUD2: 3246 | DUE2: 3247 | DUF2: 3248 | DUG2: 3249 | DUH2: 3250 | DUI2: 3251 | DUJ2: 3252 | DUK2: 3253 | DUL2: 3254 | DUM2: 3255 | DUN2: 3256 | DUO2: 3257 | DUP2: 3258 | DUQ2: 3259 | DUR2: 3260 | DUS2: 3261 | DUT2: 3262 | DUU2: 3263 | DUV2: 3264 | DUW2: 3265 | DUX2: 3266 | DUY2: 3267 | DUZ2: 3268 | DVA2: 3269 | DVB2: 3270 | DVC2: 3271 | DVD2: 3272 | DVE2: 3273 | DVF2: 3274 | DVG2: 3275 | DVH2: 3276 | DVI2: 3277 | DVJ2: 3278 | DVK2: 3279 | DVL2: 3280 | DVM2: 3281 | DVN2: 3282 | DVO2: 3283 | DVP2: 3284 | DVQ2: 3285 | DVR2: 3286 | DVS2: 3287 | DVT2: 3288 | DVU2: 3289 | DVV2: 3290 | DVW2: 3291 | DVX2: 3292 | DVY2: 3293 | DVZ2: 3294 | DWA2: 3295 | DWB2: 3296 | DWC2: 3297 | DWD2: 3298 | DWE2: 3299 | DWF2: 3300 | DWG2: 3301 | DWH2: 3302 | DWI2: 3303 | DWJ2: 3304 | DWK2: 3305 | DWL2: 3306 | DWM2: 3307 | DWN2: 3308 | DWO2: 3309 | DWP2: 3310 | DWQ2: 3311 | DWR2: 3312 | DWS2: 3313 | DWT2: 3314 | DWU2: 3315 | DWV2: 3316 | DWW2: 3317 | DWX2: 3318 | DWY2: 3319 | DWZ2: 3320 | DXA2: 3321 | DXB2: 3322 | DXC2: 3323 | DXD2: 3324 | DXE2: 3325 | DXF2: 3326 | DXG2: 3327 | DXH2: 3328 | DXI2: 3329 | DXJ2: 3330 | DXK2: 3331 | DXL2: 3332 | DXM2: 3333 | DXN2: 3334 | DXO2: 3335 | DXP2: 3336 | DXQ2: 3337 | DXR2: 3338 | DXS2: 3339 | DXT2: 3340 | DXU2: 3341 | DXV2: 3342 | DXW2: 3343 | DXX2: 3344 | DXY2: 3345 | DXZ2: 3346 | DYA2: 3347 | DYB2: 3348 | DYC2: 3349 | DYD2: 3350 | DYE2: 3351 | DYF2: 3352 | DYG2: 3353 | DYH2: 3354 | DYI2: 3355 | DYJ2: 3356 | DYK2: 3357 | DYL2: 3358 | DYM2: 3359 | DYN2: 3360 | DYO2: 3361 | DYP2: 3362 | DYQ2: 3363 | DYR2: 3364 | DYS2: 3365 | DYT2: 3366 | DYU2: 3367 | DYV2: 3368 | DYW2: 3369 | DYX2: 3370 | DYY2: 3371 | DYZ2: 3372 | DZA2: 3373 | DZB2: 3374 | DZC2: 3375 | DZD2: 3376 | DZE2: 3377 | DZF2: 3378 | DZG2: 3379 | DZH2: 3380 | DZI2: 3381 | DZJ2: 3382 | DZK2: 3383 | DZL2: 3384 | DZM2: 3385 | DZN2: 3386 | DZO2: 3387 | DZP2: 3388 | DZQ2: 3389 | DZR2: 3390 | DZS2: 3391 | DZT2: 3392 | DZU2: 3393 | DZV2: 3394 | DZW2: 3395 | DZX2: 3396 | DZY2: 3397 | DZZ2: 3398 | EAA2: 3399 | EAB2: 3400 | EAC2: 3401 | EAD2: 3402 | EAE2: 3403 | EAF2: 3404 | EAG2: 3405 | EAH2: 3406 | EAI2: 3407 | EAJ2: 3408 | EAK2: 3409 | EAL2: 3410 | EAM2: 3411 | EAN2: 3412 | EAO2: 3413 | EAP2: 3414 | EAQ2: 3415 | EAR2: 3416 | EAS2: 3417 | EAT2: 3418 | EAU2: 3419 | EAV2: 3420 | EAW2: 3421 | EAX2: 3422 | EAY2: 3423 | EAZ2: 3424 | EBA2: 3425 | EBB2: 3426 | EBC2: 3427 | EBD2: 3428 | EBE2: 3429 | EBF2: 3430 | EBG2: 3431 | EBH2: 3432 | EBI2: 3433 | EBJ2: 3434 | EBK2: 3435 | EBL2: 3436 | EBM2: 3437 | EBN2: 3438 | EBO2: 3439 | EBP2: 3440 | EBQ2: 3441 | EBR2: 3442 | EBS2: 3443 | EBT2: 3444 | EBU2: 3445 | EBV2: 3446 | EBW2: 3447 | EBX2: 3448 | EBY2: 3449 | EBZ2: 3450 | ECA2: 3451 | ECB2: 3452 | ECC2: 3453 | ECD2: 3454 | ECE2: 3455 | ECF2: 3456 | ECG2: 3457 | ECH2: 3458 | ECI2: 3459 | ECJ2: 3460 | ECK2: 3461 | ECL2: 3462 | ECM2: 3463 | ECN2: 3464 | ECO2: 3465 | ECP2: 3466 | ECQ2: 3467 | ECR2: 3468 | ECS2: 3469 | ECT2: 3470 | ECU2: 3471 | ECV2: 3472 | ECW2: 3473 | ECX2: 3474 | ECY2: 3475 | ECZ2: 3476 | EDA2: 3477 | EDB2: 3478 | EDC2: 3479 | EDD2: 3480 | EDE2: 3481 | EDF2: 3482 | EDG2: 3483 | EDH2: 3484 | EDI2: 3485 | EDJ2: 3486 | EDK2: 3487 | EDL2: 3488 | EDM2: 3489 | EDN2: 3490 | EDO2: 3491 | EDP2: 3492 | EDQ2: 3493 | EDR2: 3494 | EDS2: 3495 | EDT2: 3496 | EDU2: 3497 | EDV2: 3498 | EDW2: 3499 | EDX2: 3500 | EDY2: 3501 | EDZ2: 3502 | EEA2: 3503 | EEB2: 3504 | EEC2: 3505 | EED2: 3506 | EEE2: 3507 | EEF2: 3508 | EEG2: 3509 | EEH2: 3510 | EEI2: 3511 | EEJ2: 3512 | EEK2: 3513 | EEL2: 3514 | EEM2: 3515 | EEN2: 3516 | EEO2: 3517 | EEP2: 3518 | EEQ2: 3519 | EER2: 3520 | EES2: 3521 | EET2: 3522 | EEU2: 3523 | EEV2: 3524 | EEW2: 3525 | EEX2: 3526 | EEY2: 3527 | EEZ2: 3528 | EFA2: 3529 | EFB2: 3530 | EFC2: 3531 | EFD2: 3532 | EFE2: 3533 | EFF2: 3534 | EFG2: 3535 | EFH2: 3536 | EFI2: 3537 | EFJ2: 3538 | EFK2: 3539 | EFL2: 3540 | EFM2: 3541 | EFN2: 3542 | EFO2: 3543 | EFP2: 3544 | EFQ2: 3545 | EFR2: 3546 | EFS2: 3547 | EFT2: 3548 | EFU2: 3549 | EFV2: 3550 | EFW2: 3551 | EFX2: 3552 | EFY2: 3553 | EFZ2: 3554 | EGA2: 3555 | EGB2: 3556 | EGC2: 3557 | EGD2: 3558 | EGE2: 3559 | EGF2: 3560 | EGG2: 3561 | EGH2: 3562 | EGI2: 3563 | EGJ2: 3564 | EGK2: 3565 | EGL2: 3566 | EGM2: 3567 | EGN2: 3568 | EGO2: 3569 | EGP2: 3570 | EGQ2: 3571 | EGR2: 3572 | EGS2: 3573 | EGT2: 3574 | EGU2: 3575 | EGV2: 3576 | EGW2: 3577 | EGX2: 3578 | EGY2: 3579 | EGZ2: 3580 | EHA2: 3581 | EHB2: 3582 | EHC2: 3583 | EHD2: 3584 | EHE2: 3585 | EHF2: 3586 | EHG2: 3587 | EHH2: 3588 | EHI2: 3589 | EHJ2: 3590 | EHK2: 3591 | EHL2: 3592 | EHM2: 3593 | EHN2: 3594 | EHO2: 3595 | EHP2: 3596 | EHQ2: 3597 | EHR2: 3598 | EHS2: 3599 | EHT2: 3600 | EHU2: 3601 | EHV2: 3602 | EHW2: 3603 | EHX2: 3604 | EHY2: 3605 | EHZ2: 3606 | EIA2: 3607 | EIB2: 3608 | EIC2: 3609 | EID2: 3610 | EIE2: 3611 | EIF2: 3612 | EIG2: 3613 | EIH2: 3614 | EII2: 3615 | EIJ2: 3616 | EIK2: 3617 | EIL2: 3618 | EIM2: 3619 | EIN2: 3620 | EIO2: 3621 | EIP2: 3622 | EIQ2: 3623 | EIR2: 3624 | EIS2: 3625 | EIT2: 3626 | EIU2: 3627 | EIV2: 3628 | EIW2: 3629 | EIX2: 3630 | EIY2: 3631 | EIZ2: 3632 | EJA2: 3633 | EJB2: 3634 | EJC2: 3635 | EJD2: 3636 | EJE2: 3637 | EJF2: 3638 | EJG2: 3639 | EJH2: 3640 | EJI2: 3641 | EJJ2: 3642 | EJK2: 3643 | EJL2: 3644 | EJM2: 3645 | EJN2: 3646 | EJO2: 3647 | EJP2: 3648 | EJQ2: 3649 | EJR2: 3650 | EJS2: 3651 | EJT2: 3652 | EJU2: 3653 | EJV2: 3654 | EJW2: 3655 | EJX2: 3656 | EJY2: 3657 | EJZ2: 3658 | EKA2: 3659 | EKB2: 3660 | EKC2: 3661 | EKD2: 3662 | EKE2: 3663 | EKF2: 3664 | EKG2: 3665 | EKH2: 3666 | EKI2: 3667 | EKJ2: 3668 | EKK2: 3669 | EKL2: 3670 | EKM2: 3671 | EKN2: 3672 | EKO2: 3673 | EKP2: 3674 | EKQ2: 3675 | EKR2: 3676 | EKS2: 3677 | EKT2: 3678 | EKU2: 3679 | EKV2: 3680 | EKW2: 3681 | EKX2: 3682 | EKY2: 3683 | EKZ2: 3684 | ELA2: 3685 | ELB2: 3686 | ELC2: 3687 | ELD2: 3688 | ELE2: 3689 | ELF2: 3690 | ELG2: 3691 | ELH2: 3692 | ELI2: 3693 | ELJ2: 3694 | ELK2: 3695 | ELL2: 3696 | ELM2: 3697 | ELN2: 3698 | ELO2: 3699 | ELP2: 3700 | ELQ2: 3701 | ELR2: 3702 | ELS2: 3703 | ELT2: 3704 | ELU2: 3705 | ELV2: 3706 | ELW2: 3707 | ELX2: 3708 | ELY2: 3709 | ELZ2: 3710 | EMA2: 3711 | EMB2: 3712 | EMC2: 3713 | EMD2: 3714 | EME2: 3715 | EMF2: 3716 | EMG2: 3717 | EMH2: 3718 | EMI2: 3719 | EMJ2: 3720 | EMK2: 3721 | EML2: 3722 | EMM2: 3723 | EMN2: 3724 | EMO2: 3725 | EMP2: 3726 | EMQ2: 3727 | EMR2: 3728 | EMS2: 3729 | EMT2: 3730 | EMU2: 3731 | EMV2: 3732 | EMW2: 3733 | EMX2: 3734 | EMY2: 3735 | EMZ2: 3736 | ENA2: 3737 | ENB2: 3738 | ENC2: 3739 | END2: 3740 | ENE2: 3741 | ENF2: 3742 | ENG2: 3743 | ENH2: 3744 | ENI2: 3745 | ENJ2: 3746 | ENK2: 3747 | ENL2: 3748 | ENM2: 3749 | ENN2: 3750 | ENO2: 3751 | ENP2: 3752 | ENQ2: 3753 | ENR2: 3754 | ENS2: 3755 | ENT2: 3756 | ENU2: 3757 | ENV2: 3758 | ENW2: 3759 | ENX2: 3760 | ENY2: 3761 | ENZ2: 3762 | EOA2: 3763 | EOB2: 3764 | EOC2: 3765 | EOD2: 3766 | EOE2: 3767 | EOF2: 3768 | EOG2: 3769 | EOH2: 3770 | EOI2: 3771 | EOJ2: 3772 | EOK2: 3773 | EOL2: 3774 | EOM2: 3775 | EON2: 3776 | EOO2: 3777 | EOP2: 3778 | EOQ2: 3779 | EOR2: 3780 | EOS2: 3781 | EOT2: 3782 | EOU2: 3783 | EOV2: 3784 | EOW2: 3785 | EOX2: 3786 | EOY2: 3787 | EOZ2: 3788 | EPA2: 3789 | EPB2: 3790 | EPC2: 3791 | EPD2: 3792 | EPE2: 3793 | EPF2: 3794 | EPG2: 3795 | EPH2: 3796 | EPI2: 3797 | EPJ2: 3798 | EPK2: 3799 | EPL2: 3800 | EPM2: 3801 | EPN2: 3802 | EPO2: 3803 | EPP2: 3804 | EPQ2: 3805 | EPR2: 3806 | EPS2: 3807 | EPT2: 3808 | EPU2: 3809 | EPV2: 3810 | EPW2: 3811 | EPX2: 3812 | EPY2: 3813 | EPZ2: 3814 | EQA2: 3815 | EQB2: 3816 | EQC2: 3817 | EQD2: 3818 | EQE2: 3819 | EQF2: 3820 | EQG2: 3821 | EQH2: 3822 | EQI2: 3823 | EQJ2: 3824 | EQK2: 3825 | EQL2: 3826 | EQM2: 3827 | EQN2: 3828 | EQO2: 3829 | EQP2: 3830 | EQQ2: 3831 | EQR2: 3832 | EQS2: 3833 | EQT2: 3834 | EQU2: 3835 | EQV2: 3836 | EQW2: 3837 | EQX2: 3838 | EQY2: 3839 | EQZ2: 3840 | ERA2: 3841 | ERB2: 3842 | ERC2: 3843 | ERD2: 3844 | ERE2: 3845 | ERF2: 3846 | ERG2: 3847 | ERH2: 3848 | ERI2: 3849 | ERJ2: 3850 | ERK2: 3851 | ERL2: 3852 | ERM2: 3853 | ERN2: 3854 | ERO2: 3855 | ERP2: 3856 | ERQ2: 3857 | ERR2: 3858 | ERS2: 3859 | ERT2: 3860 | ERU2: 3861 | ERV2: 3862 | ERW2: 3863 | ERX2: 3864 | ERY2: 3865 | ERZ2: 3866 | ESA2: 3867 | ESB2: 3868 | ESC2: 3869 | ESD2: 3870 | ESE2: 3871 | ESF2: 3872 | ESG2: 3873 | ESH2: 3874 | ESI2: 3875 | ESJ2: 3876 | ESK2: 3877 | ESL2: 3878 | ESM2: 3879 | ESN2: 3880 | ESO2: 3881 | ESP2: 3882 | ESQ2: 3883 | ESR2: 3884 | ESS2: 3885 | EST2: 3886 | ESU2: 3887 | ESV2: 3888 | ESW2: 3889 | ESX2: 3890 | ESY2: 3891 | ESZ2: 3892 | ETA2: 3893 | ETB2: 3894 | ETC2: 3895 | ETD2: 3896 | ETE2: 3897 | ETF2: 3898 | ETG2: 3899 | ETH2: 3900 | ETI2: 3901 | ETJ2: 3902 | ETK2: 3903 | ETL2: 3904 | ETM2: 3905 | ETN2: 3906 | ETO2: 3907 | ETP2: 3908 | ETQ2: 3909 | ETR2: 3910 | ETS2: 3911 | ETT2: 3912 | ETU2: 3913 | ETV2: 3914 | ETW2: 3915 | ETX2: 3916 | ETY2: 3917 | ETZ2: 3918 | EUA2: 3919 | EUB2: 3920 | EUC2: 3921 | EUD2: 3922 | EUE2: 3923 | EUF2: 3924 | EUG2: 3925 | EUH2: 3926 | EUI2: 3927 | EUJ2: 3928 | EUK2: 3929 | EUL2: 3930 | EUM2: 3931 | EUN2: 3932 | EUO2: 3933 | EUP2: 3934 | EUQ2: 3935 | EUR2: 3936 | EUS2: 3937 | EUT2: 3938 | EUU2: 3939 | EUV2: 3940 | EUW2: 3941 | EUX2: 3942 | EUY2: 3943 | EUZ2: 3944 | EVA2: 3945 | EVB2: 3946 | EVC2: 3947 | EVD2: 3948 | EVE2: 3949 | EVF2: 3950 | EVG2: 3951 | EVH2: 3952 | EVI2: 3953 | EVJ2: 3954 | EVK2: 3955 | EVL2: 3956 | EVM2: 3957 | EVN2: 3958 | EVO2: 3959 | EVP2: 3960 | EVQ2: 3961 | EVR2: 3962 | EVS2: 3963 | EVT2: 3964 | EVU2: 3965 | EVV2: 3966 | EVW2: 3967 | EVX2: 3968 | EVY2: 3969 | EVZ2: 3970 | EWA2: 3971 | EWB2: 3972 | EWC2: 3973 | EWD2: 3974 | EWE2: 3975 | EWF2: 3976 | EWG2: 3977 | EWH2: 3978 | EWI2: 3979 | EWJ2: 3980 | EWK2: 3981 | EWL2: 3982 | EWM2: 3983 | EWN2: 3984 | EWO2: 3985 | EWP2: 3986 | EWQ2: 3987 | EWR2: 3988 | EWS2: 3989 | EWT2: 3990 | EWU2: 3991 | EWV2: 3992 | EWW2: 3993 | EWX2: 3994 | EWY2: 3995 | EWZ2: 3996 | EXA2: 3997 | EXB2: 3998 | EXC2: 3999 | EXD2: 4000 | EXE2: 4001 | EXF2: 4002 | EXG2: 4003 | EXH2: 4004 | EXI2: 4005 | EXJ2: 4006 | EXK2: 4007 | EXL2: 4008 | EXM2: 4009 | EXN2: 4010 | EXO2: 4011 | EXP2: 4012 | EXQ2: 4013 | EXR2: 4014 | EXS2: 4015 | EXT2: 4016 | EXU2: 4017 | EXV2: 4018 | EXW2: 4019 | EXX2: 4020 | EXY2: 4021 | EXZ2: 4022 | EYA2: 4023 | EYB2: 4024 | EYC2: 4025 | EYD2: 4026 | EYE2: 4027 | EYF2: 4028 | EYG2: 4029 | EYH2: 4030 | EYI2: 4031 | EYJ2: 4032 | EYK2: 4033 | EYL2: 4034 | EYM2: 4035 | EYN2: 4036 | EYO2: 4037 | EYP2: 4038 | EYQ2: 4039 | EYR2: 4040 | EYS2: 4041 | EYT2: 4042 | EYU2: 4043 | EYV2: 4044 | EYW2: 4045 | EYX2: 4046 | EYY2: 4047 | EYZ2: 4048 | EZA2: 4049 | EZB2: 4050 | EZC2: 4051 | EZD2: 4052 | EZE2: 4053 | EZF2: 4054 | EZG2: 4055 | EZH2: 4056 | EZI2: 4057 | EZJ2: 4058 | EZK2: 4059 | EZL2: 4060 | EZM2: 4061 | EZN2: 4062 | EZO2: 4063 | EZP2: 4064 | EZQ2: 4065 | EZR2: 4066 | EZS2: 4067 | EZT2: 4068 | EZU2: 4069 | EZV2: 4070 | EZW2: 4071 | EZX2: 4072 | EZY2: 4073 | EZZ2: 4074 | FAA2: 4075 | FAB2: 4076 | FAC2: 4077 | FAD2: 4078 | FAE2: 4079 | FAF2: 4080 | FAG2: 4081 | FAH2: 4082 | FAI2: 4083 | FAJ2: 4084 | FAK2: 4085 | FAL2: 4086 | FAM2: 4087 | FAN2: 4088 | FAO2: 4089 | FAP2: 4090 | FAQ2: 4091 | FAR2: 4092 | FAS2: 4093 | FAT2: 4094 | FAU2: 4095 | FAV2: 4096 | FAW2: 4097 | FAX2: 4098 | FAY2: 4099 | FAZ2: 4100 | FBA2: 4101 | FBB2: 4102 | FBC2: 4103 | FBD2: 4104 | FBE2: 4105 | FBF2: 4106 | FBG2: 4107 | FBH2: 4108 | FBI2: 4109 | FBJ2: 4110 | FBK2: 4111 | FBL2: 4112 | FBM2: 4113 | FBN2: 4114 | FBO2: 4115 | FBP2: 4116 | FBQ2: 4117 | FBR2: 4118 | FBS2: 4119 | FBT2: 4120 | FBU2: 4121 | FBV2: 4122 | FBW2: 4123 | FBX2: 4124 | FBY2: 4125 | FBZ2: 4126 | FCA2: 4127 | FCB2: 4128 | FCC2: 4129 | FCD2: 4130 | FCE2: 4131 | FCF2: 4132 | FCG2: 4133 | FCH2: 4134 | FCI2: 4135 | FCJ2: 4136 | FCK2: 4137 | FCL2: 4138 | FCM2: 4139 | FCN2: 4140 | FCO2: 4141 | FCP2: 4142 | FCQ2: 4143 | FCR2: 4144 | FCS2: 4145 | FCT2: 4146 | FCU2: 4147 | FCV2: 4148 | FCW2: 4149 | FCX2: 4150 | FCY2: 4151 | FCZ2: 4152 | FDA2: 4153 | FDB2: 4154 | FDC2: 4155 | FDD2: 4156 | FDE2: 4157 | FDF2: 4158 | FDG2: 4159 | FDH2: 4160 | FDI2: 4161 | FDJ2: 4162 | FDK2: 4163 | FDL2: 4164 | FDM2: 4165 | FDN2: 4166 | FDO2: 4167 | FDP2: 4168 | FDQ2: 4169 | FDR2: 4170 | FDS2: 4171 | FDT2: 4172 | FDU2: 4173 | FDV2: 4174 | FDW2: 4175 | FDX2: 4176 | FDY2: 4177 | FDZ2: 4178 | FEA2: 4179 | FEB2: 4180 | FEC2: 4181 | FED2: 4182 | FEE2: 4183 | FEF2: 4184 | FEG2: 4185 | FEH2: 4186 | FEI2: 4187 | FEJ2: 4188 | FEK2: 4189 | FEL2: 4190 | FEM2: 4191 | FEN2: 4192 | FEO2: 4193 | FEP2: 4194 | FEQ2: 4195 | FER2: 4196 | FES2: 4197 | FET2: 4198 | FEU2: 4199 | FEV2: 4200 | FEW2: 4201 | FEX2: 4202 | FEY2: 4203 | FEZ2: 4204 | FFA2: 4205 | FFB2: 4206 | FFC2: 4207 | FFD2: 4208 | FFE2: 4209 | FFF2: 4210 | FFG2: 4211 | FFH2: 4212 | FFI2: 4213 | FFJ2: 4214 | FFK2: 4215 | FFL2: 4216 | FFM2: 4217 | FFN2: 4218 | FFO2: 4219 | FFP2: 4220 | FFQ2: 4221 | FFR2: 4222 | FFS2: 4223 | FFT2: 4224 | FFU2: 4225 | FFV2: 4226 | FFW2: 4227 | FFX2: 4228 | FFY2: 4229 | FFZ2: 4230 | FGA2: 4231 | FGB2: 4232 | FGC2: 4233 | FGD2: 4234 | FGE2: 4235 | FGF2: 4236 | FGG2: 4237 | FGH2: 4238 | FGI2: 4239 | FGJ2: 4240 | FGK2: 4241 | FGL2: 4242 | FGM2: 4243 | FGN2: 4244 | FGO2: 4245 | FGP2: 4246 | FGQ2: 4247 | FGR2: 4248 | FGS2: 4249 | FGT2: 4250 | FGU2: 4251 | FGV2: 4252 | FGW2: 4253 | FGX2: 4254 | FGY2: 4255 | FGZ2: 4256 | FHA2: 4257 | FHB2: 4258 | FHC2: 4259 | FHD2: 4260 | FHE2: 4261 | FHF2: 4262 | FHG2: 4263 | FHH2: 4264 | FHI2: 4265 | FHJ2: 4266 | FHK2: 4267 | FHL2: 4268 | FHM2: 4269 | FHN2: 4270 | FHO2: 4271 | FHP2: 4272 | FHQ2: 4273 | FHR2: 4274 | FHS2: 4275 | FHT2: 4276 | FHU2: 4277 | FHV2: 4278 | FHW2: 4279 | FHX2: 4280 | FHY2: 4281 | FHZ2: 4282 | FIA2: 4283 | FIB2: 4284 | FIC2: 4285 | FID2: 4286 | FIE2: 4287 | FIF2: 4288 | FIG2: 4289 | FIH2: 4290 | FII2: 4291 | FIJ2: 4292 | FIK2: 4293 | FIL2: 4294 | FIM2: 4295 | FIN2: 4296 | FIO2: 4297 | FIP2: 4298 | FIQ2: 4299 | FIR2: 4300 | FIS2: 4301 | FIT2: 4302 | FIU2: 4303 | FIV2: 4304 | FIW2: 4305 | FIX2: 4306 | FIY2: 4307 | FIZ2: 4308 | FJA2: 4309 | FJB2: 4310 | FJC2: 4311 | FJD2: 4312 | FJE2: 4313 | FJF2: 4314 | FJG2: 4315 | FJH2: 4316 | FJI2: 4317 | FJJ2: 4318 | FJK2: 4319 | FJL2: 4320 | FJM2: 4321 | FJN2: 4322 | FJO2: 4323 | FJP2: 4324 | FJQ2: 4325 | FJR2: 4326 | FJS2: 4327 | FJT2: 4328 | FJU2: 4329 | FJV2: 4330 | FJW2: 4331 | FJX2: 4332 | FJY2: 4333 | FJZ2: 4334 | FKA2: 4335 | FKB2: 4336 | FKC2: 4337 | FKD2: 4338 | FKE2: 4339 | FKF2: 4340 | FKG2: 4341 | FKH2: 4342 | FKI2: 4343 | FKJ2: 4344 | FKK2: 4345 | FKL2: 4346 | FKM2: 4347 | FKN2: 4348 | FKO2: 4349 | FKP2: 4350 | FKQ2: 4351 | FKR2: 4352 | FKS2: 4353 | FKT2: 4354 | FKU2: 4355 | FKV2: 4356 | FKW2: 4357 | FKX2: 4358 | FKY2: 4359 | FKZ2: 4360 | FLA2: 4361 | FLB2: 4362 | FLC2: 4363 | FLD2: 4364 | FLE2: 4365 | FLF2: 4366 | FLG2: 4367 | FLH2: 4368 | FLI2: 4369 | FLJ2: 4370 | FLK2: 4371 | FLL2: 4372 | FLM2: 4373 | FLN2: 4374 | FLO2: 4375 | FLP2: 4376 | FLQ2: 4377 | FLR2: 4378 | FLS2: 4379 | FLT2: 4380 | FLU2: 4381 | FLV2: 4382 | FLW2: 4383 | FLX2: 4384 | FLY2: 4385 | FLZ2: 4386 | FMA2: 4387 | FMB2: 4388 | FMC2: 4389 | FMD2: 4390 | FME2: 4391 | FMF2: 4392 | FMG2: 4393 | FMH2: 4394 | FMI2: 4395 | FMJ2: 4396 | FMK2: 4397 | FML2: 4398 | FMM2: 4399 | FMN2: 4400 | FMO2: 4401 | FMP2: 4402 | FMQ2: 4403 | FMR2: 4404 | FMS2: 4405 | FMT2: 4406 | FMU2: 4407 | FMV2: 4408 | FMW2: 4409 | FMX2: 4410 | FMY2: 4411 | FMZ2: 4412 | FNA2: 4413 | FNB2: 4414 | FNC2: 4415 | FND2: 4416 | FNE2: 4417 | FNF2: 4418 | FNG2: 4419 | FNH2: 4420 | FNI2: 4421 | FNJ2: 4422 | FNK2: 4423 | FNL2: 4424 | FNM2: 4425 | FNN2: 4426 | FNO2: 4427 | FNP2: 4428 | FNQ2: 4429 | FNR2: 4430 | FNS2: 4431 | FNT2: 4432 | FNU2: 4433 | FNV2: 4434 | FNW2: 4435 | FNX2: 4436 | FNY2: 4437 | FNZ2: 4438 | FOA2: 4439 | FOB2: 4440 | FOC2: 4441 | FOD2: 4442 | FOE2: 4443 | FOF2: 4444 | FOG2: 4445 | FOH2: 4446 | FOI2: 4447 | FOJ2: 4448 | FOK2: 4449 | FOL2: 4450 | FOM2: 4451 | FON2: 4452 | FOO2: 4453 | FOP2: 4454 | FOQ2: 4455 | FOR2: 4456 | FOS2: 4457 | FOT2: 4458 | FOU2: 4459 | FOV2: 4460 | FOW2: 4461 | FOX2: 4462 | FOY2: 4463 | FOZ2: 4464 | FPA2: 4465 | FPB2: 4466 | FPC2: 4467 | FPD2: 4468 | FPE2: 4469 | FPF2: 4470 | FPG2: 4471 | FPH2: 4472 | FPI2: 4473 | FPJ2: 4474 | FPK2: 4475 | FPL2: 4476 | FPM2: 4477 | FPN2: 4478 | FPO2: 4479 | FPP2: 4480 | FPQ2: 4481 | FPR2: 4482 | FPS2: 4483 | FPT2: 4484 | FPU2: 4485 | FPV2: 4486 | FPW2: 4487 | FPX2: 4488 | FPY2: 4489 | FPZ2: 4490 | FQA2: 4491 | FQB2: 4492 | FQC2: 4493 | FQD2: 4494 | FQE2: 4495 | FQF2: 4496 | FQG2: 4497 | FQH2: 4498 | FQI2: 4499 | FQJ2: 4500 | FQK2: 4501 | FQL2: 4502 | FQM2: 4503 | FQN2: 4504 | FQO2: 4505 | FQP2: 4506 | FQQ2: 4507 | FQR2: 4508 | FQS2: 4509 | FQT2: 4510 | FQU2: 4511 | FQV2: 4512 | FQW2: 4513 | FQX2: 4514 | FQY2: 4515 | FQZ2: 4516 | FRA2: 4517 | FRB2: 4518 | FRC2: 4519 | FRD2: 4520 | FRE2: 4521 | FRF2: 4522 | FRG2: 4523 | FRH2: 4524 | FRI2: 4525 | FRJ2: 4526 | FRK2: 4527 | FRL2: 4528 | FRM2: 4529 | FRN2: 4530 | FRO2: 4531 | FRP2: 4532 | FRQ2: 4533 | FRR2: 4534 | FRS2: 4535 | FRT2: 4536 | FRU2: 4537 | FRV2: 4538 | FRW2: 4539 | FRX2: 4540 | FRY2: 4541 | FRZ2: 4542 | FSA2: 4543 | FSB2: 4544 | FSC2: 4545 | FSD2: 4546 | FSE2: 4547 | FSF2: 4548 | FSG2: 4549 | FSH2: 4550 | FSI2: 4551 | FSJ2: 4552 | FSK2: 4553 | FSL2: 4554 | FSM2: 4555 | FSN2: 4556 | FSO2: 4557 | FSP2: 4558 | FSQ2: 4559 | FSR2: 4560 | FSS2: 4561 | FST2: 4562 | FSU2: 4563 | FSV2: 4564 | FSW2: 4565 | FSX2: 4566 | FSY2: 4567 | FSZ2: 4568 | FTA2: 4569 | FTB2: 4570 | FTC2: 4571 | FTD2: 4572 | FTE2: 4573 | FTF2: 4574 | FTG2: 4575 | FTH2: 4576 | FTI2: 4577 | FTJ2: 4578 | FTK2: 4579 | FTL2: 4580 | FTM2: 4581 | FTN2: 4582 | FTO2: 4583 | FTP2: 4584 | FTQ2: 4585 | FTR2: 4586 | FTS2: 4587 | FTT2: 4588 | FTU2: 4589 | FTV2: 4590 | FTW2: 4591 | FTX2: 4592 | FTY2: 4593 | FTZ2: 4594 | FUA2: 4595 | FUB2: 4596 | FUC2: 4597 | FUD2: 4598 | FUE2: 4599 | FUF2: 4600 | FUG2: 4601 | FUH2: 4602 | FUI2: 4603 | FUJ2: 4604 | FUK2: 4605 | FUL2: 4606 | FUM2: 4607 | FUN2: 4608 | FUO2: 4609 | FUP2: 4610 | FUQ2: 4611 | FUR2: 4612 | FUS2: 4613 | FUT2: 4614 | FUU2: 4615 | FUV2: 4616 | FUW2: 4617 | FUX2: 4618 | FUY2: 4619 | FUZ2: 4620 | FVA2: 4621 | FVB2: 4622 | FVC2: 4623 | FVD2: 4624 | FVE2: 4625 | FVF2: 4626 | FVG2: 4627 | FVH2: 4628 | FVI2: 4629 | FVJ2: 4630 | FVK2: 4631 | FVL2: 4632 | FVM2: 4633 | FVN2: 4634 | FVO2: 4635 | FVP2: 4636 | FVQ2: 4637 | FVR2: 4638 | FVS2: 4639 | FVT2: 4640 | FVU2: 4641 | FVV2: 4642 | FVW2: 4643 | FVX2: 4644 | FVY2: 4645 | FVZ2: 4646 | FWA2: 4647 | FWB2: 4648 | FWC2: 4649 | FWD2: 4650 | FWE2: 4651 | FWF2: 4652 | FWG2: 4653 | FWH2: 4654 | FWI2: 4655 | FWJ2: 4656 | FWK2: 4657 | FWL2: 4658 | FWM2: 4659 | FWN2: 4660 | FWO2: 4661 | FWP2: 4662 | FWQ2: 4663 | FWR2: 4664 | FWS2: 4665 | FWT2: 4666 | FWU2: 4667 | FWV2: 4668 | FWW2: 4669 | FWX2: 4670 | FWY2: 4671 | FWZ2: 4672 | FXA2: 4673 | FXB2: 4674 | FXC2: 4675 | FXD2: 4676 | FXE2: 4677 | FXF2: 4678 | FXG2: 4679 | FXH2: 4680 | FXI2: 4681 | FXJ2: 4682 | FXK2: 4683 | FXL2: 4684 | FXM2: 4685 | FXN2: 4686 | FXO2: 4687 | FXP2: 4688 | FXQ2: 4689 | FXR2: 4690 | FXS2: 4691 | FXT2: 4692 | FXU2: 4693 | FXV2: 4694 | FXW2: 4695 | FXX2: 4696 | FXY2: 4697 | FXZ2: 4698 | FYA2: 4699 | FYB2: 4700 | FYC2: 4701 | FYD2: 4702 | FYE2: 4703 | FYF2: 4704 | FYG2: 4705 | FYH2: 4706 | FYI2: 4707 | FYJ2: 4708 | FYK2: 4709 | FYL2: 4710 | FYM2: 4711 | FYN2: 4712 | FYO2: 4713 | FYP2: 4714 | FYQ2: 4715 | FYR2: 4716 | FYS2: 4717 | FYT2: 4718 | FYU2: 4719 | FYV2: 4720 | FYW2: 4721 | FYX2: 4722 | FYY2: 4723 | FYZ2: 4724 | FZA2: 4725 | FZB2: 4726 | FZC2: 4727 | FZD2: 4728 | FZE2: 4729 | FZF2: 4730 | FZG2: 4731 | FZH2: 4732 | FZI2: 4733 | FZJ2: 4734 | FZK2: 4735 | FZL2: 4736 | FZM2: 4737 | FZN2: 4738 | FZO2: 4739 | FZP2: 4740 | FZQ2: 4741 | FZR2: 4742 | FZS2: 4743 | FZT2: 4744 | FZU2: 4745 | FZV2: 4746 | FZW2: 4747 | FZX2: 4748 | FZY2: 4749 | FZZ2: 4750 | GAA2: 4751 | GAB2: 4752 | GAC2: 4753 | GAD2: 4754 | GAE2: 4755 | GAF2: 4756 | GAG2: 4757 | GAH2: 4758 | GAI2: 4759 | GAJ2: 4760 | GAK2: 4761 | GAL2: 4762 | GAM2: 4763 | GAN2: 4764 | GAO2: 4765 | GAP2: 4766 | GAQ2: 4767 | GAR2: 4768 | GAS2: 4769 | GAT2: 4770 | GAU2: 4771 | GAV2: 4772 | GAW2: 4773 | GAX2: 4774 | GAY2: 4775 | GAZ2: 4776 | GBA2: 4777 | GBB2: 4778 | GBC2: 4779 | GBD2: 4780 | GBE2: 4781 | GBF2: 4782 | GBG2: 4783 | GBH2: 4784 | GBI2: 4785 | GBJ2: 4786 | GBK2: 4787 | GBL2: 4788 | GBM2: 4789 | GBN2: 4790 | GBO2: 4791 | GBP2: 4792 | GBQ2: 4793 | GBR2: 4794 | GBS2: 4795 | GBT2: 4796 | GBU2: 4797 | GBV2: 4798 | GBW2: 4799 | GBX2: 4800 | GBY2: 4801 | GBZ2: 4802 | GCA2: 4803 | GCB2: 4804 | GCC2: 4805 | GCD2: 4806 | GCE2: 4807 | GCF2: 4808 | GCG2: 4809 | GCH2: 4810 | GCI2: 4811 | GCJ2: 4812 | GCK2: 4813 | GCL2: 4814 | GCM2: 4815 | GCN2: 4816 | GCO2: 4817 | GCP2: 4818 | GCQ2: 4819 | GCR2: 4820 | GCS2: 4821 | GCT2: 4822 | GCU2: 4823 | GCV2: 4824 | GCW2: 4825 | GCX2: 4826 | GCY2: 4827 | GCZ2: 4828 | GDA2: 4829 | GDB2: 4830 | GDC2: 4831 | GDD2: 4832 | GDE2: 4833 | GDF2: 4834 | GDG2: 4835 | GDH2: 4836 | GDI2: 4837 | GDJ2: 4838 | GDK2: 4839 | GDL2: 4840 | GDM2: 4841 | GDN2: 4842 | GDO2: 4843 | GDP2: 4844 | GDQ2: 4845 | GDR2: 4846 | GDS2: 4847 | GDT2: 4848 | GDU2: 4849 | GDV2: 4850 | GDW2: 4851 | GDX2: 4852 | GDY2: 4853 | GDZ2: 4854 | GEA2: 4855 | GEB2: 4856 | GEC2: 4857 | GED2: 4858 | GEE2: 4859 | GEF2: 4860 | GEG2: 4861 | GEH2: 4862 | GEI2: 4863 | GEJ2: 4864 | GEK2: 4865 | GEL2: 4866 | GEM2: 4867 | GEN2: 4868 | GEO2: 4869 | GEP2: 4870 | GEQ2: 4871 | GER2: 4872 | GES2: 4873 | GET2: 4874 | GEU2: 4875 | GEV2: 4876 | GEW2: 4877 | GEX2: 4878 | GEY2: 4879 | GEZ2: 4880 | GFA2: 4881 | GFB2: 4882 | GFC2: 4883 | GFD2: 4884 | GFE2: 4885 | GFF2: 4886 | GFG2: 4887 | GFH2: 4888 | GFI2: 4889 | GFJ2: 4890 | GFK2: 4891 | GFL2: 4892 | GFM2: 4893 | GFN2: 4894 | GFO2: 4895 | GFP2: 4896 | GFQ2: 4897 | GFR2: 4898 | GFS2: 4899 | GFT2: 4900 | GFU2: 4901 | GFV2: 4902 | GFW2: 4903 | GFX2: 4904 | GFY2: 4905 | GFZ2: 4906 | GGA2: 4907 | GGB2: 4908 | GGC2: 4909 | GGD2: 4910 | GGE2: 4911 | GGF2: 4912 | GGG2: 4913 | GGH2: 4914 | GGI2: 4915 | GGJ2: 4916 | GGK2: 4917 | GGL2: 4918 | GGM2: 4919 | GGN2: 4920 | GGO2: 4921 | GGP2: 4922 | GGQ2: 4923 | GGR2: 4924 | GGS2: 4925 | GGT2: 4926 | GGU2: 4927 | GGV2: 4928 | GGW2: 4929 | GGX2: 4930 | GGY2: 4931 | GGZ2: 4932 | GHA2: 4933 | GHB2: 4934 | GHC2: 4935 | GHD2: 4936 | GHE2: 4937 | GHF2: 4938 | GHG2: 4939 | GHH2: 4940 | GHI2: 4941 | GHJ2: 4942 | GHK2: 4943 | GHL2: 4944 | GHM2: 4945 | GHN2: 4946 | GHO2: 4947 | GHP2: 4948 | GHQ2: 4949 | GHR2: 4950 | GHS2: 4951 | GHT2: 4952 | GHU2: 4953 | GHV2: 4954 | GHW2: 4955 | GHX2: 4956 | GHY2: 4957 | GHZ2: 4958 | GIA2: 4959 | GIB2: 4960 | GIC2: 4961 | GID2: 4962 | GIE2: 4963 | GIF2: 4964 | GIG2: 4965 | GIH2: 4966 | GII2: 4967 | GIJ2: 4968 | GIK2: 4969 | GIL2: 4970 | GIM2: 4971 | GIN2: 4972 | GIO2: 4973 | GIP2: 4974 | GIQ2: 4975 | GIR2: 4976 | GIS2: 4977 | GIT2: 4978 | GIU2: 4979 | GIV2: 4980 | GIW2: 4981 | GIX2: 4982 | GIY2: 4983 | GIZ2: 4984 | GJA2: 4985 | GJB2: 4986 | GJC2: 4987 | GJD2: 4988 | GJE2: 4989 | GJF2: 4990 | GJG2: 4991 | GJH2: 4992 | GJI2: 4993 | GJJ2: 4994 | GJK2: 4995 | GJL2: 4996 | GJM2: 4997 | GJN2: 4998 | GJO2: 4999 | GJP2: 5000 | GJQ2: 5001 | GJR2: 5002 | GJS2: 5003 | GJT2: 5004 | GJU2: 5005 | GJV2: 5006 | GJW2: 5007 | GJX2: 5008 | GJY2: 5009 | GJZ2: 5010 | GKA2: 5011 | GKB2: 5012 | GKC2: 5013 | GKD2: 5014 | GKE2: 5015 | GKF2: 5016 | GKG2: 5017 | GKH2: 5018 | GKI2: 5019 | GKJ2: 5020 | GKK2: 5021 | GKL2: 5022 | GKM2: 5023 | GKN2: 5024 | GKO2: 5025 | GKP2: 5026 | GKQ2: 5027 | GKR2: 5028 | GKS2: 5029 | GKT2: 5030 | GKU2: 5031 | GKV2: 5032 | GKW2: 5033 | GKX2: 5034 | GKY2: 5035 | GKZ2: 5036 | GLA2: 5037 | GLB2: 5038 | GLC2: 5039 | GLD2: 5040 | GLE2: 5041 | GLF2: 5042 | GLG2: 5043 | GLH2: 5044 | GLI2: 5045 | GLJ2: 5046 | GLK2: 5047 | GLL2: 5048 | GLM2: 5049 | GLN2: 5050 | GLO2: 5051 | GLP2: 5052 | GLQ2: 5053 | GLR2: 5054 | GLS2: 5055 | GLT2: 5056 | GLU2: 5057 | GLV2: 5058 | GLW2: 5059 | GLX2: 5060 | GLY2: 5061 | GLZ2: 5062 | GMA2: 5063 | GMB2: 5064 | GMC2: 5065 | GMD2: 5066 | GME2: 5067 | GMF2: 5068 | GMG2: 5069 | GMH2: 5070 | GMI2: 5071 | GMJ2: 5072 | GMK2: 5073 | GML2: 5074 | GMM2: 5075 | GMN2: 5076 | GMO2: 5077 | GMP2: 5078 | GMQ2: 5079 | GMR2: 5080 | GMS2: 5081 | GMT2: 5082 | GMU2: 5083 | GMV2: 5084 | GMW2: 5085 | GMX2: 5086 | GMY2: 5087 | GMZ2: 5088 | GNA2: 5089 | GNB2: 5090 | GNC2: 5091 | GND2: 5092 | GNE2: 5093 | GNF2: 5094 | GNG2: 5095 | GNH2: 5096 | GNI2: 5097 | GNJ2: 5098 | GNK2: 5099 | GNL2: 5100 | GNM2: 5101 | GNN2: 5102 | GNO2: 5103 | GNP2: 5104 | GNQ2: 5105 | GNR2: 5106 | GNS2: 5107 | GNT2: 5108 | GNU2: 5109 | GNV2: 5110 | GNW2: 5111 | GNX2: 5112 | GNY2: 5113 | GNZ2: 5114 | GOA2: 5115 | GOB2: 5116 | GOC2: 5117 | GOD2: 5118 | GOE2: 5119 | GOF2: 5120 | GOG2: 5121 | GOH2: 5122 | GOI2: 5123 | GOJ2: 5124 | GOK2: 5125 | GOL2: 5126 | GOM2: 5127 | GON2: 5128 | GOO2: 5129 | GOP2: 5130 | GOQ2: 5131 | GOR2: 5132 | GOS2: 5133 | GOT2: 5134 | GOU2: 5135 | GOV2: 5136 | GOW2: 5137 | GOX2: 5138 | GOY2: 5139 | GOZ2: 5140 | GPA2: 5141 | GPB2: 5142 | GPC2: 5143 | GPD2: 5144 | GPE2: 5145 | GPF2: 5146 | GPG2: 5147 | GPH2: 5148 | GPI2: 5149 | GPJ2: 5150 | GPK2: 5151 | GPL2: 5152 | GPM2: 5153 | GPN2: 5154 | GPO2: 5155 | GPP2: 5156 | GPQ2: 5157 | GPR2: 5158 | GPS2: 5159 | GPT2: 5160 | GPU2: 5161 | GPV2: 5162 | GPW2: 5163 | GPX2: 5164 | GPY2: 5165 | GPZ2: 5166 | GQA2: 5167 | GQB2: 5168 | GQC2: 5169 | GQD2: 5170 | GQE2: 5171 | GQF2: 5172 | GQG2: 5173 | GQH2: 5174 | GQI2: 5175 | GQJ2: 5176 | GQK2: 5177 | GQL2: 5178 | GQM2: 5179 | GQN2: 5180 | GQO2: 5181 | GQP2: 5182 | GQQ2: 5183 | GQR2: 5184 | GQS2: 5185 | GQT2: 5186 | GQU2: 5187 | GQV2: 5188 | GQW2: 5189 | GQX2: 5190 | GQY2: 5191 | GQZ2: 5192 | GRA2: 5193 | GRB2: 5194 | GRC2: 5195 | GRD2: 5196 | GRE2: 5197 | GRF2: 5198 | GRG2: 5199 | GRH2: 5200 | GRI2: 5201 | GRJ2: 5202 | GRK2: 5203 | GRL2: 5204 | GRM2: 5205 | GRN2: 5206 | GRO2: 5207 | GRP2: 5208 | GRQ2: 5209 | GRR2: 5210 | GRS2: 5211 | GRT2: 5212 | GRU2: 5213 | GRV2: 5214 | GRW2: 5215 | GRX2: 5216 | GRY2: 5217 | GRZ2: 5218 | GSA2: 5219 | GSB2: 5220 | GSC2: 5221 | GSD2: 5222 | GSE2: 5223 | GSF2: 5224 | GSG2: 5225 | GSH2: 5226 | GSI2: 5227 | GSJ2: 5228 | GSK2: 5229 | GSL2: 5230 | GSM2: 5231 | GSN2: 5232 | GSO2: 5233 | GSP2: 5234 | GSQ2: 5235 | GSR2: 5236 | GSS2: 5237 | GST2: 5238 | GSU2: 5239 | GSV2: 5240 | GSW2: 5241 | GSX2: 5242 | GSY2: 5243 | GSZ2: 5244 | GTA2: 5245 | GTB2: 5246 | GTC2: 5247 | GTD2: 5248 | GTE2: 5249 | GTF2: 5250 | GTG2: 5251 | GTH2: 5252 | GTI2: 5253 | GTJ2: 5254 | GTK2: 5255 | GTL2: 5256 | GTM2: 5257 | GTN2: 5258 | GTO2: 5259 | GTP2: 5260 | GTQ2: 5261 | GTR2: 5262 | GTS2: 5263 | GTT2: 5264 | GTU2: 5265 | GTV2: 5266 | GTW2: 5267 | GTX2: 5268 | GTY2: 5269 | GTZ2: 5270 | GUA2: 5271 | GUB2: 5272 | GUC2: 5273 | GUD2: 5274 | GUE2: 5275 | GUF2: 5276 | GUG2: 5277 | GUH2: 5278 | GUI2: 5279 | GUJ2: 5280 | GUK2: 5281 | GUL2: 5282 | GUM2: 5283 | GUN2: 5284 | GUO2: 5285 | GUP2: 5286 | GUQ2: 5287 | GUR2: 5288 | GUS2: 5289 | GUT2: 5290 | GUU2: 5291 | GUV2: 5292 | GUW2: 5293 | GUX2: 5294 | GUY2: 5295 | GUZ2: 5296 | GVA2: 5297 | GVB2: 5298 | GVC2: 5299 | GVD2: 5300 | GVE2: 5301 | GVF2: 5302 | GVG2: 5303 | GVH2: 5304 | GVI2: 5305 | GVJ2: 5306 | GVK2: 5307 | GVL2: 5308 | GVM2: 5309 | GVN2: 5310 | GVO2: 5311 | GVP2: 5312 | GVQ2: 5313 | GVR2: 5314 | GVS2: 5315 | GVT2: 5316 | GVU2: 5317 | GVV2: 5318 | GVW2: 5319 | GVX2: 5320 | GVY2: 5321 | GVZ2: 5322 | GWA2: 5323 | GWB2: 5324 | GWC2: 5325 | GWD2: 5326 | GWE2: 5327 | GWF2: 5328 | GWG2: 5329 | GWH2: 5330 | GWI2: 5331 | GWJ2: 5332 | GWK2: 5333 | GWL2: 5334 | GWM2: 5335 | GWN2: 5336 | GWO2: 5337 | GWP2: 5338 | GWQ2: 5339 | GWR2: 5340 | GWS2: 5341 | GWT2: 5342 | GWU2: 5343 | GWV2: 5344 | GWW2: 5345 | GWX2: 5346 | GWY2: 5347 | GWZ2: 5348 | GXA2: 5349 | GXB2: 5350 | GXC2: 5351 | GXD2: 5352 | GXE2: 5353 | GXF2: 5354 | GXG2: 5355 | GXH2: 5356 | GXI2: 5357 | GXJ2: 5358 | GXK2: 5359 | GXL2: 5360 | GXM2: 5361 | GXN2: 5362 | GXO2: 5363 | GXP2: 5364 | GXQ2: 5365 | GXR2: 5366 | GXS2: 5367 | GXT2: 5368 | GXU2: 5369 | GXV2: 5370 | GXW2: 5371 | GXX2: 5372 | GXY2: 5373 | GXZ2: 5374 | GYA2: 5375 | GYB2: 5376 | GYC2: 5377 | GYD2: 5378 | GYE2: 5379 | GYF2: 5380 | GYG2: 5381 | GYH2: 5382 | GYI2: 5383 | GYJ2: 5384 | GYK2: 5385 | GYL2: 5386 | GYM2: 5387 | GYN2: 5388 | GYO2: 5389 | GYP2: 5390 | GYQ2: 5391 | GYR2: 5392 | GYS2: 5393 | GYT2: 5394 | GYU2: 5395 | GYV2: 5396 | GYW2: 5397 | GYX2: 5398 | GYY2: 5399 | GYZ2: 5400 | GZA2: 5401 | GZB2: 5402 | GZC2: 5403 | GZD2: 5404 | GZE2: 5405 | GZF2: 5406 | GZG2: 5407 | GZH2: 5408 | GZI2: 5409 | GZJ2: 5410 | GZK2: 5411 | GZL2: 5412 | GZM2: 5413 | GZN2: 5414 | GZO2: 5415 | GZP2: 5416 | GZQ2: 5417 | GZR2: 5418 | GZS2: 5419 | GZT2: 5420 | GZU2: 5421 | GZV2: 5422 | GZW2: 5423 | GZX2: 5424 | GZY2: 5425 | GZZ2: 5426 | HAA2: 5427 | HAB2: 5428 | HAC2: 5429 | HAD2: 5430 | HAE2: 5431 | HAF2: 5432 | HAG2: 5433 | HAH2: 5434 | HAI2: 5435 | HAJ2: 5436 | HAK2: 5437 | HAL2: 5438 | HAM2: 5439 | HAN2: 5440 | HAO2: 5441 | HAP2: 5442 | HAQ2: 5443 | HAR2: 5444 | HAS2: 5445 | HAT2: 5446 | HAU2: 5447 | HAV2: 5448 | HAW2: 5449 | HAX2: 5450 | HAY2: 5451 | HAZ2: 5452 | HBA2: 5453 | HBB2: 5454 | HBC2: 5455 | HBD2: 5456 | HBE2: 5457 | HBF2: 5458 | HBG2: 5459 | HBH2: 5460 | HBI2: 5461 | HBJ2: 5462 | HBK2: 5463 | HBL2: 5464 | HBM2: 5465 | HBN2: 5466 | HBO2: 5467 | HBP2: 5468 | HBQ2: 5469 | HBR2: 5470 | HBS2: 5471 | HBT2: 5472 | HBU2: 5473 | HBV2: 5474 | HBW2: 5475 | HBX2: 5476 | HBY2: 5477 | HBZ2: 5478 | HCA2: 5479 | HCB2: 5480 | HCC2: 5481 | HCD2: 5482 | HCE2: 5483 | HCF2: 5484 | HCG2: 5485 | HCH2: 5486 | HCI2: 5487 | HCJ2: 5488 | HCK2: 5489 | HCL2: 5490 | HCM2: 5491 | HCN2: 5492 | HCO2: 5493 | HCP2: 5494 | HCQ2: 5495 | HCR2: 5496 | HCS2: 5497 | HCT2: 5498 | HCU2: 5499 | HCV2: 5500 | HCW2: 5501 | HCX2: 5502 | HCY2: 5503 | HCZ2: 5504 | HDA2: 5505 | HDB2: 5506 | HDC2: 5507 | HDD2: 5508 | HDE2: 5509 | HDF2: 5510 | HDG2: 5511 | HDH2: 5512 | HDI2: 5513 | HDJ2: 5514 | HDK2: 5515 | HDL2: 5516 | HDM2: 5517 | HDN2: 5518 | HDO2: 5519 | HDP2: 5520 | HDQ2: 5521 | HDR2: 5522 | HDS2: 5523 | HDT2: 5524 | HDU2: 5525 | HDV2: 5526 | HDW2: 5527 | HDX2: 5528 | HDY2: 5529 | HDZ2: 5530 | HEA2: 5531 | HEB2: 5532 | HEC2: 5533 | HED2: 5534 | HEE2: 5535 | HEF2: 5536 | HEG2: 5537 | HEH2: 5538 | HEI2: 5539 | HEJ2: 5540 | HEK2: 5541 | HEL2: 5542 | HEM2: 5543 | HEN2: 5544 | HEO2: 5545 | HEP2: 5546 | HEQ2: 5547 | HER2: 5548 | HES2: 5549 | HET2: 5550 | HEU2: 5551 | HEV2: 5552 | HEW2: 5553 | HEX2: 5554 | HEY2: 5555 | HEZ2: 5556 | HFA2: 5557 | HFB2: 5558 | HFC2: 5559 | HFD2: 5560 | HFE2: 5561 | HFF2: 5562 | HFG2: 5563 | HFH2: 5564 | HFI2: 5565 | HFJ2: 5566 | HFK2: 5567 | HFL2: 5568 | HFM2: 5569 | HFN2: 5570 | HFO2: 5571 | HFP2: 5572 | HFQ2: 5573 | HFR2: 5574 | HFS2: 5575 | HFT2: 5576 | HFU2: 5577 | HFV2: 5578 | HFW2: 5579 | HFX2: 5580 | HFY2: 5581 | HFZ2: 5582 | HGA2: 5583 | HGB2: 5584 | HGC2: 5585 | HGD2: 5586 | HGE2: 5587 | HGF2: 5588 | HGG2: 5589 | HGH2: 5590 | HGI2: 5591 | HGJ2: 5592 | HGK2: 5593 | HGL2: 5594 | HGM2: 5595 | HGN2: 5596 | HGO2: 5597 | HGP2: 5598 | HGQ2: 5599 | HGR2: 5600 | HGS2: 5601 | HGT2: 5602 | HGU2: 5603 | HGV2: 5604 | HGW2: 5605 | HGX2: 5606 | HGY2: 5607 | HGZ2: 5608 | HHA2: 5609 | HHB2: 5610 | HHC2: 5611 | HHD2: 5612 | HHE2: 5613 | HHF2: 5614 | HHG2: 5615 | HHH2: 5616 | HHI2: 5617 | HHJ2: 5618 | HHK2: 5619 | HHL2: 5620 | HHM2: 5621 | HHN2: 5622 | HHO2: 5623 | HHP2: 5624 | HHQ2: 5625 | HHR2: 5626 | HHS2: 5627 | HHT2: 5628 | HHU2: 5629 | HHV2: 5630 | HHW2: 5631 | HHX2: 5632 | HHY2: 5633 | HHZ2: 5634 | HIA2: 5635 | HIB2: 5636 | HIC2: 5637 | HID2: 5638 | HIE2: 5639 | HIF2: 5640 | HIG2: 5641 | HIH2: 5642 | HII2: 5643 | HIJ2: 5644 | HIK2: 5645 | HIL2: 5646 | HIM2: 5647 | HIN2: 5648 | HIO2: 5649 | HIP2: 5650 | HIQ2: 5651 | HIR2: 5652 | HIS2: 5653 | HIT2: 5654 | HIU2: 5655 | HIV2: 5656 | HIW2: 5657 | HIX2: 5658 | HIY2: 5659 | HIZ2: 5660 | HJA2: 5661 | HJB2: 5662 | HJC2: 5663 | HJD2: 5664 | HJE2: 5665 | HJF2: 5666 | HJG2: 5667 | HJH2: 5668 | HJI2: 5669 | HJJ2: 5670 | HJK2: 5671 | HJL2: 5672 | HJM2: 5673 | HJN2: 5674 | HJO2: 5675 | HJP2: 5676 | HJQ2: 5677 | HJR2: 5678 | HJS2: 5679 | HJT2: 5680 | HJU2: 5681 | HJV2: 5682 | HJW2: 5683 | HJX2: 5684 | HJY2: 5685 | HJZ2: 5686 | HKA2: 5687 | HKB2: 5688 | HKC2: 5689 | HKD2: 5690 | HKE2: 5691 | HKF2: 5692 | HKG2: 5693 | HKH2: 5694 | HKI2: 5695 | HKJ2: 5696 | HKK2: 5697 | HKL2: 5698 | HKM2: 5699 | HKN2: 5700 | HKO2: 5701 | HKP2: 5702 | HKQ2: 5703 | HKR2: 5704 | HKS2: 5705 | HKT2: 5706 | HKU2: 5707 | HKV2: 5708 | HKW2: 5709 | HKX2: 5710 | HKY2: 5711 | HKZ2: 5712 | HLA2: 5713 | HLB2: 5714 | HLC2: 5715 | HLD2: 5716 | HLE2: 5717 | HLF2: 5718 | HLG2: 5719 | HLH2: 5720 | HLI2: 5721 | HLJ2: 5722 | HLK2: 5723 | HLL2: 5724 | HLM2: 5725 | HLN2: 5726 | HLO2: 5727 | HLP2: 5728 | HLQ2: 5729 | HLR2: 5730 | HLS2: 5731 | HLT2: 5732 | HLU2: 5733 | HLV2: 5734 | HLW2: 5735 | HLX2: 5736 | HLY2: 5737 | HLZ2: 5738 | HMA2: 5739 | HMB2: 5740 | HMC2: 5741 | HMD2: 5742 | HME2: 5743 | HMF2: 5744 | HMG2: 5745 | HMH2: 5746 | HMI2: 5747 | HMJ2: 5748 | HMK2: 5749 | HML2: 5750 | HMM2: 5751 | HMN2: 5752 | HMO2: 5753 | HMP2: 5754 | HMQ2: 5755 | HMR2: 5756 | HMS2: 5757 | HMT2: 5758 | HMU2: 5759 | HMV2: 5760 | HMW2: 5761 | HMX2: 5762 | HMY2: 5763 | HMZ2: 5764 | HNA2: 5765 | HNB2: 5766 | HNC2: 5767 | HND2: 5768 | HNE2: 5769 | HNF2: 5770 | HNG2: 5771 | HNH2: 5772 | HNI2: 5773 | HNJ2: 5774 | HNK2: 5775 | HNL2: 5776 | HNM2: 5777 | HNN2: 5778 | HNO2: 5779 | HNP2: 5780 | HNQ2: 5781 | HNR2: 5782 | HNS2: 5783 | HNT2: 5784 | HNU2: 5785 | HNV2: 5786 | HNW2: 5787 | HNX2: 5788 | HNY2: 5789 | HNZ2: 5790 | HOA2: 5791 | HOB2: 5792 | HOC2: 5793 | HOD2: 5794 | HOE2: 5795 | HOF2: 5796 | HOG2: 5797 | HOH2: 5798 | HOI2: 5799 | HOJ2: 5800 | HOK2: 5801 | HOL2: 5802 | HOM2: 5803 | HON2: 5804 | HOO2: 5805 | HOP2: 5806 | HOQ2: 5807 | HOR2: 5808 | HOS2: 5809 | HOT2: 5810 | HOU2: 5811 | HOV2: 5812 | HOW2: 5813 | HOX2: 5814 | HOY2: 5815 | HOZ2: 5816 | HPA2: 5817 | HPB2: 5818 | HPC2: 5819 | HPD2: 5820 | HPE2: 5821 | HPF2: 5822 | HPG2: 5823 | HPH2: 5824 | HPI2: 5825 | HPJ2: 5826 | HPK2: 5827 | HPL2: 5828 | HPM2: 5829 | HPN2: 5830 | HPO2: 5831 | HPP2: 5832 | HPQ2: 5833 | HPR2: 5834 | HPS2: 5835 | HPT2: 5836 | HPU2: 5837 | HPV2: 5838 | HPW2: 5839 | HPX2: 5840 | HPY2: 5841 | HPZ2: 5842 | HQA2: 5843 | HQB2: 5844 | HQC2: 5845 | HQD2: 5846 | HQE2: 5847 | HQF2: 5848 | HQG2: 5849 | HQH2: 5850 | HQI2: 5851 | HQJ2: 5852 | HQK2: 5853 | HQL2: 5854 | HQM2: 5855 | HQN2: 5856 | HQO2: 5857 | HQP2: 5858 | HQQ2: 5859 | HQR2: 5860 | HQS2: 5861 | HQT2: 5862 | HQU2: 5863 | HQV2: 5864 | HQW2: 5865 | HQX2: 5866 | HQY2: 5867 | HQZ2: 5868 | HRA2: 5869 | HRB2: 5870 | HRC2: 5871 | HRD2: 5872 | HRE2: 5873 | HRF2: 5874 | HRG2: 5875 | HRH2: 5876 | HRI2: 5877 | HRJ2: 5878 | HRK2: 5879 | HRL2: 5880 | HRM2: 5881 | HRN2: 5882 | HRO2: 5883 | HRP2: 5884 | HRQ2: 5885 | HRR2: 5886 | HRS2: 5887 | HRT2: 5888 | HRU2: 5889 | HRV2: 5890 | HRW2: 5891 | HRX2: 5892 | HRY2: 5893 | HRZ2: 5894 | HSA2: 5895 | HSB2: 5896 | HSC2: 5897 | HSD2: 5898 | HSE2: 5899 | HSF2: 5900 | HSG2: 5901 | HSH2: 5902 | HSI2: 5903 | HSJ2: 5904 | HSK2: 5905 | HSL2: 5906 | HSM2: 5907 | HSN2: 5908 | HSO2: 5909 | HSP2: 5910 | HSQ2: 5911 | HSR2: 5912 | HSS2: 5913 | HST2: 5914 | HSU2: 5915 | HSV2: 5916 | HSW2: 5917 | HSX2: 5918 | HSY2: 5919 | HSZ2: 5920 | HTA2: 5921 | HTB2: 5922 | HTC2: 5923 | HTD2: 5924 | HTE2: 5925 | HTF2: 5926 | HTG2: 5927 | HTH2: 5928 | HTI2: 5929 | HTJ2: 5930 | HTK2: 5931 | HTL2: 5932 | HTM2: 5933 | HTN2: 5934 | HTO2: 5935 | HTP2: 5936 | HTQ2: 5937 | HTR2: 5938 | HTS2: 5939 | HTT2: 5940 | HTU2: 5941 | HTV2: 5942 | HTW2: 5943 | HTX2: 5944 | HTY2: 5945 | HTZ2: 5946 | HUA2: 5947 | HUB2: 5948 | HUC2: 5949 | HUD2: 5950 | HUE2: 5951 | HUF2: 5952 | HUG2: 5953 | HUH2: 5954 | HUI2: 5955 | HUJ2: 5956 | HUK2: 5957 | HUL2: 5958 | HUM2: 5959 | HUN2: 5960 | HUO2: 5961 | HUP2: 5962 | HUQ2: 5963 | HUR2: 5964 | HUS2: 5965 | HUT2: 5966 | HUU2: 5967 | HUV2: 5968 | HUW2: 5969 | HUX2: 5970 | HUY2: 5971 | HUZ2: 5972 | HVA2: 5973 | HVB2: 5974 | HVC2: 5975 | HVD2: 5976 | HVE2: 5977 | HVF2: 5978 | HVG2: 5979 | HVH2: 5980 | HVI2: 5981 | HVJ2: 5982 | HVK2: 5983 | HVL2: 5984 | HVM2: 5985 | HVN2: 5986 | HVO2: 5987 | HVP2: 5988 | HVQ2: 5989 | HVR2: 5990 | HVS2: 5991 | HVT2: 5992 | HVU2: 5993 | HVV2: 5994 | HVW2: 5995 | HVX2: 5996 | HVY2: 5997 | HVZ2: 5998 | HWA2: 5999 | HWB2: 6000 | HWC2: 6001 | HWD2: 6002 | HWE2: 6003 | HWF2: 6004 | HWG2: 6005 | HWH2: 6006 | HWI2: 6007 | HWJ2: 6008 | HWK2: 6009 | HWL2: 6010 | HWM2: 6011 | HWN2: 6012 | HWO2: 6013 | HWP2: 6014 | HWQ2: 6015 | HWR2: 6016 | HWS2: 6017 | HWT2: 6018 | HWU2: 6019 | HWV2: 6020 | HWW2: 6021 | HWX2: 6022 | HWY2: 6023 | HWZ2: 6024 | HXA2: 6025 | HXB2: 6026 | HXC2: 6027 | HXD2: 6028 | HXE2: 6029 | HXF2: 6030 | HXG2: 6031 | HXH2: 6032 | HXI2: 6033 | HXJ2: 6034 | HXK2: 6035 | HXL2: 6036 | HXM2: 6037 | HXN2: 6038 | HXO2: 6039 | HXP2: 6040 | HXQ2: 6041 | HXR2: 6042 | HXS2: 6043 | HXT2: 6044 | HXU2: 6045 | HXV2: 6046 | HXW2: 6047 | HXX2: 6048 | HXY2: 6049 | HXZ2: 6050 | HYA2: 6051 | HYB2: 6052 | HYC2: 6053 | HYD2: 6054 | HYE2: 6055 | HYF2: 6056 | HYG2: 6057 | HYH2: 6058 | HYI2: 6059 | HYJ2: 6060 | HYK2: 6061 | HYL2: 6062 | HYM2: 6063 | HYN2: 6064 | HYO2: 6065 | HYP2: 6066 | HYQ2: 6067 | HYR2: 6068 | HYS2: 6069 | HYT2: 6070 | HYU2: 6071 | HYV2: 6072 | HYW2: 6073 | HYX2: 6074 | HYY2: 6075 | HYZ2: 6076 | HZA2: 6077 | HZB2: 6078 | HZC2: 6079 | HZD2: 6080 | HZE2: 6081 | HZF2: 6082 | HZG2: 6083 | HZH2: 6084 | HZI2: 6085 | HZJ2: 6086 | HZK2: 6087 | HZL2: 6088 | HZM2: 6089 | HZN2: 6090 | HZO2: 6091 | HZP2: 6092 | HZQ2: 6093 | HZR2: 6094 | HZS2: 6095 | HZT2: 6096 | HZU2: 6097 | HZV2: 6098 | HZW2: 6099 | HZX2: 6100 | HZY2: 6101 | HZZ2: 6102 | IAA2: 6103 | IAB2: 6104 | IAC2: 6105 | IAD2: 6106 | IAE2: 6107 | IAF2: 6108 | IAG2: 6109 | IAH2: 6110 | IAI2: 6111 | IAJ2: 6112 | IAK2: 6113 | IAL2: 6114 | IAM2: 6115 | IAN2: 6116 | IAO2: 6117 | IAP2: 6118 | IAQ2: 6119 | IAR2: 6120 | IAS2: 6121 | IAT2: 6122 | IAU2: 6123 | IAV2: 6124 | IAW2: 6125 | IAX2: 6126 | IAY2: 6127 | IAZ2: 6128 | IBA2: 6129 | IBB2: 6130 | IBC2: 6131 | IBD2: 6132 | IBE2: 6133 | IBF2: 6134 | IBG2: 6135 | IBH2: 6136 | IBI2: 6137 | IBJ2: 6138 | IBK2: 6139 | IBL2: 6140 | IBM2: 6141 | IBN2: 6142 | IBO2: 6143 | IBP2: 6144 | IBQ2: 6145 | IBR2: 6146 | IBS2: 6147 | IBT2: 6148 | IBU2: 6149 | IBV2: 6150 | IBW2: 6151 | IBX2: 6152 | IBY2: 6153 | IBZ2: 6154 | ICA2: 6155 | ICB2: 6156 | ICC2: 6157 | ICD2: 6158 | ICE2: 6159 | ICF2: 6160 | ICG2: 6161 | ICH2: 6162 | ICI2: 6163 | ICJ2: 6164 | ICK2: 6165 | ICL2: 6166 | ICM2: 6167 | ICN2: 6168 | ICO2: 6169 | ICP2: 6170 | ICQ2: 6171 | ICR2: 6172 | ICS2: 6173 | ICT2: 6174 | ICU2: 6175 | ICV2: 6176 | ICW2: 6177 | ICX2: 6178 | ICY2: 6179 | ICZ2: 6180 | IDA2: 6181 | IDB2: 6182 | IDC2: 6183 | IDD2: 6184 | IDE2: 6185 | IDF2: 6186 | IDG2: 6187 | IDH2: 6188 | IDI2: 6189 | IDJ2: 6190 | IDK2: 6191 | IDL2: 6192 | IDM2: 6193 | IDN2: 6194 | IDO2: 6195 | IDP2: 6196 | IDQ2: 6197 | IDR2: 6198 | IDS2: 6199 | IDT2: 6200 | IDU2: 6201 | IDV2: 6202 | IDW2: 6203 | IDX2: 6204 | IDY2: 6205 | IDZ2: 6206 | IEA2: 6207 | IEB2: 6208 | IEC2: 6209 | IED2: 6210 | IEE2: 6211 | IEF2: 6212 | IEG2: 6213 | IEH2: 6214 | IEI2: 6215 | IEJ2: 6216 | IEK2: 6217 | IEL2: 6218 | IEM2: 6219 | IEN2: 6220 | IEO2: 6221 | IEP2: 6222 | IEQ2: 6223 | IER2: 6224 | IES2: 6225 | IET2: 6226 | IEU2: 6227 | IEV2: 6228 | IEW2: 6229 | IEX2: 6230 | IEY2: 6231 | IEZ2: 6232 | IFA2: 6233 | IFB2: 6234 | IFC2: 6235 | IFD2: 6236 | IFE2: 6237 | IFF2: 6238 | IFG2: 6239 | IFH2: 6240 | IFI2: 6241 | IFJ2: 6242 | IFK2: 6243 | IFL2: 6244 | IFM2: 6245 | IFN2: 6246 | IFO2: 6247 | IFP2: 6248 | IFQ2: 6249 | IFR2: 6250 | IFS2: 6251 | IFT2: 6252 | IFU2: 6253 | IFV2: 6254 | IFW2: 6255 | IFX2: 6256 | IFY2: 6257 | IFZ2: 6258 | IGA2: 6259 | IGB2: 6260 | IGC2: 6261 | IGD2: 6262 | IGE2: 6263 | IGF2: 6264 | IGG2: 6265 | IGH2: 6266 | IGI2: 6267 | IGJ2: 6268 | IGK2: 6269 | IGL2: 6270 | IGM2: 6271 | IGN2: 6272 | IGO2: 6273 | IGP2: 6274 | IGQ2: 6275 | IGR2: 6276 | IGS2: 6277 | IGT2: 6278 | IGU2: 6279 | IGV2: 6280 | IGW2: 6281 | IGX2: 6282 | IGY2: 6283 | IGZ2: 6284 | IHA2: 6285 | IHB2: 6286 | IHC2: 6287 | IHD2: 6288 | IHE2: 6289 | IHF2: 6290 | IHG2: 6291 | IHH2: 6292 | IHI2: 6293 | IHJ2: 6294 | IHK2: 6295 | IHL2: 6296 | IHM2: 6297 | IHN2: 6298 | IHO2: 6299 | IHP2: 6300 | IHQ2: 6301 | IHR2: 6302 | IHS2: 6303 | IHT2: 6304 | IHU2: 6305 | IHV2: 6306 | IHW2: 6307 | IHX2: 6308 | IHY2: 6309 | IHZ2: 6310 | IIA2: 6311 | IIB2: 6312 | IIC2: 6313 | IID2: 6314 | IIE2: 6315 | IIF2: 6316 | IIG2: 6317 | IIH2: 6318 | III2: 6319 | IIJ2: 6320 | IIK2: 6321 | IIL2: 6322 | IIM2: 6323 | IIN2: 6324 | IIO2: 6325 | IIP2: 6326 | IIQ2: 6327 | IIR2: 6328 | IIS2: 6329 | IIT2: 6330 | IIU2: 6331 | IIV2: 6332 | IIW2: 6333 | IIX2: 6334 | IIY2: 6335 | IIZ2: 6336 | IJA2: 6337 | IJB2: 6338 | IJC2: 6339 | IJD2: 6340 | IJE2: 6341 | IJF2: 6342 | IJG2: 6343 | IJH2: 6344 | IJI2: 6345 | IJJ2: 6346 | IJK2: 6347 | IJL2: 6348 | IJM2: 6349 | IJN2: 6350 | IJO2: 6351 | IJP2: 6352 | IJQ2: 6353 | IJR2: 6354 | IJS2: 6355 | IJT2: 6356 | IJU2: 6357 | IJV2: 6358 | IJW2: 6359 | IJX2: 6360 | IJY2: 6361 | IJZ2: 6362 | IKA2: 6363 | IKB2: 6364 | IKC2: 6365 | IKD2: 6366 | IKE2: 6367 | IKF2: 6368 | IKG2: 6369 | IKH2: 6370 | IKI2: 6371 | IKJ2: 6372 | IKK2: 6373 | IKL2: 6374 | IKM2: 6375 | IKN2: 6376 | IKO2: 6377 | IKP2: 6378 | IKQ2: 6379 | IKR2: 6380 | IKS2: 6381 | IKT2: 6382 | IKU2: 6383 | IKV2: 6384 | IKW2: 6385 | IKX2: 6386 | IKY2: 6387 | IKZ2: 6388 | ILA2: 6389 | ILB2: 6390 | ILC2: 6391 | ILD2: 6392 | ILE2: 6393 | ILF2: 6394 | ILG2: 6395 | ILH2: 6396 | ILI2: 6397 | ILJ2: 6398 | ILK2: 6399 | ILL2: 6400 | ILM2: 6401 | ILN2: 6402 | ILO2: 6403 | ILP2: 6404 | ILQ2: 6405 | ILR2: 6406 | ILS2: 6407 | ILT2: 6408 | ILU2: 6409 | ILV2: 6410 | ILW2: 6411 | ILX2: 6412 | ILY2: 6413 | ILZ2: 6414 | IMA2: 6415 | IMB2: 6416 | IMC2: 6417 | IMD2: 6418 | IME2: 6419 | IMF2: 6420 | IMG2: 6421 | IMH2: 6422 | IMI2: 6423 | IMJ2: 6424 | IMK2: 6425 | IML2: 6426 | IMM2: 6427 | IMN2: 6428 | IMO2: 6429 | IMP2: 6430 | IMQ2: 6431 | IMR2: 6432 | IMS2: 6433 | IMT2: 6434 | IMU2: 6435 | IMV2: 6436 | IMW2: 6437 | IMX2: 6438 | IMY2: 6439 | IMZ2: 6440 | INA2: 6441 | INB2: 6442 | INC2: 6443 | IND2: 6444 | INE2: 6445 | INF2: 6446 | ING2: 6447 | INH2: 6448 | INI2: 6449 | INJ2: 6450 | INK2: 6451 | INL2: 6452 | INM2: 6453 | INN2: 6454 | INO2: 6455 | INP2: 6456 | INQ2: 6457 | INR2: 6458 | INS2: 6459 | INT2: 6460 | INU2: 6461 | INV2: 6462 | INW2: 6463 | INX2: 6464 | INY2: 6465 | INZ2: 6466 | IOA2: 6467 | IOB2: 6468 | IOC2: 6469 | IOD2: 6470 | IOE2: 6471 | IOF2: 6472 | IOG2: 6473 | IOH2: 6474 | IOI2: 6475 | IOJ2: 6476 | IOK2: 6477 | IOL2: 6478 | IOM2: 6479 | ION2: 6480 | IOO2: 6481 | IOP2: 6482 | IOQ2: 6483 | IOR2: 6484 | IOS2: 6485 | IOT2: 6486 | IOU2: 6487 | IOV2: 6488 | IOW2: 6489 | IOX2: 6490 | IOY2: 6491 | IOZ2: 6492 | IPA2: 6493 | IPB2: 6494 | IPC2: 6495 | IPD2: 6496 | IPE2: 6497 | IPF2: 6498 | IPG2: 6499 | IPH2: 6500 | IPI2: 6501 | IPJ2: 6502 | IPK2: 6503 | IPL2: 6504 | IPM2: 6505 | IPN2: 6506 | IPO2: 6507 | IPP2: 6508 | IPQ2: 6509 | IPR2: 6510 | IPS2: 6511 | IPT2: 6512 | IPU2: 6513 | IPV2: 6514 | IPW2: 6515 | IPX2: 6516 | IPY2: 6517 | IPZ2: 6518 | IQA2: 6519 | IQB2: 6520 | IQC2: 6521 | IQD2: 6522 | IQE2: 6523 | IQF2: 6524 | IQG2: 6525 | IQH2: 6526 | IQI2: 6527 | IQJ2: 6528 | IQK2: 6529 | IQL2: 6530 | IQM2: 6531 | IQN2: 6532 | IQO2: 6533 | IQP2: 6534 | IQQ2: 6535 | IQR2: 6536 | IQS2: 6537 | IQT2: 6538 | IQU2: 6539 | IQV2: 6540 | IQW2: 6541 | IQX2: 6542 | IQY2: 6543 | IQZ2: 6544 | IRA2: 6545 | IRB2: 6546 | IRC2: 6547 | IRD2: 6548 | IRE2: 6549 | IRF2: 6550 | IRG2: 6551 | IRH2: 6552 | IRI2: 6553 | IRJ2: 6554 | IRK2: 6555 | IRL2: 6556 | IRM2: 6557 | IRN2: 6558 | IRO2: 6559 | IRP2: 6560 | IRQ2: 6561 | IRR2: 6562 | IRS2: 6563 | IRT2: 6564 | IRU2: 6565 | IRV2: 6566 | IRW2: 6567 | IRX2: 6568 | IRY2: 6569 | IRZ2: 6570 | ISA2: 6571 | ISB2: 6572 | ISC2: 6573 | ISD2: 6574 | ISE2: 6575 | ISF2: 6576 | ISG2: 6577 | ISH2: 6578 | ISI2: 6579 | ISJ2: 6580 | ISK2: 6581 | ISL2: 6582 | ISM2: 6583 | ISN2: 6584 | ISO2: 6585 | ISP2: 6586 | ISQ2: 6587 | ISR2: 6588 | ISS2: 6589 | IST2: 6590 | ISU2: 6591 | ISV2: 6592 | ISW2: 6593 | ISX2: 6594 | ISY2: 6595 | ISZ2: 6596 | ITA2: 6597 | ITB2: 6598 | ITC2: 6599 | ITD2: 6600 | ITE2: 6601 | ITF2: 6602 | ITG2: 6603 | ITH2: 6604 | ITI2: 6605 | ITJ2: 6606 | ITK2: 6607 | ITL2: 6608 | ITM2: 6609 | ITN2: 6610 | ITO2: 6611 | ITP2: 6612 | ITQ2: 6613 | ITR2: 6614 | ITS2: 6615 | ITT2: 6616 | ITU2: 6617 | ITV2: 6618 | ITW2: 6619 | ITX2: 6620 | ITY2: 6621 | ITZ2: 6622 | IUA2: 6623 | IUB2: 6624 | IUC2: 6625 | IUD2: 6626 | IUE2: 6627 | IUF2: 6628 | IUG2: 6629 | IUH2: 6630 | IUI2: 6631 | IUJ2: 6632 | IUK2: 6633 | IUL2: 6634 | IUM2: 6635 | IUN2: 6636 | IUO2: 6637 | IUP2: 6638 | IUQ2: 6639 | IUR2: 6640 | IUS2: 6641 | IUT2: 6642 | IUU2: 6643 | IUV2: 6644 | IUW2: 6645 | IUX2: 6646 | IUY2: 6647 | IUZ2: 6648 | IVA2: 6649 | IVB2: 6650 | IVC2: 6651 | IVD2: 6652 | IVE2: 6653 | IVF2: 6654 | IVG2: 6655 | IVH2: 6656 | IVI2: 6657 | IVJ2: 6658 | IVK2: 6659 | IVL2: 6660 | IVM2: 6661 | IVN2: 6662 | IVO2: 6663 | IVP2: 6664 | IVQ2: 6665 | IVR2: 6666 | IVS2: 6667 | IVT2: 6668 | IVU2: 6669 | IVV2: 6670 | IVW2: 6671 | IVX2: 6672 | IVY2: 6673 | IVZ2: 6674 | IWA2: 6675 | IWB2: 6676 | IWC2: 6677 | IWD2: 6678 | IWE2: 6679 | IWF2: 6680 | IWG2: 6681 | IWH2: 6682 | IWI2: 6683 | IWJ2: 6684 | IWK2: 6685 | IWL2: 6686 | IWM2: 6687 | IWN2: 6688 | IWO2: 6689 | IWP2: 6690 | IWQ2: 6691 | IWR2: 6692 | IWS2: 6693 | IWT2: 6694 | IWU2: 6695 | IWV2: 6696 | IWW2: 6697 | IWX2: 6698 | IWY2: 6699 | IWZ2: 6700 | IXA2: 6701 | IXB2: 6702 | IXC2: 6703 | IXD2: 6704 | IXE2: 6705 | IXF2: 6706 | IXG2: 6707 | IXH2: 6708 | IXI2: 6709 | IXJ2: 6710 | IXK2: 6711 | IXL2: 6712 | IXM2: 6713 | IXN2: 6714 | IXO2: 6715 | IXP2: 6716 | IXQ2: 6717 | IXR2: 6718 | IXS2: 6719 | IXT2: 6720 | IXU2: 6721 | IXV2: 6722 | IXW2: 6723 | IXX2: 6724 | IXY2: 6725 | IXZ2: 6726 | IYA2: 6727 | IYB2: 6728 | IYC2: 6729 | IYD2: 6730 | IYE2: 6731 | IYF2: 6732 | IYG2: 6733 | IYH2: 6734 | IYI2: 6735 | IYJ2: 6736 | IYK2: 6737 | IYL2: 6738 | IYM2: 6739 | IYN2: 6740 | IYO2: 6741 | IYP2: 6742 | IYQ2: 6743 | IYR2: 6744 | IYS2: 6745 | IYT2: 6746 | IYU2: 6747 | IYV2: 6748 | IYW2: 6749 | IYX2: 6750 | IYY2: 6751 | IYZ2: 6752 | IZA2: 6753 | IZB2: 6754 | IZC2: 6755 | IZD2: 6756 | IZE2: 6757 | IZF2: 6758 | IZG2: 6759 | IZH2: 6760 | IZI2: 6761 | IZJ2: 6762 | IZK2: 6763 | IZL2: 6764 | IZM2: 6765 | IZN2: 6766 | IZO2: 6767 | IZP2: 6768 | IZQ2: 6769 | IZR2: 6770 | IZS2: 6771 | IZT2: 6772 | IZU2: 6773 | IZV2: 6774 | IZW2: 6775 | IZX2: 6776 | IZY2: 6777 | IZZ2: 6778 | JAA2: 6779 | JAB2: 6780 | JAC2: 6781 | JAD2: 6782 | JAE2: 6783 | JAF2: 6784 | JAG2: 6785 | JAH2: 6786 | JAI2: 6787 | JAJ2: 6788 | JAK2: 6789 | JAL2: 6790 | JAM2: 6791 | JAN2: 6792 | JAO2: 6793 | JAP2: 6794 | JAQ2: 6795 | JAR2: 6796 | JAS2: 6797 | JAT2: 6798 | JAU2: 6799 | JAV2: 6800 | JAW2: 6801 | JAX2: 6802 | JAY2: 6803 | JAZ2: 6804 | JBA2: 6805 | JBB2: 6806 | JBC2: 6807 | JBD2: 6808 | JBE2: 6809 | JBF2: 6810 | JBG2: 6811 | JBH2: 6812 | JBI2: 6813 | JBJ2: 6814 | JBK2: 6815 | JBL2: 6816 | JBM2: 6817 | JBN2: 6818 | JBO2: 6819 | JBP2: 6820 | JBQ2: 6821 | JBR2: 6822 | JBS2: 6823 | JBT2: 6824 | JBU2: 6825 | JBV2: 6826 | JBW2: 6827 | JBX2: 6828 | JBY2: 6829 | JBZ2: 6830 | JCA2: 6831 | JCB2: 6832 | JCC2: 6833 | JCD2: 6834 | JCE2: 6835 | JCF2: 6836 | JCG2: 6837 | JCH2: 6838 | JCI2: 6839 | JCJ2: 6840 | JCK2: 6841 | JCL2: 6842 | JCM2: 6843 | JCN2: 6844 | JCO2: 6845 | JCP2: 6846 | JCQ2: 6847 | JCR2: 6848 | JCS2: 6849 | JCT2: 6850 | JCU2: 6851 | JCV2: 6852 | JCW2: 6853 | JCX2: 6854 | JCY2: 6855 | JCZ2: 6856 | JDA2: 6857 | JDB2: 6858 | JDC2: 6859 | JDD2: 6860 | JDE2: 6861 | JDF2: 6862 | JDG2: 6863 | JDH2: 6864 | JDI2: 6865 | JDJ2: 6866 | JDK2: 6867 | JDL2: 6868 | JDM2: 6869 | JDN2: 6870 | JDO2: 6871 | JDP2: 6872 | JDQ2: 6873 | JDR2: 6874 | JDS2: 6875 | JDT2: 6876 | JDU2: 6877 | JDV2: 6878 | JDW2: 6879 | JDX2: 6880 | JDY2: 6881 | JDZ2: 6882 | JEA2: 6883 | JEB2: 6884 | JEC2: 6885 | JED2: 6886 | JEE2: 6887 | JEF2: 6888 | JEG2: 6889 | JEH2: 6890 | JEI2: 6891 | JEJ2: 6892 | JEK2: 6893 | JEL2: 6894 | JEM2: 6895 | JEN2: 6896 | JEO2: 6897 | JEP2: 6898 | JEQ2: 6899 | JER2: 6900 | JES2: 6901 | JET2: 6902 | JEU2: 6903 | JEV2: 6904 | JEW2: 6905 | JEX2: 6906 | JEY2: 6907 | JEZ2: 6908 | JFA2: 6909 | JFB2: 6910 | JFC2: 6911 | JFD2: 6912 | JFE2: 6913 | JFF2: 6914 | JFG2: 6915 | JFH2: 6916 | JFI2: 6917 | JFJ2: 6918 | JFK2: 6919 | JFL2: 6920 | JFM2: 6921 | JFN2: 6922 | JFO2: 6923 | JFP2: 6924 | JFQ2: 6925 | JFR2: 6926 | JFS2: 6927 | JFT2: 6928 | JFU2: 6929 | JFV2: 6930 | JFW2: 6931 | JFX2: 6932 | JFY2: 6933 | JFZ2: 6934 | JGA2: 6935 | JGB2: 6936 | JGC2: 6937 | JGD2: 6938 | JGE2: 6939 | JGF2: 6940 | JGG2: 6941 | JGH2: 6942 | JGI2: 6943 | JGJ2: 6944 | JGK2: 6945 | JGL2: 6946 | JGM2: 6947 | JGN2: 6948 | JGO2: 6949 | JGP2: 6950 | JGQ2: 6951 | JGR2: 6952 | JGS2: 6953 | JGT2: 6954 | JGU2: 6955 | JGV2: 6956 | JGW2: 6957 | JGX2: 6958 | JGY2: 6959 | JGZ2: 6960 | JHA2: 6961 | JHB2: 6962 | JHC2: 6963 | JHD2: 6964 | JHE2: 6965 | JHF2: 6966 | JHG2: 6967 | JHH2: 6968 | JHI2: 6969 | JHJ2: 6970 | JHK2: 6971 | JHL2: 6972 | JHM2: 6973 | JHN2: 6974 | JHO2: 6975 | JHP2: 6976 | JHQ2: 6977 | JHR2: 6978 | JHS2: 6979 | JHT2: 6980 | JHU2: 6981 | JHV2: 6982 | JHW2: 6983 | JHX2: 6984 | JHY2: 6985 | JHZ2: 6986 | JIA2: 6987 | JIB2: 6988 | JIC2: 6989 | JID2: 6990 | JIE2: 6991 | JIF2: 6992 | JIG2: 6993 | JIH2: 6994 | JII2: 6995 | JIJ2: 6996 | JIK2: 6997 | JIL2: 6998 | JIM2: 6999 | JIN2: 7000 | JIO2: 7001 | JIP2: 7002 | JIQ2: 7003 | JIR2: 7004 | JIS2: 7005 | JIT2: 7006 | JIU2: 7007 | JIV2: 7008 | JIW2: 7009 | JIX2: 7010 | JIY2: 7011 | JIZ2: 7012 | JJA2: 7013 | JJB2: 7014 | JJC2: 7015 | JJD2: 7016 | JJE2: 7017 | JJF2: 7018 | JJG2: 7019 | JJH2: 7020 | JJI2: 7021 | JJJ2: 7022 | JJK2: 7023 | JJL2: 7024 | JJM2: 7025 | JJN2: 7026 | JJO2: 7027 | JJP2: 7028 | JJQ2: 7029 | JJR2: 7030 | JJS2: 7031 | JJT2: 7032 | JJU2: 7033 | JJV2: 7034 | JJW2: 7035 | JJX2: 7036 | JJY2: 7037 | JJZ2: 7038 | JKA2: 7039 | JKB2: 7040 | JKC2: 7041 | JKD2: 7042 | JKE2: 7043 | JKF2: 7044 | JKG2: 7045 | JKH2: 7046 | JKI2: 7047 | JKJ2: 7048 | JKK2: 7049 | JKL2: 7050 | JKM2: 7051 | JKN2: 7052 | JKO2: 7053 | JKP2: 7054 | JKQ2: 7055 | JKR2: 7056 | JKS2: 7057 | JKT2: 7058 | JKU2: 7059 | JKV2: 7060 | JKW2: 7061 | JKX2: 7062 | JKY2: 7063 | JKZ2: 7064 | JLA2: 7065 | JLB2: 7066 | JLC2: 7067 | JLD2: 7068 | JLE2: 7069 | JLF2: 7070 | JLG2: 7071 | JLH2: 7072 | JLI2: 7073 | JLJ2: 7074 | JLK2: 7075 | JLL2: 7076 | JLM2: 7077 | JLN2: 7078 | JLO2: 7079 | JLP2: 7080 | JLQ2: 7081 | JLR2: 7082 | JLS2: 7083 | JLT2: 7084 | JLU2: 7085 | JLV2: 7086 | JLW2: 7087 | JLX2: 7088 | JLY2: 7089 | JLZ2: 7090 | JMA2: 7091 | JMB2: 7092 | JMC2: 7093 | JMD2: 7094 | JME2: 7095 | JMF2: 7096 | JMG2: 7097 | JMH2: 7098 | JMI2: 7099 | JMJ2: 7100 | JMK2: 7101 | JML2: 7102 | JMM2: 7103 | JMN2: 7104 | JMO2: 7105 | JMP2: 7106 | JMQ2: 7107 | JMR2: 7108 | JMS2: 7109 | JMT2: 7110 | JMU2: 7111 | JMV2: 7112 | JMW2: 7113 | JMX2: 7114 | JMY2: 7115 | JMZ2: 7116 | JNA2: 7117 | JNB2: 7118 | JNC2: 7119 | JND2: 7120 | JNE2: 7121 | JNF2: 7122 | JNG2: 7123 | JNH2: 7124 | JNI2: 7125 | JNJ2: 7126 | JNK2: 7127 | JNL2: 7128 | JNM2: 7129 | JNN2: 7130 | JNO2: 7131 | JNP2: 7132 | JNQ2: 7133 | JNR2: 7134 | JNS2: 7135 | JNT2: 7136 | JNU2: 7137 | JNV2: 7138 | JNW2: 7139 | JNX2: 7140 | JNY2: 7141 | JNZ2: 7142 | JOA2: 7143 | JOB2: 7144 | JOC2: 7145 | JOD2: 7146 | JOE2: 7147 | JOF2: 7148 | JOG2: 7149 | JOH2: 7150 | JOI2: 7151 | JOJ2: 7152 | JOK2: 7153 | JOL2: 7154 | JOM2: 7155 | JON2: 7156 | JOO2: 7157 | JOP2: 7158 | JOQ2: 7159 | JOR2: 7160 | JOS2: 7161 | JOT2: 7162 | JOU2: 7163 | JOV2: 7164 | JOW2: 7165 | JOX2: 7166 | JOY2: 7167 | JOZ2: 7168 | JPA2: 7169 | JPB2: 7170 | JPC2: 7171 | JPD2: 7172 | JPE2: 7173 | JPF2: 7174 | JPG2: 7175 | JPH2: 7176 | JPI2: 7177 | JPJ2: 7178 | JPK2: 7179 | JPL2: 7180 | JPM2: 7181 | JPN2: 7182 | JPO2: 7183 | JPP2: 7184 | JPQ2: 7185 | JPR2: 7186 | JPS2: 7187 | JPT2: 7188 | JPU2: 7189 | JPV2: 7190 | JPW2: 7191 | JPX2: 7192 | JPY2: 7193 | JPZ2: 7194 | JQA2: 7195 | JQB2: 7196 | JQC2: 7197 | JQD2: 7198 | JQE2: 7199 | JQF2: 7200 | JQG2: 7201 | JQH2: 7202 | JQI2: 7203 | JQJ2: 7204 | JQK2: 7205 | JQL2: 7206 | JQM2: 7207 | JQN2: 7208 | JQO2: 7209 | JQP2: 7210 | JQQ2: 7211 | JQR2: 7212 | JQS2: 7213 | JQT2: 7214 | JQU2: 7215 | JQV2: 7216 | JQW2: 7217 | JQX2: 7218 | JQY2: 7219 | JQZ2: 7220 | JRA2: 7221 | JRB2: 7222 | JRC2: 7223 | JRD2: 7224 | JRE2: 7225 | JRF2: 7226 | JRG2: 7227 | JRH2: 7228 | JRI2: 7229 | JRJ2: 7230 | JRK2: 7231 | JRL2: 7232 | JRM2: 7233 | JRN2: 7234 | JRO2: 7235 | JRP2: 7236 | JRQ2: 7237 | JRR2: 7238 | JRS2: 7239 | JRT2: 7240 | JRU2: 7241 | JRV2: 7242 | JRW2: 7243 | JRX2: 7244 | JRY2: 7245 | JRZ2: 7246 | JSA2: 7247 | JSB2: 7248 | JSC2: 7249 | JSD2: 7250 | JSE2: 7251 | JSF2: 7252 | JSG2: 7253 | JSH2: 7254 | JSI2: 7255 | JSJ2: 7256 | JSK2: 7257 | JSL2: 7258 | JSM2: 7259 | JSN2: 7260 | JSO2: 7261 | JSP2: 7262 | JSQ2: 7263 | JSR2: 7264 | JSS2: 7265 | JST2: 7266 | JSU2: 7267 | JSV2: 7268 | JSW2: 7269 | JSX2: 7270 | JSY2: 7271 | JSZ2: 7272 | JTA2: 7273 | JTB2: 7274 | JTC2: 7275 | JTD2: 7276 | JTE2: 7277 | JTF2: 7278 | JTG2: 7279 | JTH2: 7280 | JTI2: 7281 | JTJ2: 7282 | JTK2: 7283 | JTL2: 7284 | JTM2: 7285 | JTN2: 7286 | JTO2: 7287 | JTP2: 7288 | JTQ2: 7289 | JTR2: 7290 | JTS2: 7291 | JTT2: 7292 | JTU2: 7293 | JTV2: 7294 | JTW2: 7295 | JTX2: 7296 | JTY2: 7297 | JTZ2: 7298 | JUA2: 7299 | JUB2: 7300 | JUC2: 7301 | JUD2: 7302 | JUE2: 7303 | JUF2: 7304 | JUG2: 7305 | JUH2: 7306 | JUI2: 7307 | JUJ2: 7308 | JUK2: 7309 | JUL2: 7310 | JUM2: 7311 | JUN2: 7312 | JUO2: 7313 | JUP2: 7314 | JUQ2: 7315 | JUR2: 7316 | JUS2: 7317 | JUT2: 7318 | JUU2: 7319 | JUV2: 7320 | JUW2: 7321 | JUX2: 7322 | JUY2: 7323 | JUZ2: 7324 | JVA2: 7325 | JVB2: 7326 | JVC2: 7327 | JVD2: 7328 | JVE2: 7329 | JVF2: 7330 | JVG2: 7331 | JVH2: 7332 | JVI2: 7333 | JVJ2: 7334 | JVK2: 7335 | JVL2: 7336 | JVM2: 7337 | JVN2: 7338 | JVO2: 7339 | JVP2: 7340 | JVQ2: 7341 | JVR2: 7342 | JVS2: 7343 | JVT2: 7344 | JVU2: 7345 | JVV2: 7346 | JVW2: 7347 | JVX2: 7348 | JVY2: 7349 | JVZ2: 7350 | JWA2: 7351 | JWB2: 7352 | JWC2: 7353 | JWD2: 7354 | JWE2: 7355 | JWF2: 7356 | JWG2: 7357 | JWH2: 7358 | JWI2: 7359 | JWJ2: 7360 | JWK2: 7361 | JWL2: 7362 | JWM2: 7363 | JWN2: 7364 | JWO2: 7365 | JWP2: 7366 | JWQ2: 7367 | JWR2: 7368 | JWS2: 7369 | JWT2: 7370 | JWU2: 7371 | JWV2: 7372 | JWW2: 7373 | JWX2: 7374 | JWY2: 7375 | JWZ2: 7376 | JXA2: 7377 | JXB2: 7378 | JXC2: 7379 | JXD2: 7380 | JXE2: 7381 | JXF2: 7382 | JXG2: 7383 | JXH2: 7384 | JXI2: 7385 | JXJ2: 7386 | JXK2: 7387 | JXL2: 7388 | JXM2: 7389 | JXN2: 7390 | JXO2: 7391 | JXP2: 7392 | JXQ2: 7393 | JXR2: 7394 | JXS2: 7395 | JXT2: 7396 | JXU2: 7397 | JXV2: 7398 | JXW2: 7399 | JXX2: 7400 | JXY2: 7401 | JXZ2: 7402 | JYA2: 7403 | JYB2: 7404 | JYC2: 7405 | JYD2: 7406 | JYE2: 7407 | JYF2: 7408 | JYG2: 7409 | JYH2: 7410 | JYI2: 7411 | JYJ2: 7412 | JYK2: 7413 | JYL2: 7414 | JYM2: 7415 | JYN2: 7416 | JYO2: 7417 | JYP2: 7418 | JYQ2: 7419 | JYR2: 7420 | JYS2: 7421 | JYT2: 7422 | JYU2: 7423 | JYV2: 7424 | JYW2: 7425 | JYX2: 7426 | JYY2: 7427 | JYZ2: 7428 | JZA2: 7429 | JZB2: 7430 | JZC2: 7431 | JZD2: 7432 | JZE2: 7433 | JZF2: 7434 | JZG2: 7435 | JZH2: 7436 | JZI2: 7437 | JZJ2: 7438 | JZK2: 7439 | JZL2: 7440 | JZM2: 7441 | JZN2: 7442 | JZO2: 7443 | JZP2: 7444 | JZQ2: 7445 | JZR2: 7446 | JZS2: 7447 | JZT2: 7448 | JZU2: 7449 | JZV2: 7450 | JZW2: 7451 | JZX2: 7452 | JZY2: 7453 | JZZ2: 7454 | KAA2: 7455 | KAB2: 7456 | KAC2: 7457 | KAD2: 7458 | KAE2: 7459 | KAF2: 7460 | KAG2: 7461 | KAH2: 7462 | KAI2: 7463 | KAJ2: 7464 | KAK2: 7465 | KAL2: 7466 | KAM2: 7467 | KAN2: 7468 | KAO2: 7469 | KAP2: 7470 | KAQ2: 7471 | KAR2: 7472 | KAS2: 7473 | KAT2: 7474 | KAU2: 7475 | KAV2: 7476 | KAW2: 7477 | KAX2: 7478 | KAY2: 7479 | KAZ2: 7480 | KBA2: 7481 | KBB2: 7482 | KBC2: 7483 | KBD2: 7484 | KBE2: 7485 | KBF2: 7486 | KBG2: 7487 | KBH2: 7488 | KBI2: 7489 | KBJ2: 7490 | KBK2: 7491 | KBL2: 7492 | KBM2: 7493 | KBN2: 7494 | KBO2: 7495 | KBP2: 7496 | KBQ2: 7497 | KBR2: 7498 | KBS2: 7499 | KBT2: 7500 | KBU2: 7501 | KBV2: 7502 | KBW2: 7503 | KBX2: 7504 | KBY2: 7505 | KBZ2: 7506 | KCA2: 7507 | KCB2: 7508 | KCC2: 7509 | KCD2: 7510 | KCE2: 7511 | KCF2: 7512 | KCG2: 7513 | KCH2: 7514 | KCI2: 7515 | KCJ2: 7516 | KCK2: 7517 | KCL2: 7518 | KCM2: 7519 | KCN2: 7520 | KCO2: 7521 | KCP2: 7522 | KCQ2: 7523 | KCR2: 7524 | KCS2: 7525 | KCT2: 7526 | KCU2: 7527 | KCV2: 7528 | KCW2: 7529 | KCX2: 7530 | KCY2: 7531 | KCZ2: 7532 | KDA2: 7533 | KDB2: 7534 | KDC2: 7535 | KDD2: 7536 | KDE2: 7537 | KDF2: 7538 | KDG2: 7539 | KDH2: 7540 | KDI2: 7541 | KDJ2: 7542 | KDK2: 7543 | KDL2: 7544 | KDM2: 7545 | KDN2: 7546 | KDO2: 7547 | KDP2: 7548 | KDQ2: 7549 | KDR2: 7550 | KDS2: 7551 | KDT2: 7552 | KDU2: 7553 | KDV2: 7554 | KDW2: 7555 | KDX2: 7556 | KDY2: 7557 | KDZ2: 7558 | KEA2: 7559 | KEB2: 7560 | KEC2: 7561 | KED2: 7562 | KEE2: 7563 | KEF2: 7564 | KEG2: 7565 | KEH2: 7566 | KEI2: 7567 | KEJ2: 7568 | KEK2: 7569 | KEL2: 7570 | KEM2: 7571 | KEN2: 7572 | KEO2: 7573 | KEP2: 7574 | KEQ2: 7575 | KER2: 7576 | KES2: 7577 | KET2: 7578 | KEU2: 7579 | KEV2: 7580 | KEW2: 7581 | KEX2: 7582 | KEY2: 7583 | KEZ2: 7584 | KFA2: 7585 | KFB2: 7586 | KFC2: 7587 | KFD2: 7588 | KFE2: 7589 | KFF2: 7590 | KFG2: 7591 | KFH2: 7592 | KFI2: 7593 | KFJ2: 7594 | KFK2: 7595 | KFL2: 7596 | KFM2: 7597 | KFN2: 7598 | KFO2: 7599 | KFP2: 7600 | KFQ2: 7601 | KFR2: 7602 | KFS2: 7603 | KFT2: 7604 | KFU2: 7605 | KFV2: 7606 | KFW2: 7607 | KFX2: 7608 | KFY2: 7609 | KFZ2: 7610 | KGA2: 7611 | KGB2: 7612 | KGC2: 7613 | KGD2: 7614 | KGE2: 7615 | KGF2: 7616 | KGG2: 7617 | KGH2: 7618 | KGI2: 7619 | KGJ2: 7620 | KGK2: 7621 | KGL2: 7622 | KGM2: 7623 | KGN2: 7624 | KGO2: 7625 | KGP2: 7626 | KGQ2: 7627 | KGR2: 7628 | KGS2: 7629 | KGT2: 7630 | KGU2: 7631 | KGV2: 7632 | KGW2: 7633 | KGX2: 7634 | KGY2: 7635 | KGZ2: 7636 | KHA2: 7637 | KHB2: 7638 | KHC2: 7639 | KHD2: 7640 | KHE2: 7641 | KHF2: 7642 | KHG2: 7643 | KHH2: 7644 | KHI2: 7645 | KHJ2: 7646 | KHK2: 7647 | KHL2: 7648 | KHM2: 7649 | KHN2: 7650 | KHO2: 7651 | KHP2: 7652 | KHQ2: 7653 | KHR2: 7654 | KHS2: 7655 | KHT2: 7656 | KHU2: 7657 | KHV2: 7658 | KHW2: 7659 | KHX2: 7660 | KHY2: 7661 | KHZ2: 7662 | KIA2: 7663 | KIB2: 7664 | KIC2: 7665 | KID2: 7666 | KIE2: 7667 | KIF2: 7668 | KIG2: 7669 | KIH2: 7670 | KII2: 7671 | KIJ2: 7672 | KIK2: 7673 | KIL2: 7674 | KIM2: 7675 | KIN2: 7676 | KIO2: 7677 | KIP2: 7678 | KIQ2: 7679 | KIR2: 7680 | KIS2: 7681 | KIT2: 7682 | KIU2: 7683 | KIV2: 7684 | KIW2: 7685 | KIX2: 7686 | KIY2: 7687 | KIZ2: 7688 | KJA2: 7689 | KJB2: 7690 | KJC2: 7691 | KJD2: 7692 | KJE2: 7693 | KJF2: 7694 | KJG2: 7695 | KJH2: 7696 | KJI2: 7697 | KJJ2: 7698 | KJK2: 7699 | KJL2: 7700 | KJM2: 7701 | KJN2: 7702 | KJO2: 7703 | KJP2: 7704 | KJQ2: 7705 | KJR2: 7706 | KJS2: 7707 | KJT2: 7708 | KJU2: 7709 | KJV2: 7710 | KJW2: 7711 | KJX2: 7712 | KJY2: 7713 | KJZ2: 7714 | KKA2: 7715 | KKB2: 7716 | KKC2: 7717 | KKD2: 7718 | KKE2: 7719 | KKF2: 7720 | KKG2: 7721 | KKH2: 7722 | KKI2: 7723 | KKJ2: 7724 | KKK2: 7725 | KKL2: 7726 | KKM2: 7727 | KKN2: 7728 | KKO2: 7729 | KKP2: 7730 | KKQ2: 7731 | KKR2: 7732 | KKS2: 7733 | KKT2: 7734 | KKU2: 7735 | KKV2: 7736 | KKW2: 7737 | KKX2: 7738 | KKY2: 7739 | KKZ2: 7740 | KLA2: 7741 | KLB2: 7742 | KLC2: 7743 | KLD2: 7744 | KLE2: 7745 | KLF2: 7746 | KLG2: 7747 | KLH2: 7748 | KLI2: 7749 | KLJ2: 7750 | KLK2: 7751 | KLL2: 7752 | KLM2: 7753 | KLN2: 7754 | KLO2: 7755 | KLP2: 7756 | KLQ2: 7757 | KLR2: 7758 | KLS2: 7759 | KLT2: 7760 | KLU2: 7761 | KLV2: 7762 | KLW2: 7763 | KLX2: 7764 | KLY2: 7765 | KLZ2: 7766 | KMA2: 7767 | KMB2: 7768 | KMC2: 7769 | KMD2: 7770 | KME2: 7771 | KMF2: 7772 | KMG2: 7773 | KMH2: 7774 | KMI2: 7775 | KMJ2: 7776 | KMK2: 7777 | KML2: 7778 | KMM2: 7779 | KMN2: 7780 | KMO2: 7781 | KMP2: 7782 | KMQ2: 7783 | KMR2: 7784 | KMS2: 7785 | KMT2: 7786 | KMU2: 7787 | KMV2: 7788 | KMW2: 7789 | KMX2: 7790 | KMY2: 7791 | KMZ2: 7792 | KNA2: 7793 | KNB2: 7794 | KNC2: 7795 | KND2: 7796 | KNE2: 7797 | KNF2: 7798 | KNG2: 7799 | KNH2: 7800 | KNI2: 7801 | KNJ2: 7802 | KNK2: 7803 | KNL2: 7804 | KNM2: 7805 | KNN2: 7806 | KNO2: 7807 | KNP2: 7808 | KNQ2: 7809 | KNR2: 7810 | KNS2: 7811 | KNT2: 7812 | KNU2: 7813 | KNV2: 7814 | KNW2: 7815 | KNX2: 7816 | KNY2: 7817 | KNZ2: 7818 | KOA2: 7819 | KOB2: 7820 | KOC2: 7821 | KOD2: 7822 | KOE2: 7823 | KOF2: 7824 | KOG2: 7825 | KOH2: 7826 | KOI2: 7827 | KOJ2: 7828 | KOK2: 7829 | KOL2: 7830 | KOM2: 7831 | KON2: 7832 | KOO2: 7833 | KOP2: 7834 | KOQ2: 7835 | KOR2: 7836 | KOS2: 7837 | KOT2: 7838 | KOU2: 7839 | KOV2: 7840 | KOW2: 7841 | KOX2: 7842 | KOY2: 7843 | KOZ2: 7844 | KPA2: 7845 | KPB2: 7846 | KPC2: 7847 | KPD2: 7848 | KPE2: 7849 | KPF2: 7850 | KPG2: 7851 | KPH2: 7852 | KPI2: 7853 | KPJ2: 7854 | KPK2: 7855 | KPL2: 7856 | KPM2: 7857 | KPN2: 7858 | KPO2: 7859 | KPP2: 7860 | KPQ2: 7861 | KPR2: 7862 | KPS2: 7863 | KPT2: 7864 | KPU2: 7865 | KPV2: 7866 | KPW2: 7867 | KPX2: 7868 | KPY2: 7869 | KPZ2: 7870 | KQA2: 7871 | KQB2: 7872 | KQC2: 7873 | KQD2: 7874 | KQE2: 7875 | KQF2: 7876 | KQG2: 7877 | KQH2: 7878 | KQI2: 7879 | KQJ2: 7880 | KQK2: 7881 | KQL2: 7882 | KQM2: 7883 | KQN2: 7884 | KQO2: 7885 | KQP2: 7886 | KQQ2: 7887 | KQR2: 7888 | KQS2: 7889 | KQT2: 7890 | KQU2: 7891 | KQV2: 7892 | KQW2: 7893 | KQX2: 7894 | KQY2: 7895 | KQZ2: 7896 | KRA2: 7897 | KRB2: 7898 | KRC2: 7899 | KRD2: 7900 | KRE2: 7901 | KRF2: 7902 | KRG2: 7903 | KRH2: 7904 | KRI2: 7905 | KRJ2: 7906 | KRK2: 7907 | KRL2: 7908 | KRM2: 7909 | KRN2: 7910 | KRO2: 7911 | KRP2: 7912 | KRQ2: 7913 | KRR2: 7914 | KRS2: 7915 | KRT2: 7916 | KRU2: 7917 | KRV2: 7918 | KRW2: 7919 | KRX2: 7920 | KRY2: 7921 | KRZ2: 7922 | KSA2: 7923 | KSB2: 7924 | KSC2: 7925 | KSD2: 7926 | KSE2: 7927 | KSF2: 7928 | KSG2: 7929 | KSH2: 7930 | KSI2: 7931 | KSJ2: 7932 | KSK2: 7933 | KSL2: 7934 | KSM2: 7935 | KSN2: 7936 | KSO2: 7937 | KSP2: 7938 | KSQ2: 7939 | KSR2: 7940 | KSS2: 7941 | KST2: 7942 | KSU2: 7943 | KSV2: 7944 | KSW2: 7945 | KSX2: 7946 | KSY2: 7947 | KSZ2: 7948 | KTA2: 7949 | KTB2: 7950 | KTC2: 7951 | KTD2: 7952 | KTE2: 7953 | KTF2: 7954 | KTG2: 7955 | KTH2: 7956 | KTI2: 7957 | KTJ2: 7958 | KTK2: 7959 | KTL2: 7960 | KTM2: 7961 | KTN2: 7962 | KTO2: 7963 | KTP2: 7964 | KTQ2: 7965 | KTR2: 7966 | KTS2: 7967 | KTT2: 7968 | KTU2: 7969 | KTV2: 7970 | KTW2: 7971 | KTX2: 7972 | KTY2: 7973 | KTZ2: 7974 | KUA2: 7975 | KUB2: 7976 | KUC2: 7977 | KUD2: 7978 | KUE2: 7979 | KUF2: 7980 | KUG2: 7981 | KUH2: 7982 | KUI2: 7983 | KUJ2: 7984 | KUK2: 7985 | KUL2: 7986 | KUM2: 7987 | KUN2: 7988 | KUO2: 7989 | KUP2: 7990 | KUQ2: 7991 | KUR2: 7992 | KUS2: 7993 | KUT2: 7994 | KUU2: 7995 | KUV2: 7996 | KUW2: 7997 | KUX2: 7998 | KUY2: 7999 | KUZ2: 8000 | KVA2: 8001 | KVB2: 8002 | KVC2: 8003 | KVD2: 8004 | KVE2: 8005 | KVF2: 8006 | KVG2: 8007 | KVH2: 8008 | KVI2: 8009 | KVJ2: 8010 | KVK2: 8011 | KVL2: 8012 | KVM2: 8013 | KVN2: 8014 | KVO2: 8015 | KVP2: 8016 | KVQ2: 8017 | KVR2: 8018 | KVS2: 8019 | KVT2: 8020 | KVU2: 8021 | KVV2: 8022 | KVW2: 8023 | KVX2: 8024 | KVY2: 8025 | KVZ2: 8026 | KWA2: 8027 | KWB2: 8028 | KWC2: 8029 | KWD2: 8030 | KWE2: 8031 | KWF2: 8032 | KWG2: 8033 | KWH2: 8034 | KWI2: 8035 | KWJ2: 8036 | KWK2: 8037 | KWL2: 8038 | KWM2: 8039 | KWN2: 8040 | KWO2: 8041 | KWP2: 8042 | KWQ2: 8043 | KWR2: 8044 | KWS2: 8045 | KWT2: 8046 | KWU2: 8047 | KWV2: 8048 | KWW2: 8049 | KWX2: 8050 | KWY2: 8051 | KWZ2: 8052 | KXA2: 8053 | KXB2: 8054 | KXC2: 8055 | KXD2: 8056 | KXE2: 8057 | KXF2: 8058 | KXG2: 8059 | KXH2: 8060 | KXI2: 8061 | KXJ2: 8062 | KXK2: 8063 | KXL2: 8064 | KXM2: 8065 | KXN2: 8066 | KXO2: 8067 | KXP2: 8068 | KXQ2: 8069 | KXR2: 8070 | KXS2: 8071 | KXT2: 8072 | KXU2: 8073 | KXV2: 8074 | KXW2: 8075 | KXX2: 8076 | KXY2: 8077 | KXZ2: 8078 | KYA2: 8079 | KYB2: 8080 | KYC2: 8081 | KYD2: 8082 | KYE2: 8083 | KYF2: 8084 | KYG2: 8085 | KYH2: 8086 | KYI2: 8087 | KYJ2: 8088 | KYK2: 8089 | KYL2: 8090 | KYM2: 8091 | KYN2: 8092 | KYO2: 8093 | KYP2: 8094 | KYQ2: 8095 | KYR2: 8096 | KYS2: 8097 | KYT2: 8098 | KYU2: 8099 | KYV2: 8100 | KYW2: 8101 | KYX2: 8102 | KYY2: 8103 | KYZ2: 8104 | KZA2: 8105 | KZB2: 8106 | KZC2: 8107 | KZD2: 8108 | KZE2: 8109 | KZF2: 8110 | KZG2: 8111 | KZH2: 8112 | KZI2: 8113 | KZJ2: 8114 | KZK2: 8115 | KZL2: 8116 | KZM2: 8117 | KZN2: 8118 | KZO2: 8119 | KZP2: 8120 | KZQ2: 8121 | KZR2: 8122 | KZS2: 8123 | KZT2: 8124 | KZU2: 8125 | KZV2: 8126 | KZW2: 8127 | KZX2: 8128 | KZY2: 8129 | KZZ2: 8130 | LAA2: 8131 | LAB2: 8132 | LAC2: 8133 | LAD2: 8134 | LAE2: 8135 | LAF2: 8136 | LAG2: 8137 | LAH2: 8138 | LAI2: 8139 | LAJ2: 8140 | LAK2: 8141 | LAL2: 8142 | LAM2: 8143 | LAN2: 8144 | LAO2: 8145 | LAP2: 8146 | LAQ2: 8147 | LAR2: 8148 | LAS2: 8149 | LAT2: 8150 | LAU2: 8151 | LAV2: 8152 | LAW2: 8153 | LAX2: 8154 | LAY2: 8155 | LAZ2: 8156 | LBA2: 8157 | LBB2: 8158 | LBC2: 8159 | LBD2: 8160 | LBE2: 8161 | LBF2: 8162 | LBG2: 8163 | LBH2: 8164 | LBI2: 8165 | LBJ2: 8166 | LBK2: 8167 | LBL2: 8168 | LBM2: 8169 | LBN2: 8170 | LBO2: 8171 | LBP2: 8172 | LBQ2: 8173 | LBR2: 8174 | LBS2: 8175 | LBT2: 8176 | LBU2: 8177 | LBV2: 8178 | LBW2: 8179 | LBX2: 8180 | LBY2: 8181 | LBZ2: 8182 | LCA2: 8183 | LCB2: 8184 | LCC2: 8185 | LCD2: 8186 | LCE2: 8187 | LCF2: 8188 | LCG2: 8189 | LCH2: 8190 | LCI2: 8191 | LCJ2: 8192 | LCK2: 8193 | LCL2: 8194 | LCM2: 8195 | LCN2: 8196 | LCO2: 8197 | LCP2: 8198 | LCQ2: 8199 | LCR2: 8200 | LCS2: 8201 | LCT2: 8202 | LCU2: 8203 | LCV2: 8204 | LCW2: 8205 | LCX2: 8206 | LCY2: 8207 | LCZ2: 8208 | LDA2: 8209 | LDB2: 8210 | LDC2: 8211 | LDD2: 8212 | LDE2: 8213 | LDF2: 8214 | LDG2: 8215 | LDH2: 8216 | LDI2: 8217 | LDJ2: 8218 | LDK2: 8219 | LDL2: 8220 | LDM2: 8221 | LDN2: 8222 | LDO2: 8223 | LDP2: 8224 | LDQ2: 8225 | LDR2: 8226 | LDS2: 8227 | LDT2: 8228 | LDU2: 8229 | LDV2: 8230 | LDW2: 8231 | LDX2: 8232 | LDY2: 8233 | LDZ2: 8234 | LEA2: 8235 | LEB2: 8236 | LEC2: 8237 | LED2: 8238 | LEE2: 8239 | LEF2: 8240 | LEG2: 8241 | LEH2: 8242 | LEI2: 8243 | LEJ2: 8244 | LEK2: 8245 | LEL2: 8246 | LEM2: 8247 | LEN2: 8248 | LEO2: 8249 | LEP2: 8250 | LEQ2: 8251 | LER2: 8252 | LES2: 8253 | LET2: 8254 | LEU2: 8255 | LEV2: 8256 | LEW2: 8257 | LEX2: 8258 | LEY2: 8259 | LEZ2: 8260 | LFA2: 8261 | LFB2: 8262 | LFC2: 8263 | LFD2: 8264 | LFE2: 8265 | LFF2: 8266 | LFG2: 8267 | LFH2: 8268 | LFI2: 8269 | LFJ2: 8270 | LFK2: 8271 | LFL2: 8272 | LFM2: 8273 | LFN2: 8274 | LFO2: 8275 | LFP2: 8276 | LFQ2: 8277 | LFR2: 8278 | LFS2: 8279 | LFT2: 8280 | LFU2: 8281 | LFV2: 8282 | LFW2: 8283 | LFX2: 8284 | LFY2: 8285 | LFZ2: 8286 | LGA2: 8287 | LGB2: 8288 | LGC2: 8289 | LGD2: 8290 | LGE2: 8291 | LGF2: 8292 | LGG2: 8293 | LGH2: 8294 | LGI2: 8295 | LGJ2: 8296 | LGK2: 8297 | LGL2: 8298 | LGM2: 8299 | LGN2: 8300 | LGO2: 8301 | LGP2: 8302 | LGQ2: 8303 | LGR2: 8304 | LGS2: 8305 | LGT2: 8306 | LGU2: 8307 | LGV2: 8308 | LGW2: 8309 | LGX2: 8310 | LGY2: 8311 | LGZ2: 8312 | LHA2: 8313 | LHB2: 8314 | LHC2: 8315 | LHD2: 8316 | LHE2: 8317 | LHF2: 8318 | LHG2: 8319 | LHH2: 8320 | LHI2: 8321 | LHJ2: 8322 | LHK2: 8323 | LHL2: 8324 | LHM2: 8325 | LHN2: 8326 | LHO2: 8327 | LHP2: 8328 | LHQ2: 8329 | LHR2: 8330 | LHS2: 8331 | LHT2: 8332 | LHU2: 8333 | LHV2: 8334 | LHW2: 8335 | LHX2: 8336 | LHY2: 8337 | LHZ2: 8338 | LIA2: 8339 | LIB2: 8340 | LIC2: 8341 | LID2: 8342 | LIE2: 8343 | LIF2: 8344 | LIG2: 8345 | LIH2: 8346 | LII2: 8347 | LIJ2: 8348 | LIK2: 8349 | LIL2: 8350 | LIM2: 8351 | LIN2: 8352 | LIO2: 8353 | LIP2: 8354 | LIQ2: 8355 | LIR2: 8356 | LIS2: 8357 | LIT2: 8358 | LIU2: 8359 | LIV2: 8360 | LIW2: 8361 | LIX2: 8362 | LIY2: 8363 | LIZ2: 8364 | LJA2: 8365 | LJB2: 8366 | LJC2: 8367 | LJD2: 8368 | LJE2: 8369 | LJF2: 8370 | LJG2: 8371 | LJH2: 8372 | LJI2: 8373 | LJJ2: 8374 | LJK2: 8375 | LJL2: 8376 | LJM2: 8377 | LJN2: 8378 | LJO2: 8379 | LJP2: 8380 | LJQ2: 8381 | LJR2: 8382 | LJS2: 8383 | LJT2: 8384 | LJU2: 8385 | LJV2: 8386 | LJW2: 8387 | LJX2: 8388 | LJY2: 8389 | LJZ2: 8390 | LKA2: 8391 | LKB2: 8392 | LKC2: 8393 | LKD2: 8394 | LKE2: 8395 | LKF2: 8396 | LKG2: 8397 | LKH2: 8398 | LKI2: 8399 | LKJ2: 8400 | LKK2: 8401 | LKL2: 8402 | LKM2: 8403 | LKN2: 8404 | LKO2: 8405 | LKP2: 8406 | LKQ2: 8407 | LKR2: 8408 | LKS2: 8409 | LKT2: 8410 | LKU2: 8411 | LKV2: 8412 | LKW2: 8413 | LKX2: 8414 | LKY2: 8415 | LKZ2: 8416 | LLA2: 8417 | LLB2: 8418 | LLC2: 8419 | LLD2: 8420 | LLE2: 8421 | LLF2: 8422 | LLG2: 8423 | LLH2: 8424 | LLI2: 8425 | LLJ2: 8426 | LLK2: 8427 | LLL2: 8428 | LLM2: 8429 | LLN2: 8430 | LLO2: 8431 | LLP2: 8432 | LLQ2: 8433 | LLR2: 8434 | LLS2: 8435 | LLT2: 8436 | LLU2: 8437 | LLV2: 8438 | LLW2: 8439 | LLX2: 8440 | LLY2: 8441 | LLZ2: 8442 | LMA2: 8443 | LMB2: 8444 | LMC2: 8445 | LMD2: 8446 | LME2: 8447 | LMF2: 8448 | LMG2: 8449 | LMH2: 8450 | LMI2: 8451 | LMJ2: 8452 | LMK2: 8453 | LML2: 8454 | LMM2: 8455 | LMN2: 8456 | LMO2: 8457 | LMP2: 8458 | LMQ2: 8459 | LMR2: 8460 | LMS2: 8461 | LMT2: 8462 | LMU2: 8463 | LMV2: 8464 | LMW2: 8465 | LMX2: 8466 | LMY2: 8467 | LMZ2: 8468 | LNA2: 8469 | LNB2: 8470 | LNC2: 8471 | LND2: 8472 | LNE2: 8473 | LNF2: 8474 | LNG2: 8475 | LNH2: 8476 | LNI2: 8477 | LNJ2: 8478 | LNK2: 8479 | LNL2: 8480 | LNM2: 8481 | LNN2: 8482 | LNO2: 8483 | LNP2: 8484 | LNQ2: 8485 | LNR2: 8486 | LNS2: 8487 | LNT2: 8488 | LNU2: 8489 | LNV2: 8490 | LNW2: 8491 | LNX2: 8492 | LNY2: 8493 | LNZ2: 8494 | LOA2: 8495 | LOB2: 8496 | LOC2: 8497 | LOD2: 8498 | LOE2: 8499 | LOF2: 8500 | LOG2: 8501 | LOH2: 8502 | LOI2: 8503 | LOJ2: 8504 | LOK2: 8505 | LOL2: 8506 | LOM2: 8507 | LON2: 8508 | LOO2: 8509 | LOP2: 8510 | LOQ2: 8511 | LOR2: 8512 | LOS2: 8513 | LOT2: 8514 | LOU2: 8515 | LOV2: 8516 | LOW2: 8517 | LOX2: 8518 | LOY2: 8519 | LOZ2: 8520 | LPA2: 8521 | LPB2: 8522 | LPC2: 8523 | LPD2: 8524 | LPE2: 8525 | LPF2: 8526 | LPG2: 8527 | LPH2: 8528 | LPI2: 8529 | LPJ2: 8530 | LPK2: 8531 | LPL2: 8532 | LPM2: 8533 | LPN2: 8534 | LPO2: 8535 | LPP2: 8536 | LPQ2: 8537 | LPR2: 8538 | LPS2: 8539 | LPT2: 8540 | LPU2: 8541 | LPV2: 8542 | LPW2: 8543 | LPX2: 8544 | LPY2: 8545 | LPZ2: 8546 | LQA2: 8547 | LQB2: 8548 | LQC2: 8549 | LQD2: 8550 | LQE2: 8551 | LQF2: 8552 | LQG2: 8553 | LQH2: 8554 | LQI2: 8555 | LQJ2: 8556 | LQK2: 8557 | LQL2: 8558 | LQM2: 8559 | LQN2: 8560 | LQO2: 8561 | LQP2: 8562 | LQQ2: 8563 | LQR2: 8564 | LQS2: 8565 | LQT2: 8566 | LQU2: 8567 | LQV2: 8568 | LQW2: 8569 | LQX2: 8570 | LQY2: 8571 | LQZ2: 8572 | LRA2: 8573 | LRB2: 8574 | LRC2: 8575 | LRD2: 8576 | LRE2: 8577 | LRF2: 8578 | LRG2: 8579 | LRH2: 8580 | LRI2: 8581 | LRJ2: 8582 | LRK2: 8583 | LRL2: 8584 | LRM2: 8585 | LRN2: 8586 | LRO2: 8587 | LRP2: 8588 | LRQ2: 8589 | LRR2: 8590 | LRS2: 8591 | LRT2: 8592 | LRU2: 8593 | LRV2: 8594 | LRW2: 8595 | LRX2: 8596 | LRY2: 8597 | LRZ2: 8598 | LSA2: 8599 | LSB2: 8600 | LSC2: 8601 | LSD2: 8602 | LSE2: 8603 | LSF2: 8604 | LSG2: 8605 | LSH2: 8606 | LSI2: 8607 | LSJ2: 8608 | LSK2: 8609 | LSL2: 8610 | LSM2: 8611 | LSN2: 8612 | LSO2: 8613 | LSP2: 8614 | LSQ2: 8615 | LSR2: 8616 | LSS2: 8617 | LST2: 8618 | LSU2: 8619 | LSV2: 8620 | LSW2: 8621 | LSX2: 8622 | LSY2: 8623 | LSZ2: 8624 | LTA2: 8625 | LTB2: 8626 | LTC2: 8627 | LTD2: 8628 | LTE2: 8629 | LTF2: 8630 | LTG2: 8631 | LTH2: 8632 | LTI2: 8633 | LTJ2: 8634 | LTK2: 8635 | LTL2: 8636 | LTM2: 8637 | LTN2: 8638 | LTO2: 8639 | LTP2: 8640 | LTQ2: 8641 | LTR2: 8642 | LTS2: 8643 | LTT2: 8644 | LTU2: 8645 | LTV2: 8646 | LTW2: 8647 | LTX2: 8648 | LTY2: 8649 | LTZ2: 8650 | LUA2: 8651 | LUB2: 8652 | LUC2: 8653 | LUD2: 8654 | LUE2: 8655 | LUF2: 8656 | LUG2: 8657 | LUH2: 8658 | LUI2: 8659 | LUJ2: 8660 | LUK2: 8661 | LUL2: 8662 | LUM2: 8663 | LUN2: 8664 | LUO2: 8665 | LUP2: 8666 | LUQ2: 8667 | LUR2: 8668 | LUS2: 8669 | LUT2: 8670 | LUU2: 8671 | LUV2: 8672 | LUW2: 8673 | LUX2: 8674 | LUY2: 8675 | LUZ2: 8676 | LVA2: 8677 | LVB2: 8678 | LVC2: 8679 | LVD2: 8680 | LVE2: 8681 | LVF2: 8682 | LVG2: 8683 | LVH2: 8684 | LVI2: 8685 | LVJ2: 8686 | LVK2: 8687 | LVL2: 8688 | LVM2: 8689 | LVN2: 8690 | LVO2: 8691 | LVP2: 8692 | LVQ2: 8693 | LVR2: 8694 | LVS2: 8695 | LVT2: 8696 | LVU2: 8697 | LVV2: 8698 | LVW2: 8699 | LVX2: 8700 | LVY2: 8701 | LVZ2: 8702 | LWA2: 8703 | LWB2: 8704 | LWC2: 8705 | LWD2: 8706 | LWE2: 8707 | LWF2: 8708 | LWG2: 8709 | LWH2: 8710 | LWI2: 8711 | LWJ2: 8712 | LWK2: 8713 | LWL2: 8714 | LWM2: 8715 | LWN2: 8716 | LWO2: 8717 | LWP2: 8718 | LWQ2: 8719 | LWR2: 8720 | LWS2: 8721 | LWT2: 8722 | LWU2: 8723 | LWV2: 8724 | LWW2: 8725 | LWX2: 8726 | LWY2: 8727 | LWZ2: 8728 | LXA2: 8729 | LXB2: 8730 | LXC2: 8731 | LXD2: 8732 | LXE2: 8733 | LXF2: 8734 | LXG2: 8735 | LXH2: 8736 | LXI2: 8737 | LXJ2: 8738 | LXK2: 8739 | LXL2: 8740 | LXM2: 8741 | LXN2: 8742 | LXO2: 8743 | LXP2: 8744 | LXQ2: 8745 | LXR2: 8746 | LXS2: 8747 | LXT2: 8748 | LXU2: 8749 | LXV2: 8750 | LXW2: 8751 | LXX2: 8752 | LXY2: 8753 | LXZ2: 8754 | LYA2: 8755 | LYB2: 8756 | LYC2: 8757 | LYD2: 8758 | LYE2: 8759 | LYF2: 8760
